Workbook

Sheet マクロテスト
M153: 以上

Sheet はじめに (hidden)
B1: b | C1: c | D1: d | E1: e | F1: f | G1: g | H1: h | I1: i | J1: j | K1: k | L1: l | M1: m | N1: n | O1: ver.5
Z2: 2013
A3: 3 | B3: 計画書 | C3: 計画期間 | E3: =IF(E4="","",IF(E4=2025,2025,E4+1)) ->  | F3: 年度 | G3: ～ | H3: 2025 | I3: 年度
A4: 4 | C4: 基準年度 | F4: 年度
A5: 5 | C5: 提出年月日 | F5: 年 | H5: 月 | J5: 日
A6: 6 | B6: 届出者 | C6: 法人の名称
A7: 7 | C7: 法人の所在地
A8: 8 | C8: 代表者の職・氏名
A9: 9 | C9: 代理者の職・氏名
A10: 10 | B10: 該当要件 | C10: 条例第２条第５号イ | F10: ①原油換算エネルギー使用量が1,500kL以上の事業所 | S10: FALSE
A11: 11 | C11: 条例第２条第５号ロ | F11: ②エネルギー起源CO2を除くいずれかの物質の温室効果ガス排出量が3,000トン以上の事業所 | S11: FALSE
A12: 12 | C12: 条例第２条第５号ハ | F12: ③市内に100台以上の自動車を所有する運送事業者 | S12: TRUE
A13: 13 | C13: 一般事業者 | F13: ④任意提出事業者 | S13: FALSE
A14: 14 | B14: 事業所の概要 | C14: 事業所の名称
A15: 15 | C15: 事業所の所在地 | E15: 〒 | G15: -
A16: 16 | R16: 中分類 | S16: =E17&F17 -> 
A17: 17 | C17: 産業分類番号 | R17: 主たる業種（中分類） | S17: =IFERROR(VLOOKUP(S16,中分類,2,FALSE),"") -> 
A18: 18 | C18: 事業の概要 | E18: =S17 ->  | R18: 小分類 | S18: =E17&F17&G17 -> 
A19: 19 | R19: 主たる業種（小分類） | S19: =IFERROR(VLOOKUP(S18,小分類,2,FALSE),"") -> 
A20: 20 | R20: 細分類 | S20: =E17&F17&G17&H17 -> 
A21: 21 | B21: 担当者 | C21: 所属部署 | R21: 主たる業種（細分類） | S21: =IFERROR(VLOOKUP(S20,細分類,2,FALSE),"") -> 
A22: 22 | C22: 住所 | E22: 〒 | G22: -
A23: 23
A24: 24 | C24: 氏名
A25: 25 | C25: 電話番号
A26: 26 | C26: FAX番号
A27: 27 | C27: Eメールアドレス
A28: 28
A29: 29 | B29: 報告書 | C29: 提出対象年度 | E29: 第 | G29: 年度
A30: 30 | C30: 提出年月日 | F30: 年 | H30: 月 | J30: 日

Sheet 計画書①（事業者概要・目標） (hidden)
B3: 事業者温室効果ガス削減計画書（第二計画期間）
A5: １ 事業者の概要
A6: 事業者の名称 | E6: =IF(はじめに!E6="","",はじめに!E6) -> 
A7: 市内代表事業所の名称 | E7: =IF(はじめに!E14="","",はじめに!E14) -> 
A8: 市内代表事業所の所在地 | E8: =IF(はじめに!E16="","",はじめに!E16) -> 
A9: 主たる業種 | E9: =IF(はじめに!E18="","",はじめに!E18) -> 
A12: ２ 温室効果ガス排出抑制のための基本方針
A15: ３ 温室効果ガス排出抑制のための組織体制
A23: ４ 温室効果ガスの排出の状況及び排出抑制に係る目標
A24: 基準年度 | C24: 温室効果ガス の排出の状況 | F24: 基準排出量 | H24: =IF('事業所排出量内訳 (基準年度)'!N4=0,"",'事業所排出量内訳 (基準年度)'!R12) ->  | J24: t-CO2 | K24: 基準原単位 | M24: =IF('事業所排出量内訳 (基準年度)'!N4=0,"",'事業所排出量内訳 (基準年度)'!R15) ->  | O24: t-CO2/ | P24: =IF('事業所排出量内訳 (基準年度)'!D51="","",'事業所排出量内訳 (基準年度)'!D51) -> 
C25: 温室効果ガス 排出抑制に係る 目標 | F25: 目標排出量 | J25: t-CO2 | K25: 目標原単位 | O25: t-CO2/ | P25: =IF(P24="","",P24) -> 
A26: =IF(はじめに!H3="","",はじめに!H3) -> 2025 | B26: 年度 | F26: 削減率 | H26: =IFERROR((IF($H$25="","",INT(($H$24-H25)/$H$24*10000)/100)),"") ->  | J26: % | K26: 削減率 | M26: =IFERROR(IF($M$25="","",INT(($M$24-M25)/$M$24*10000)/100),"") ->  | N26: =IF($F$5="","",INT(($F$5-N25)/$F$5*100000)/1000) ->  | O26: %
A27: (目標年度) | C27: 非化石エネルギー自動車割合（任意入力） | O27: %
A28: 目標設定の考え方

Sheet 計画書② (取組） (hidden)
A3: ５の１ 重点的に実施する取組の実施計画（基本対策） | O3: 基準年度 | AB3: 項目欄行数 | AC3: 項目数 | AD3: 項目空白欄 | AK3: 回答白欄
A4: 番号 | B4: 分類 | C4: 項目 | D4: 対策内容 | E4: 実施状況 （基準年度） | F4: 実施予定 | I4: 状況 | J4: 項目数 | K4: 評価指標 | M4: 実施予定 | N4: 項目数 | O4: 未実施 | AA4: 基本対策 | AB4: 10 | AC4: =COUNTA(C5:C16) -> 12 | AD4: =COUNTBLANK(C5:C16) -> 0 | AE4: 実施状況 | AF4: 第1年度 | AG4: 第2年度 | AH4: 第3年度 | AI4: 予定なし | AJ4: 空欄 | AK4: =COUNTBLANK(F5:F36) -> 31
A5: 1 | B5: 一般管理事項 | C5: エネルギー管理推進体制の整備 | D5: エネルギー管理推進体制が整備されている。エネルギー管理推進体制の中で、エネルギー管理が推進されている。 | I5: 実施済 | J5: =COUNTIF($E$5:$E$16,$I5) -> 0 | K5: 5 | M5: 第1年度 | N5: =SUM(O5:O5) -> 0 | O5: =COUNTIFS($E$5:$E$16,O$4,$F$5:$F$16,$M5) -> 0 | AD5: 実施済 | AE5: =J5 -> 0 | AF5: =COUNTIFS($E$5:$E$16,$AD5,$F$5:$F$16,AF$4) -> 0 | AG5: 0 | AH5: =COUNTIFS($E$5:$E$16,$AD5,$F$5:$F$16,AH$4) -> 0 | AI5: =COUNTIFS($E$5:$E$16,$AD5,$F$5:$F$16,AI$4) -> 0 | AJ5: =COUNTIFS($E$5:$E$16,$AD5,$F$5:$F$16,"") -> 0
A6: 2 | B6: 一般管理事項 | C6: 省エネルギー教育の実施 | D6: 省エネルギー、地球温暖化防止に関する研修、教育を定期的に実施し、実施記録を残している。 | I6: 未実施 | J6: =COUNTIF($E$5:$E$16,$I6) -> 0 | K6: 0 | M6: 第2年度 | N6: =SUM(O6:O6) -> 0 | O6: =COUNTIFS($E$5:$E$16,O$4,$F$5:$F$16,$M6) -> 0 | AD6: 未実施 | AE6: =J6 -> 0 | AF6: 0 | AG6: 0 | AH6: =COUNTIFS($E$5:$E$16,$AD6,$F$5:$F$16,AH$4) -> 0 | AI6: =COUNTIFS($E$5:$E$16,$AD6,$F$5:$F$16,AI$4) -> 0 | AJ6: =COUNTIFS($E$5:$E$16,$AD5,$F$5:$F$16,"") -> 0
A7: 3 | B7: 一般管理事項 | C7: エネルギー使用量の把握 | D7: エネルギー使用量や走行距離を車両別に定期的に把握・記録されている。 | I7: 非該当 | J7: =COUNTIF($E$5:$E$16,$I7) -> 0 | K7: - | M7: 第3年度 | N7: =SUM(O7:O7) -> 0 | O7: =COUNTIFS($E$5:$E$16,O$4,$F$5:$F$16,$M7) -> 0 | AD7: 非該当 | AE7: =J7 -> 0 | AF7: 0 | AG7: 0 | AH7: =COUNTIFS($E$5:$E$16,$AD7,$F$5:$F$16,AH$4) -> 0 | AI7: =COUNTIFS($E$5:$E$16,$AD7,$F$5:$F$16,AI$4) -> 0 | AJ7: =COUNTIFS($E$5:$E$16,$AD6,$F$5:$F$16,"") -> 0
A8: 4 | B8: 一般管理事項 | C8: エコドライブ推進体制の整備 | D8: エコドライブ推進に関する責任者の設置、実践方法に関するマニュアルを作成するなど、推進体制を整備している。 | I8: 合計 | J8: 12 | K8: 50 | M8: 予定なし | N8: =SUM(O8:O8) -> 0 | O8: =COUNTIFS($E$5:$E$16,O$4,$F$5:$F$16,$M8) -> 0 | AD8: 合計 | AE8: =J8 -> 12 | AF8: =SUM(AF5:AF7) -> 0 | AG8: =SUM(AG5:AG7) -> 0 | AH8: 0 | AI8: 0 | AJ8: 0
A9: 5 | B9: 一般管理事項 | C9: エコドライブ教育の実施 | D9: 車両を運転する全社員に対するエコドライブに関する研修、教育を定期的に実施している。 | I9: 基準年度 | J9: =IF(COUNTBLANK(E5:E16)=12,"",IFERROR(J5/(J8-J7),0)) ->  | K9: =IF(J9="","",ROUNDUP($J$9*$K$8,0)) ->  | M9: 合計 | N9: =SUM(N5:N8) -> 0 | O9: =SUM(O5:O8) -> 0 | AB9: 項目欄行数 | AC9: 項目数 | AD9: 項目空白欄 | AK9: 回答白欄
A10: 6 | B10: ボイラー、工業炉、熱交換器等 | C10: エコドライブ実践 | D10: エコドライブ10のすすめを実践し、チェックシート等に記録している。 | I10: 計画期間満了時 | J10: =IF(COUNTBLANK(E5:E16)=12,"",IFERROR(SUM(J5,O5,O6,O7)/(J8-J7),0)) ->  | K10: =IF(J10="","",ROUNDUP($J$10*$K$8,0)) ->  | AA10: 選択対策 | AB10: 15 | AC10: =COUNTA(C21:C35) -> 0 | AD10: =COUNTBLANK(C21:C35) -> 15 | AE10: 実施状況 | AF10: 第1年度 | AG10: 第2年度 | AH10: 第3年度 | AJ10: 空欄 | AK10: =COUNTBLANK(F41:F60) -> 20
A11: 7 | B11: ボイラー、工業炉、熱交換器等 | C11: 車両の維持管理 | D11: 車両の点検・整備に関する責任者の設置、マニュアルの作成等、自動車の維持管理体制が整備されている。 | AD11: 実施済 | AE11: =J21 -> 0 | AF11: =COUNTIFS($E$21:$E$35,$AD11,$F$21:$F$35,AF$10) -> 0 | AG11: =COUNTIFS($E$21:$E$35,$AD11,$F$21:$F$35,AG$10) -> 0 | AH11: =COUNTIFS($E$21:$E$35,$AD11,$F$21:$F$35,AH$10) -> 0 | AJ11: =COUNTIFS($E$21:$E$35,$AD11,$F$21:$F$35,"") -> 0
A12: 8 | B12: ボイラー、工業炉、熱交換器等 | C12: 車両の性能管理 | D12: 日常及び定期的な保守・点検、修理が行われ、記録されている。 | AD12: 一部実施済 | AE12: =J22 -> 0 | AF12: =COUNTIFS($E$21:$E$35,$AD12,$F$21:$F$35,AF$10) -> 0 | AG12: =COUNTIFS($E$21:$E$35,$AD12,$F$21:$F$35,AG$10) -> 0 | AH12: =COUNTIFS($E$21:$E$35,$AD12,$F$21:$F$35,AH$10) -> 0 | AJ12: =COUNTIFS($E$21:$E$35,$AD12,$F$21:$F$35,"") -> 0
A13: 9 | B13: ボイラー、工業炉、熱交換器等 | C13: 効率的なルート選定 | D13: 事前に目的地までの効率的なルートを選定し、運転者に伝える仕組みが整備されている。 | AD13: 未実施 | AE13: =J23 -> 0 | AF13: =COUNTIFS($E$21:$E$35,$AD13,$F$21:$F$35,AF$10) -> 0 | AG13: =COUNTIFS($E$21:$E$35,$AD13,$F$21:$F$35,AG$10) -> 0 | AH13: =COUNTIFS($E$21:$E$35,$AD13,$F$21:$F$35,AH$10) -> 0 | AJ13: =COUNTIFS($E$21:$E$35,$AD13,$F$21:$F$35,"") -> 0
A14: 10 | C14: 効率的な自動車管理 | D14: 輸送需要を把握し、目的や輸送量に応じた自動車を使用するなど、適切な車両管理を行っている。
A15: 11 | C15: 照明器具の点灯時間管理 | D15: 照明器具の点灯時間がルール化されている。不要な照明の使用や消し忘れをチェックする仕組みがある。センサー等による制御が導入されている。
A16: 12 | B16: ボイラー、工業炉、熱交換器等 | C16: 事務所機器の待機電力管理 | D16: PC、OA機器等の事務所機器が省エネモードに設定されており、長時間不使用の場合には電源を切ることがルール化されている。PC、OA機器等の事務所機器がルールに従って運転されている。 | AD16: 合計 | AE16: =J24 -> 0 | AF16: =SUM(AF11:AF13) -> 0 | AG16: =SUM(AG11:AG13) -> 0 | AH16: 0 | AJ16: 0
AB17: 項目欄行数 | AC17: 項目数 | AD17: 項目空白欄 | AK17: 回答白欄
AA18: その他の対策 | AB18: 10 | AC18: =COUNTA(C40:C49) -> 0 | AD18: =COUNTBLANK(C40:C49) -> 10 | AE18: 実施状況 | AF18: 第1年度 | AG18: 第2年度 | AH18: 第3年度 | AJ18: 空欄 | AK18: =COUNTBLANK(F40:F49) -> 10
A19: ５の２ 重点的に実施する取組の実施計画（選択対策） | AD19: 実施済 | AE19: =J40 -> 0 | AF19: =COUNTIFS($E$40:$E$49,$AD19,$F$40:$F$49,AF$18) -> 0 | AG19: =COUNTIFS($E$40:$E$49,$AD19,$F$40:$F$49,AG$18) -> 0 | AH19: =COUNTIFS($E$40:$E$49,$AD19,$F$40:$F$49,AH$18) -> 0 | AJ19: =COUNTIFS($E$40:$E$49,$AD19,$F$40:$F$49,"") -> 0
A20: 番号 | B20: 分類 | C20: 項目 | D20: 対策内容 | E20: 実施状況 （基準年度） | F20: 実施予定 | I20: 状況 | J20: 項目数 | K20: 評価指標 | M20: 実施予定 | N20: 項目数 | O20: 一部実施済 | P20: 未実施 | AD20: 未実施 | AE20: =J41 -> 0 | AF20: =COUNTIFS($E$40:$E$49,$AD20,$F$40:$F$49,AF$18) -> 0 | AG20: 0 | AH20: 0 | AJ20: =COUNTIFS($E$40:$E$49,$AD20,$F$40:$F$49,"") -> 0
A21: 1 | D21: =IFERROR(VLOOKUP(C21,選択対策,2,0),"") ->  | I21: 実施済 | J21: =COUNTIF($E$21:$E$35,$I21) -> 0 | K21: 5 | M21: 第1年度 | N21: =SUM(O21:P21) -> 0 | O21: =COUNTIFS($E$21:$E$35,O$20,$F$21:$F$35,$M21) -> 0 | P21: =COUNTIFS($E$21:$E$35,P$20,$F$21:$F$35,$M21) -> 0 | AD21: 合計 | AE21: =J67 -> 0 | AF21: =SUM(AF19:AF20) -> 0 | AG21: =SUM(AG19:AG20) -> 0 | AH21: 0 | AJ21: 0
A22: 2 | I22: 一部実施済 | J22: =COUNTIF($E$21:$E$35,$I22) -> 0 | K22: 3 | M22: 第2年度 | N22: 0 | O22: =COUNTIFS($E$21:$E$35,O$20,$F$21:$F$35,$M22) -> 0 | P22: 0
A23: 3 | I23: 未実施 | J23: =COUNTIF($E$21:$E$35,$I23) -> 0 | K23: 0 | M23: 第3年度 | N23: =SUM(O23:P23) -> 0 | O23: 0 | P23: 0
A24: 4 | I24: 合計 | J24: =SUM(J21:J23) -> 0 | K24: 50
A25: 5 | I25: 基準年度 評価点 | J25: =IF(J21*K21+J22*K22>K24,K24,J21*K21+J22*K22) -> 0
A26: 6 | I26: 計画期間満了時 評価点 | J26: =IF((J21+SUM(N21:N23))*K21+(J22-SUM(O21:O23))*K22>K24,K24,(J21+SUM(N21:N23))*K21+(J22-SUM(O21:O23))*K22) -> 0
A27: 7
A28: 8
A29: 9
A30: 10
A31: 11
A32: 12
A33: 13
A34: 14
A35: 15
A38: ５の３ 重点的に実施する取組の実施計画（その他の対策）
A39: 番号 | B39: 項目 | D39: 具体的な取組内容（自由記述） | E39: 実施状況 （基準年度） | F39: 実施予定 | I39: 状況 | J39: 項目数 | K39: 評価指標 | M39: 実施予定 | N39: 項目数 | O39: 評価指標
A40: 1 | I40: 実施済 | J40: =COUNTIF($E$40:$E$49,$I40) -> 0 | K40: 5 | M40: 第1年度 | N40: =COUNTIFS($E$40:$E$49,$I$41,$F$40:$F$49,$M40) -> 0 | O40: 5
A41: 2 | I41: 未実施 | J41: =COUNTIF($E$40:$E$49,$I41) -> 0 | K41: 0 | M41: 第2年度 | N41: =COUNTIFS($E$40:$E$49,$I$41,$F$40:$F$49,$M41) -> 0 | O41: 5
A42: 3 | I42: 合計 | J42: =SUM(J40:J41) -> 0 | K42: 25 | M42: 第3年度 | N42: =COUNTIFS($E$40:$E$49,$I$41,$F$40:$F$49,$M42) -> 0 | O42: 5
A43: 4 | I43: 基準年度 評価点 | J43: =IF(J40*K40>K42,K42,J40*K40) -> 0 | M43: 合計 | N43: =SUM(N40:N42) -> 0 | O43: 25
A44: 5 | I44: 計画期間満了時 評価点 | J44: =IF(J40*K40+N43*O40>O43,O43,J40*K40+N43*O40) -> 0
A45: 6
A46: 7
A47: 8
A48: 9
A49: 10

Sheet 計画書③（任意記載） (hidden)
A2: 参考１ これまで実施した削減対策の実績（詳細）
A3: 番号 | B3: 対策内容 | C3: 実施年度 | D3: 推計削減量 （t-CO2/年） | F3: 写真
A4: 1
A5: 2
A6: 3
A7: 4
A8: 5
A9: 6
A10: 7
A11: 8
A12: 9
A13: 10
A15: 参考２ 計画期間内に実施を予定している削減対策（詳細）
A16: 番号 | B16: 対策内容 | C16: 実施予定 年度 | D16: 推計削減量 （t-CO2/年） | F16: 写真
A17: 1
A18: 2
A19: 3
A20: 4
A21: 5
A22: 6
A23: 7
A24: 8
A25: 9
A26: 10

Sheet 事業所排出量内訳 (基準年度) (hidden)
C1: 温室効果ガス排出量内訳 | H1: 基準年度 | I1: ="（"&はじめに!E4&"年度）" -> （年度） | P1: =はじめに!E4 -> 0 | Q1: １．エネルギー起源二酸化炭素（CO2）排出量
Q2: 熱量合計 | R2: =SUM(I13,I20) -> 0 | S2: GJ
C3: １．エネルギー起源二酸化炭素（CO2）排出量 | Q3: 原油換算 | R3: =R2*0.0258 -> 0 | S3: KL
C4: 燃料の種類 | E4: 使用量 | F4: 外部 供給量 | G4: 実使用量 | H4: 単位 | I4: 熱量 (GJ) | J4: 排出量 (t-CO2) | N4: =IF(R2=0,0,1) -> 0 | Q4: 排出量合計 | R4: =ROUNDDOWN(SUM(J13,J20),0) -> 0 | S4: t-CO2
L5: エネルギー名称区分2022 | M5: エネルギー名称区分2023 | N5: 単位発熱量 | O5: 炭素排出係数
C6: 揮発油（ガソリン） | G6: =IF(AND(E6="",F6=""),"",SUM(E6)-SUM(F6)) ->  | H6: kl | I6: =IFERROR(IF(G6="","",$G6*N6),"-------------") ->  | J6: =IFERROR(IF(G6="","",$I6*O6*44/12),"----------") ->  | L6: 揮発油 | M6: 揮発油 | N6: =IF($P$1=2022,VLOOKUP(L6,係数2022,7,0),VLOOKUP(M6,係数2023,7,0)) -> 33.4 | O6: =IF($P$1=2022,VLOOKUP(L6,係数2022,9,0),VLOOKUP(M6,係数2023,9,0)) -> 0.0187 | Q6: ２．エネルギー起源二酸化炭素（CO2）以外の温室効果ガス排出量
C7: 軽油 | G7: =IF(AND(E7="",F7=""),"",SUM(E7)-SUM(F7)) ->  | H7: kl | I7: =IFERROR(IF(G7="","",$G7*N7),"-------------") ->  | J7: =IFERROR(IF(G7="","",$I7*O7*44/12),"----------") ->  | L7: 軽油 | M7: 軽油 | N7: =IF($P$1=2022,VLOOKUP(L7,係数2022,7,0),VLOOKUP(M7,係数2023,7,0)) -> 38 | O7: =IF($P$1=2022,VLOOKUP(L7,係数2022,9,0),VLOOKUP(M7,係数2023,9,0)) -> 0.0188 | Q7: 排出量合計 | R7: =SUM(E33) -> 0 | S7: t-CO2
C8: 液化石油ガス (LPG) | H8: t | I8: =IFERROR(IF(G8="","",$G8*N8),"-------------") ->  | J8: =IFERROR(IF(G8="","",$I8*O8*44/12),"----------") ->  | L8: 液化石油ガス (LPG) | M8: 液化石油ガス (LPG) | N8: =IF($P$1=2022,VLOOKUP(L8,係数2022,7,0),VLOOKUP(M8,係数2023,7,0)) -> 50.1 | O8: =IF($P$1=2022,VLOOKUP(L8,係数2022,9,0),VLOOKUP(M8,係数2023,9,0)) -> 0.0163
C9: 液化天然ガス (LNG) | H9: t | I9: =IFERROR(IF(G9="","",$G9*N9),"-------------") ->  | J9: =IFERROR(IF(G9="","",$I9*O9*44/12),"----------") ->  | L9: 液化天然ガス (LNG) | M9: 液化天然ガス (LNG) | N9: =IF($P$1=2022,VLOOKUP(L9,係数2022,7,0),VLOOKUP(M9,係数2023,7,0)) -> 54.7 | O9: =IF($P$1=2022,VLOOKUP(L9,係数2022,9,0),VLOOKUP(M9,係数2023,9,0)) -> 0.0139 | Q9: ３．クレジット等による削減量
C10: 都市ガス（CNG含む） | H10: 千m3 | I10: =IFERROR(IF(G10="","",$G10*N10),"-------------") ->  | J10: =IFERROR(IF(G10="","",$I10*O10*44/12),"----------") ->  | L10: 都市ガス | M10: 都市ガス | N10: =IF($P$1=2022,VLOOKUP(L10,係数2022,7,0),VLOOKUP(M10,係数2023,7,0)) -> 45 | O10: =IF($P$1=2022,VLOOKUP(L10,係数2022,9,0),VLOOKUP(M10,係数2023,9,0)) -> 0.014 | Q10: 削減量合計 | R10: =SUM(E45) -> 0 | S10: t-CO2
C11: ="その他（"&Q22&"）" -> その他（）
C12: 水素 | H12: t | I12: =IFERROR(IF(G12="","",$G12*N12),"-------------") ->  | M12: 水素 | N12: =IF($P$1=2022,VLOOKUP(L12,係数2022,7,0),VLOOKUP(M12,係数2023,7,0)) -> 142 | O12: =IF($P$1=2022,VLOOKUP(L12,係数2022,9,0),VLOOKUP(M12,係数2023,9,0)) -> ー | Q12: 温室効果ガス総排出量 | R12: =SUM(R4,R7)-R10 -> 0 | S12: t-CO2
C13: 小 計 | E13: － | F13: － | G13: － | H13: － | I13: =IF(COUNTBLANK(I6:I12)=7,"",SUM(I6:I12)) ->  | J13: =IF(COUNTBLANK(J6:J11)=6,"",SUM(J6:J11)) -> 
Q14: ４．原単位の指標
C15: 電気の種類 | E15: 使用量 | F15: 外部 供給量 | G15: 実使用量 | H15: 単位 | I15: 熱量 (GJ) | J15: 排出量 (t-CO2) | Q15: 排出原単位 | R15: =IF(R12="","",IFERROR(ROUND(R12/D52,3-INT(LOG(R12/D52))),)) -> 0 | S15: ="t-CO2/"&D51 -> t-CO2/
L16: エネルギー名称区分2022 | M16: エネルギー名称区分2023 | N16: 単位発熱量 | O16: 炭素排出係数
C17: 電気事業者 | D17: 昼間買電 | E17: =R31 ->  | G17: =E17 ->  | H17: 千kWh | I17: =IFERROR(IF(G17="","",G17*N17),"----------") ->  | J17: =U31 ->  | L17: 電気事業者_昼間買電 | M17: 電気事業者_昼間買電 | N17: =IF($P$1=2022,VLOOKUP(L17,係数2022,7,0),VLOOKUP(M17,係数2023,7,0)) -> 8.64 | O17: =IF($P$1=2022,VLOOKUP(L17,係数2022,9,0),VLOOKUP(M17,係数2023,9,0)) -> ー | Q17: ５．年度末使用車両数
D18: 夜間買電 | E18: =S31 ->  | G18: =E18 ->  | H18: 千kWh | I18: =IFERROR(IF(G18="","",G18*N18),"----------") ->  | J18: =V31 ->  | L18: 電気事業者_夜間買電 | M18: 電気事業者_夜間買電 | N18: =IF($P$1=2022,VLOOKUP(L18,係数2022,7,0),VLOOKUP(M18,係数2023,7,0)) -> 8.64 | O18: =IF($P$1=2022,VLOOKUP(L18,係数2022,9,0),VLOOKUP(M18,係数2023,9,0)) -> ー | Q18: 非化石エネルギー自動車割合 | R18: =IF(OR(D68=0,D68="",H68=0,H68=""),0,H68/D68*100) -> 0 | S18: ％
C19: その他買電 | E19: =R40 ->  | G19: =E19 ->  | H19: 千kWh | I19: =IFERROR(IF(G19="","",G19*N19),"----------") ->  | J19: =IF(E19="","",T40) ->  | L19: その他買電 | M19: その他買電 | N19: =IF($P$1=2022,VLOOKUP(L19,係数2022,7,0),VLOOKUP(M19,係数2023,7,0)) -> 8.64 | O19: =IF($P$1=2022,VLOOKUP(L19,係数2022,9,0),VLOOKUP(M19,係数2023,9,0)) -> ー
C20: 小 計 | E20: =IF(COUNTBLANK(E17:E19)=3,"",SUM(E17:E19)) ->  | G20: =IF(COUNTBLANK(G17:G19)=3,"",SUM(G17:G19)) ->  | H20: 千kWh | I20: =IF(COUNTBLANK(I17:I19)=3,"",SUM(I17:I19)) ->  | J20: =IF(COUNTBLANK(J17:J19)=3,"",SUM(J17:J19)) -> 
Q21: その他の名称 | R21: 換算係数 | S21: 排出係数
C23: ２．エネルギー起源二酸化炭素（CO2）以外の温室効果ガス排出量
C24: 温室効果ガスの種類 | E24: 排出量 (t-CO2) | Q24: 電気事業者名 | R24: 昼間買電量 (千kWh) | S24: 夜間買電量 (千kWh) | T24: 排出係数 (tCO2/千kWh) | U24: 昼間排出量 (t-CO2) | V24: 夜間排出量 (t-CO2)
C26: 非エネルギー起源二酸化炭素（CO2） | U26: =IF($T26="","",R26*$T26) ->  | V26: =IF($T26="","",S26*$T26) -> 
C27: メタン（CH4） | U27: =IF($T27="","",R27*$T27) -> 
C28: 一酸化二窒素（N2O）
C29: ハイドロフルオロカーボン（HFC）
C30: パーフルオロカーボン（PFC）
C31: 六フッ化硫黄（SF6） | Q31: 合計 | R31: =IF(COUNTBLANK(R26:S30)=10,"",SUM(R26:R30)) ->  | S31: =IF(COUNTBLANK(R26:S30)=10,"",SUM(S26:S30)) ->  | U31: =IF(COUNTBLANK(R26:S30)=10,"",SUM(U26:U30)) ->  | V31: =IF(COUNTBLANK(R26:S30)=10,"",SUM(V26:V30)) -> 
C32: 三フッ化窒素（NF3）
C33: 合 計 | E33: =IF(COUNTBLANK(E26:E32)=7,"",SUM(E26:E32)) ->  | Q33: その他買電 | R33: 買電量 (千kWh) | S33: 排出係数 (tCO2/千kWh) | T33: 排出量 (t-CO2)
C35: ３．クレジット等による削減量 | T35: =IF(S35="","",R35*S35) -> 
C36: クレジット等の種類 | E36: 削減量 (t-CO2) | T36: =IF(S36="","",R36*S36) -> 
T37: =IF(S37="","",R37*S37) -> 
T38: =IF(S38="","",R38*S38) -> 
T39: =IF(S39="","",R39*S39) -> 
Q40: 合計 | R40: =IF(COUNTBLANK(R35:R39)=5,"",SUM(R35:R39)) ->  | T40: =IF(COUNTBLANK(R35:R39)=5,"",SUM(T35:T39)) -> 
C45: 合 計 | E45: =IF(COUNTBLANK(E38:E44)=7,"",SUM(E38:E44)) -> 
C47: ４．原単位の指標
C48: 原単位の指標（分母）
C50: 名称
C51: 単位
C52: 数値
C55: ５．年度末使用車両数
C56: 車種 | D56: 全台数 （台） | E56: 全台数のうち下記の車種の内訳 | H56: 台数 （台）
C58: トラック | E58: EV・PHV・水素自動車
E59: ハイブリッド自動車
E60: 低炭素ディーゼル自動車・天然ガス自動車
C61: バス | E61: EV・PHV・水素自動車
E62: ハイブリッド自動車
E63: 低炭素ディーゼル自動車・天然ガス自動車
C64: タクシー | E64: EV・PHV・水素自動車
E65: ハイブリッド自動車
C66: 一般車両 | E66: EV・PHV・水素自動車
E67: ハイブリッド自動車
C68: 合 計 | D68: =IF(COUNTBLANK(D58)+COUNTBLANK(D61)+COUNTBLANK(D64)+COUNTBLANK(D66)=4,"",SUM(D58,D61,D64,D66)) ->  | E68: 合 計 | H68: =IF(COUNTBLANK(H58:H67)=10,"",SUM(H58:H67)) -> 

Sheet 計画書提出書 (hidden)
B3: 事業者温室効果ガス削減計画書 提出書
L5: =IF(はじめに!E5="","",はじめに!E5) ->  | M5: 年 | N5: =IF(はじめに!G5="","",はじめに!G5) ->  | O5: 月 | P5: =IF(はじめに!I5="","",はじめに!I5) ->  | Q5: 日
A6: （あて先）仙台市長
G8: 住所 | J8: =IF(はじめに!E7="","",はじめに!E7) -> 
G9: 法人の名称 | J9: =IF(はじめに!E6="","",はじめに!E6) -> 
G10: 代表者氏名 | J10: =IF(はじめに!E8="","",はじめに!E8) -> 
A12: 仙台市地球温暖化対策等の推進に関する条例第10条第1項の規定により、別紙のとおり事業者温室効果ガス削減計画書を提出します。
A15: 事業者の名称 | D15: =IF(J9="","",J9) -> 
A16: 市内代表事業所の 名称 | D16: =IF(はじめに!E14="","",はじめに!E14) -> 
A17: 市内代表事業所の 所在地 | D17: =IF(はじめに!E16="","",はじめに!E16) -> 
A19: 該当する 事業者の要件 | D19: =IF(はじめに!S10=TRUE,"〇","") ->  | E19: ①原油換算エネルギー使用量が1,500kL以上の事業所 （条例第2条第5号イに該当する特定事業者）
D20: =IF(はじめに!S11=TRUE,"〇","") ->  | E20: ②エネルギー起源CO2を除くいずれかの物質の温室効果ガス排出量が3,000トン以上の事業所（条例第2条第5号ロに該当する特定事業者）
D21: =IF(はじめに!S12=TRUE,"〇","") -> 〇 | E21: ③市内に100台以上の自動車を所有する運送事業者 （条例第2条第5号ハに該当する特定事業者）
D22: =IF(はじめに!S13=TRUE,"〇","") ->  | E22: ④任意提出事業者 （条例第15条第1項に該当する一般事業者）
A24: 連絡先 | D24: 担当者 | F24: 部署名 | H24: =IF(はじめに!E21="","",はじめに!E21) -> 
F25: 氏名 | H25: =IF(はじめに!E24="","",はじめに!E24) -> 
D26: 郵便番号 | H26: =IF(はじめに!F22="","",はじめに!F22 & "-") & IF(はじめに!H22="","",はじめに!H22) -> 
D27: 所在地 | H27: =IF(はじめに!E23="","",はじめに!E23) -> 
D28: 電話番号 | H28: =IF(はじめに!E25="","",はじめに!E25) -> 
D29: ＦＡＸ番号 | H29: =IF(はじめに!E26="","",はじめに!E26) -> 
D30: メールアドレス | H30: =IF(はじめに!E27="","",はじめに!E27) -> 
A33: ※受理 | F33: ※整理番号
F34: ※備考

Sheet 計画書（公表用） (hidden)
B3: 事業者温室効果ガス削減計画書概要（第二計画期間）
A5: １ 事業者の概要
A6: 事業者の名称 | E6: =IF(計画書提出書!D15="","",計画書提出書!D15) -> 
A7: 市内代表事業所の名称 | E7: =IF(計画書提出書!D16="","",計画書提出書!D16) -> 
A8: 市内代表事業所の所在地 | E8: =IF(計画書提出書!D17="","",計画書提出書!D17) -> 
A9: 主たる事業 | E9: =IF(はじめに!S17="","",はじめに!S17) -> 
A10: 事業者の該当要件 | E10: =IF(計画書提出書!D19="","",計画書提出書!D19) ->  | F10: 条例第2条第5号イに該当する特定事業者
E11: =IF(計画書提出書!D20="","",計画書提出書!D20) ->  | F11: 条例第2条第5号ロに該当する特定事業者
E12: =IF(計画書提出書!D21="","",計画書提出書!D21) -> 〇 | F12: 条例第2条第5号ハに該当する特定事業者
E13: =IF(計画書提出書!D22="","",計画書提出書!D22) ->  | F13: 条例第15条第1項に該当する一般事業者
A14: 温室効果ガス 排出抑制の ための基本方針 | E14: =IF('計画書①（事業者概要・目標）'!A13="","",'計画書①（事業者概要・目標）'!A13) -> 
A16: ２ 温室効果ガスの削減目標等
A17: 温室効果ガスの 排出状況 及び削減目標 | E17: 基準年度 | G17: =IF(はじめに!E4="","",はじめに!E4) ->  | H17: 年度 | I17: 基準排出量 | K17: =IF('計画書①（事業者概要・目標）'!H24="","",'計画書①（事業者概要・目標）'!H24) ->  | M17: t-CO2 | N17: 基準原単位 | P17: =IF('計画書①（事業者概要・目標）'!M24="","",'計画書①（事業者概要・目標）'!M24) -> 
E18: 目標年度 | G18: =IF(はじめに!H3="","",はじめに!H3) -> 2025 | H18: 年度 | I18: 目標排出量 | K18: =IF('計画書①（事業者概要・目標）'!H25="","",'計画書①（事業者概要・目標）'!H25) ->  | M18: t-CO2 | N18: 目標原単位 | P18: =IF('計画書①（事業者概要・目標）'!M25="","",'計画書①（事業者概要・目標）'!M25) -> 
I19: 削減率 | K19: =IF('計画書①（事業者概要・目標）'!H26="","",'計画書①（事業者概要・目標）'!H26) ->  | M19: ％ | N19: 削減率 | P19: =IF('計画書①（事業者概要・目標）'!M26="","",'計画書①（事業者概要・目標）'!M26) ->  | Q19: ％
E20: 目標設定の考え方 | G20: =IF('計画書①（事業者概要・目標）'!C28="","",'計画書①（事業者概要・目標）'!C28) -> 
A22: ３ 温室効果ガスの排出抑制に関する取組
A23: 基本対策の実施計画 | E23: 基準年度実施率 | H23: =IF('計画書② (取組）'!J9="","",'計画書② (取組）'!J9*100) ->  | J23: ％ | K23: 目標年度実施率 | N23: =IF('計画書② (取組）'!J10="","",'計画書② (取組）'!J10*100) ->  | P23: ％
A24: 選択対策の実施計画 | E24: 項目 | P24: 実施年度
E25: =IF('計画書② (取組）'!C21="","",'計画書② (取組）'!C21) ->  | P25: =IF('計画書（公表用）'!E25="","",IF('計画書② (取組）'!E21="実施済",'計画書② (取組）'!E21,'計画書② (取組）'!F21)) -> 
E26: =IF('計画書② (取組）'!C22="","",'計画書② (取組）'!C22) ->  | P26: =IF('計画書（公表用）'!E26="","",IF('計画書② (取組）'!E22="実施済",'計画書② (取組）'!E22,'計画書② (取組）'!F22)) -> 
E27: =IF('計画書② (取組）'!C23="","",'計画書② (取組）'!C23) ->  | P27: =IF('計画書（公表用）'!E27="","",IF('計画書② (取組）'!E23="実施済",'計画書② (取組）'!E23,'計画書② (取組）'!F23)) -> 
E28: =IF('計画書② (取組）'!C24="","",'計画書② (取組）'!C24) ->  | P28: =IF('計画書（公表用）'!E28="","",IF('計画書② (取組）'!E24="実施済",'計画書② (取組）'!E24,'計画書② (取組）'!F24)) -> 
E29: =IF('計画書② (取組）'!C25="","",'計画書② (取組）'!C25) ->  | P29: =IF('計画書（公表用）'!E29="","",IF('計画書② (取組）'!E25="実施済",'計画書② (取組）'!E25,'計画書② (取組）'!F25)) -> 
A30: その他の対策の 実施計画 | E30: 項目 | I30: 具体的な取組内容 | P30: 実施年度
E31: =IF('計画書② (取組）'!C40="","",'計画書② (取組）'!C40) ->  | I31: =IF('計画書② (取組）'!D40="","",'計画書② (取組）'!D40) ->  | P31: =IF(I31="","",IF('計画書② (取組）'!E40="実施済",'計画書② (取組）'!E40,'計画書② (取組）'!F40)) -> 
E32: =IF('計画書② (取組）'!C41="","",'計画書② (取組）'!C41) ->  | I32: =IF('計画書② (取組）'!D41="","",'計画書② (取組）'!D41) ->  | P32: =IF(I32="","",IF('計画書② (取組）'!E41="実施済",'計画書② (取組）'!E41,'計画書② (取組）'!F41)) -> 
E33: =IF('計画書② (取組）'!C42="","",'計画書② (取組）'!C42) ->  | I33: =IF('計画書② (取組）'!D42="","",'計画書② (取組）'!D42) ->  | P33: =IF(I33="","",IF('計画書② (取組）'!E42="実施済",'計画書② (取組）'!E42,'計画書② (取組）'!F42)) -> 
E34: =IF('計画書② (取組）'!C43="","",'計画書② (取組）'!C43) ->  | I34: =IF('計画書② (取組）'!D43="","",'計画書② (取組）'!D43) ->  | P34: =IF(I34="","",IF('計画書② (取組）'!E43="実施済",'計画書② (取組）'!E43,'計画書② (取組）'!F43)) -> 
E35: =IF('計画書② (取組）'!C44="","",'計画書② (取組）'!C44) ->  | I35: =IF('計画書② (取組）'!D44="","",'計画書② (取組）'!D44) ->  | P35: =IF(I35="","",IF('計画書② (取組）'!E44="実施済",'計画書② (取組）'!E44,'計画書② (取組）'!F44)) -> 

Sheet 報告書①（事業者概要・実績） (hidden)
C3: 事業者温室効果ガス削減報告書（第二計画期間） | M3: =" 第 "&はじめに!F29&" 年度分" -> 第 年度分
A5: １ 事業者の概要
A6: 事業者の名称 | E6: =IF(はじめに!E6="","",はじめに!E6) -> 
A7: 市内代表事業所の名称 | E7: =IF(はじめに!E14="","",はじめに!E14) -> 
A8: 市内代表事業所の所在地 | E8: =IF(はじめに!E16="","",はじめに!E16) -> 
A9: 主たる業種 | E9: =IF(はじめに!E18="","",はじめに!E18) -> 
A12: ２ 温室効果ガス排出抑制のための基本方針
A13: =IF('計画書①（事業者概要・目標）'!A13="","",'計画書①（事業者概要・目標）'!A13) -> 
A15: ３ 温室効果ガス排出抑制のための組織体制
A16: =IF('計画書①（事業者概要・目標）'!A16="","",'計画書①（事業者概要・目標）'!A16) -> 
A23: ４ 温室効果ガスの排出の状況等 | AG23: 4 | AI23: 50
A24: 基準年度 | C24: 温室効果ガス の排出の状況 | F24: 基準排出量 | H24: =IF('計画書①（事業者概要・目標）'!H24="","",'計画書①（事業者概要・目標）'!H24) ->  | J24: t-CO2 | K24: 基準原単位 | M24: =IF('計画書①（事業者概要・目標）'!M24="","",'計画書①（事業者概要・目標）'!M24) ->  | O24: t-CO2/ | P24: =IF('計画書①（事業者概要・目標）'!P24="","",'計画書①（事業者概要・目標）'!P24) ->  | AG24: 3 | AH24: 4 | AI24: 40
C25: 温室効果ガス 排出抑制に係る 目標 | F25: 目標排出量 | H25: =IF('計画書①（事業者概要・目標）'!H25="","",'計画書①（事業者概要・目標）'!H25) ->  | J25: t-CO2 | K25: 目標原単位 | M25: =IF('計画書①（事業者概要・目標）'!M25="","",'計画書①（事業者概要・目標）'!M25) ->  | O25: t-CO2/ | P25: =IF(P24="","",P24) ->  | U25: 削減率 | V25: 第1年度 | W25: 第2年度 | X25: 第3年度 | Y25: 平均 | Z25: 評価点 | AG25: 2 | AH25: 3 | AI25: 30
A26: =IF(はじめに!H3="","",はじめに!H3) -> 2025 | B26: 年度 | F26: 削減率 | H26: =IFERROR((IF($H$25="","",INT(($H$24-H25)/$H$24*10000)/100)),"") ->  | I26: =IF($F$5="","",INT(($F$5-I25)/$F$5*100000)/1000) ->  | J26: % | K26: 削減率 | M26: =IFERROR(IF($M$25="","",INT(($M$24-M25)/$M$24*10000)/100),"") ->  | N26: =IF($F$5="","",INT(($F$5-N25)/$F$5*100000)/1000) ->  | O26: %
A27: (目標年度) | C27: 非化石エネルギー自動車割合（任意入力） | M27: =IF('計画書①（事業者概要・目標）'!M27="","",'計画書①（事業者概要・目標）'!M27) ->  | O27: % | U27: 排出量 | V27: =IF(H29="","",H29) ->  | W27: =IF(H33="","",H33) ->  | X27: =IF(H37="","",H37) ->  | Y27: =IFERROR(AVERAGE(V27:X27),"") ->  | Z27: =IF(Y27="","",IF(Y27>=$AG$23,$AI$23,IF(AND(Y27>=$AG$24,Y27<$AH$24),$AI$24,IF(AND(Y27>=$AG$25,Y27<$AH$25),$AI$25,IF(AND(Y27>=$AG$27,Y27<$AH$27),$AI$27,IF(AND(Y27>=$AG$28,Y27<$AH$28),$AI$28,$AI$29)))))) ->  | AG27: 1 | AH27: 2 | AI27: 20
A28: 第１年度 | C28: =IF(はじめに!E3="","",はじめに!E3) ->  | E28: 年度 | F28: 排出量 | H28: =IF('事業所排出量内訳（第1年度）'!N4=0,"",'事業所排出量内訳（第1年度）'!R12) ->  | J28: t-CO2 | K28: 原単位 | M28: =IF('事業所排出量内訳（第1年度）'!N4=0,"",'事業所排出量内訳（第1年度）'!R15) ->  | O28: t-CO2/ | P28: =IF('計画書①（事業者概要・目標）'!$P$24="","",'計画書①（事業者概要・目標）'!$P$24) ->  | U28: 原単位 | V28: =IF(M29="","",M29) ->  | W28: =IF(M33="","",M33) ->  | X28: =IF(M37="","",M37) ->  | Y28: =IFERROR(AVERAGE(V28:X28),"") ->  | Z28: =IF(Y28="","",IF(Y28>=$AG$23,$AI$23,IF(AND(Y28>=$AG$24,Y28<$AH$24),$AI$24,IF(AND(Y28>=$AG$25,Y28<$AH$25),$AI$25,IF(AND(Y28>=$AG$27,Y28<$AH$27),$AI$27,IF(AND(Y28>=$AG$28,Y28<$AH$28),$AI$28,$AI$29)))))) ->  | AG28: 0 | AH28: 1 | AI28: 10
F29: 削減率 | H29: =IFERROR(IF(H28="","",INT(($H$24-H28)/$H$24*10000)/100),"") ->  | I29: =IF($F$7="","",INT(($F$7-I28)/$F$7*100000)/1000) ->  | J29: % | K29: 削減率 | M29: =IFERROR(IF(M28="","",INT(($M$24-M28)/$M$24*10000)/100),"") ->  | N29: =IF($F$7="","",INT(($F$7-N28)/$F$7*100000)/1000) ->  | O29: % | AH29: 0 | AI29: 0
C30: 非化石エネルギー自動車割合（任意入力） | M30: =IF(AND('事業所排出量内訳（第1年度）'!R2=0, COUNTBLANK('事業所排出量内訳（第1年度）'!E11:F11)=2),"",'事業所排出量内訳（第1年度）'!R18) ->  | O30: %
A31: 排出量等の 増減理由
A32: 第２年度 | C32: =IF(はじめに!E3="","",IF(C28>2024,"-",C28+1)) ->  | E32: 年度 | F32: 排出量 | H32: =IF('事業所排出量内訳（第2年度）'!N4=0,"",'事業所排出量内訳（第2年度）'!R12) ->  | J32: t-CO2 | K32: 原単位 | M32: =IF('事業所排出量内訳（第2年度）'!N4=0,"",'事業所排出量内訳（第2年度）'!R15) ->  | O32: t-CO2/ | P32: =IF('計画書①（事業者概要・目標）'!$P$24="","",'計画書①（事業者概要・目標）'!$P$24) -> 
F33: 削減率 | H33: =IFERROR(IF(H32="","",INT(($H$24-H32)/$H$24*10000)/100),"") ->  | I33: =IF($F$7="","",INT(($F$7-I32)/$F$7*100000)/1000) ->  | J33: % | K33: 削減率 | M33: =IFERROR(IF(M32="","",INT(($M$24-M32)/$M$24*10000)/100),"") ->  | N33: =IF($F$7="","",INT(($F$7-N32)/$F$7*100000)/1000) ->  | O33: %
C34: 非化石エネルギー自動車割合（任意入力） | M34: =IF(AND('事業所排出量内訳（第2年度）'!R2=0, COUNTBLANK('事業所排出量内訳（第2年度）'!E11:F11)=2),"",'事業所排出量内訳（第2年度）'!R18) ->  | O34: %
A35: 排出量等の 増減理由
A36: 第３年度 | C36: =IF(はじめに!E3="","",IF(C32>2024,"-",C32+1)) ->  | E36: 年度 | F36: 排出量 | H36: =IF('事業所排出量内訳（第3年度）'!N4=0,"",'事業所排出量内訳（第3年度）'!R12) ->  | J36: t-CO2 | K36: 原単位 | M36: =IF('事業所排出量内訳（第3年度）'!N4=0,"",'事業所排出量内訳（第3年度）'!R15) ->  | O36: t-CO2/ | P36: =IF('計画書①（事業者概要・目標）'!$P$24="","",'計画書①（事業者概要・目標）'!$P$24) -> 
F37: 削減率 | H37: =IFERROR(IF(H36="","",INT(($H$24-H36)/$H$24*10000)/100),"") ->  | I37: =IF($F$7="","",INT(($F$7-I36)/$F$7*100000)/1000) ->  | J37: % | K37: 削減率 | M37: =IFERROR(IF(M36="","",INT(($M$24-M36)/$M$24*10000)/100),"") ->  | N37: =IF($F$7="","",INT(($F$7-N36)/$F$7*100000)/1000) ->  | O37: %
C38: 非化石エネルギー自動車割合（任意入力） | M38: =IF(AND('事業所排出量内訳（第3年度）'!R2=0, COUNTBLANK('事業所排出量内訳（第3年度）'!E11:F11)=2),"",'事業所排出量内訳（第3年度）'!R18) ->  | O38: %
A39: 排出量等の 増減理由

Sheet 報告書② 第1年度(取組） (hidden)
A3: ５の１ 重点的に実施する取組の実施状況（基本対策）
A4: 番号 | B4: 分類 | C4: 項目 | D4: 対策内容 | E4: 実施状況
E5: 基準年度 | F5: 第１年度 | G5: 第２年度 | H5: 第３年度
A6: 1 | B6: 一般管理事項 | C6: エネルギー管理推進体制の整備 | D6: エネルギー管理推進体制が整備されている。エネルギー管理推進体制の中で、エネルギー管理が推進されている。 | E6: =IF('計画書② (取組）'!E5="","",'計画書② (取組）'!E5) -> 
A7: 2 | B7: 一般管理事項 | C7: 省エネルギー教育の実施 | D7: 省エネルギー、地球温暖化防止に関する研修、教育を定期的に実施し、実施記録を残している。 | E7: =IF('計画書② (取組）'!E6="","",'計画書② (取組）'!E6) -> 
A8: 3 | B8: 一般管理事項 | C8: エネルギー使用量の把握 | D8: エネルギー使用量や走行距離を車両別に定期的に把握・記録されている。 | E8: =IF('計画書② (取組）'!E7="","",'計画書② (取組）'!E7) -> 
A9: 4 | B9: 一般管理事項 | C9: エコドライブ推進体制の整備 | D9: エコドライブ推進に関する責任者の設置、実践方法に関するマニュアルを作成するなど、推進体制を整備している。 | E9: =IF('計画書② (取組）'!E8="","",'計画書② (取組）'!E8) -> 
A10: 5 | B10: 一般管理事項 | C10: エコドライブ教育の実施 | D10: 車両を運転する全社員に対するエコドライブに関する研修、教育を定期的に実施している。 | E10: =IF('計画書② (取組）'!E9="","",'計画書② (取組）'!E9) -> 
A11: 6 | B11: ボイラー、工業炉、熱交換器等 | C11: エコドライブ実践 | D11: エコドライブ10のすすめを実践し、チェックシート等に記録している。 | E11: =IF('計画書② (取組）'!E10="","",'計画書② (取組）'!E10) -> 
A12: 7 | B12: ボイラー、工業炉、熱交換器等 | C12: 車両の維持管理 | D12: 車両の点検・整備に関する責任者の設置、マニュアルの作成等、自動車の維持管理体制が整備されている。 | E12: =IF('計画書② (取組）'!E11="","",'計画書② (取組）'!E11) -> 
A13: 8 | B13: ボイラー、工業炉、熱交換器等 | C13: 車両の性能管理 | D13: 日常及び定期的な保守・点検、修理が行われ、記録されている。 | E13: =IF('計画書② (取組）'!E12="","",'計画書② (取組）'!E12) -> 
A14: 9 | B14: ボイラー、工業炉、熱交換器等 | C14: 効率的なルート選定 | D14: 事前に目的地までの効率的なルートを選定し、運転者に伝える仕組みが整備されている。 | E14: =IF('計画書② (取組）'!E13="","",'計画書② (取組）'!E13) -> 
A15: 10 | C15: 効率的な自動車管理 | D15: 輸送需要を把握し、目的や輸送量に応じた自動車を使用するなど、適切な車両管理を行っている。 | E15: =IF('計画書② (取組）'!E14="","",'計画書② (取組）'!E14) -> 
A16: 11 | C16: 照明器具の点灯時間管理 | D16: 照明器具の点灯時間がルール化されている。不要な照明の使用や消し忘れをチェックする仕組みがある。センサー等による制御が導入されている。 | E16: =IF('計画書② (取組）'!E15="","",'計画書② (取組）'!E15) -> 
A17: 12 | B17: ボイラー、工業炉、熱交換器等 | C17: 事務所機器の待機電力管理 | D17: PC、OA機器等の事務所機器が省エネモードに設定されており、長時間不使用の場合には電源を切ることがルール化されている。PC、OA機器等の事務所機器がルールに従って運転されている。 | E17: =IF('計画書② (取組）'!E16="","",'計画書② (取組）'!E16) -> 
A19: 基本対策の実施状況に関する説明・特記事項など
A20: 第１年度
A21: 第２年度
A22: 第３年度
A24: ５の２ 重点的に実施する取組の実施状況（選択対策）
A25: 番号 | B25: 分類 | C25: 項目 | D25: 対策内容 | E25: 実施状況
E26: 基準年度 | F26: 第１年度 | G26: 第２年度 | H26: 第３年度
A27: 1 | C27: =対策リスト!AV2&"" ->  | D27: =IFERROR(VLOOKUP(C27,選択対策,2,0),"") ->  | E27: =IF(C27="","",IFERROR(IF(VLOOKUP(C27,'計画書② (取組）'!$C$21:$F$35,3,0)="","未入力",VLOOKUP(C27,'計画書② (取組）'!$C$21:$F$35,3,0)),"-------")) -> 
A28: 2 | C28: =対策リスト!AV3&"" ->  | D28: =IFERROR(VLOOKUP(C28,選択対策,2,0),"") ->  | E28: =IF(C28="","",IFERROR(IF(VLOOKUP(C28,'計画書② (取組）'!$C$21:$F$35,3,0)="","未入力",VLOOKUP(C28,'計画書② (取組）'!$C$21:$F$35,3,0)),"-------")) -> 
A29: 3 | C29: =対策リスト!AV4&"" ->  | E29: =IF(C29="","",IFERROR(IF(VLOOKUP(C29,'計画書② (取組）'!$C$21:$F$35,3,0)="","未入力",VLOOKUP(C29,'計画書② (取組）'!$C$21:$F$35,3,0)),"-------")) -> 
A30: 4 | C30: =対策リスト!AV5&"" ->  | E30: =IF(C30="","",IFERROR(IF(VLOOKUP(C30,'計画書② (取組）'!$C$21:$F$35,3,0)="","未入力",VLOOKUP(C30,'計画書② (取組）'!$C$21:$F$35,3,0)),"-------")) -> 
A31: 5 | C31: =対策リスト!AV6&"" ->  | E31: =IF(C31="","",IFERROR(IF(VLOOKUP(C31,'計画書② (取組）'!$C$21:$F$35,3,0)="","未入力",VLOOKUP(C31,'計画書② (取組）'!$C$21:$F$35,3,0)),"-------")) -> 
A32: 6 | C32: =対策リスト!AV7&"" ->  | E32: =IF(C32="","",IFERROR(IF(VLOOKUP(C32,'計画書② (取組）'!$C$21:$F$35,3,0)="","未入力",VLOOKUP(C32,'計画書② (取組）'!$C$21:$F$35,3,0)),"-------")) -> 
A33: 7 | C33: =対策リスト!AV8&"" ->  | E33: =IF(C33="","",IFERROR(IF(VLOOKUP(C33,'計画書② (取組）'!$C$21:$F$35,3,0)="","未入力",VLOOKUP(C33,'計画書② (取組）'!$C$21:$F$35,3,0)),"-------")) -> 
A34: 8 | C34: =対策リスト!AV9&"" ->  | E34: =IF(C34="","",IFERROR(IF(VLOOKUP(C34,'計画書② (取組）'!$C$21:$F$35,3,0)="","未入力",VLOOKUP(C34,'計画書② (取組）'!$C$21:$F$35,3,0)),"-------")) -> 
A35: 9 | C35: =対策リスト!AV10&"" ->  | E35: =IF(C35="","",IFERROR(IF(VLOOKUP(C35,'計画書② (取組）'!$C$21:$F$35,3,0)="","未入力",VLOOKUP(C35,'計画書② (取組）'!$C$21:$F$35,3,0)),"-------")) -> 
A36: 10 | C36: =対策リスト!AV11&"" ->  | E36: =IF(C36="","",IFERROR(IF(VLOOKUP(C36,'計画書② (取組）'!$C$21:$F$35,3,0)="","未入力",VLOOKUP(C36,'計画書② (取組）'!$C$21:$F$35,3,0)),"-------")) -> 
A37: 11 | C37: =対策リスト!AV12&"" ->  | E37: =IF(C37="","",IFERROR(IF(VLOOKUP(C37,'計画書② (取組）'!$C$21:$F$35,3,0)="","未入力",VLOOKUP(C37,'計画書② (取組）'!$C$21:$F$35,3,0)),"-------")) -> 
A38: 12 | C38: =対策リスト!AV13&"" ->  | E38: =IF(C38="","",IFERROR(IF(VLOOKUP(C38,'計画書② (取組）'!$C$21:$F$35,3,0)="","未入力",VLOOKUP(C38,'計画書② (取組）'!$C$21:$F$35,3,0)),"-------")) -> 
A39: 13 | C39: =対策リスト!AV14&"" ->  | E39: =IF(C39="","",IFERROR(IF(VLOOKUP(C39,'計画書② (取組）'!$C$21:$F$35,3,0)="","未入力",VLOOKUP(C39,'計画書② (取組）'!$C$21:$F$35,3,0)),"-------")) -> 
A40: 14 | C40: =対策リスト!AV15&"" ->  | E40: =IF(C40="","",IFERROR(IF(VLOOKUP(C40,'計画書② (取組）'!$C$21:$F$35,3,0)="","未入力",VLOOKUP(C40,'計画書② (取組）'!$C$21:$F$35,3,0)),"-------")) -> 
A41: 15 | C41: =対策リスト!AV16&"" ->  | E41: =IF(C41="","",IFERROR(IF(VLOOKUP(C41,'計画書② (取組）'!$C$21:$F$35,3,0)="","未入力",VLOOKUP(C41,'計画書② (取組）'!$C$21:$F$35,3,0)),"-------")) -> 
A44: ５の３ 重点的に実施する取組の実施状況（その他の対策）
A45: 番号 | B45: 項目 | D45: 具体的な取組内容 | E45: 実施状況
E46: 基準年度 | F46: 第１年度 | G46: 第２年度 | H46: 第３年度
A47: 1 | C47: =対策リスト!BV2&"" ->  | D47: =対策リスト!BY2&"" ->  | E47: =IF(C47="","",IF(対策リスト!CD2="","-------",対策リスト!CD2)) -> 
A48: 2 | C48: =対策リスト!BV3&"" ->  | D48: =対策リスト!BY3&"" ->  | E48: =IF(C48="","",IF(対策リスト!CD3="","-------",対策リスト!CD3)) -> 
A49: 3 | C49: =対策リスト!BV4&"" ->  | D49: =対策リスト!BY4&"" ->  | E49: =IF(C49="","",IF(対策リスト!CD4="","-------",対策リスト!CD4)) -> 
A50: 4 | C50: =対策リスト!BV5&"" ->  | D50: =対策リスト!BY5&"" ->  | E50: =IF(C50="","",IF(対策リスト!CD5="","-------",対策リスト!CD5)) -> 
A51: 5 | C51: =対策リスト!BV6&"" ->  | D51: =対策リスト!BY6&"" ->  | E51: =IF(C51="","",IF(対策リスト!CD6="","-------",対策リスト!CD6)) -> 
A52: 6 | C52: =対策リスト!BV7&"" ->  | D52: =対策リスト!BY7&"" ->  | E52: =IF(C52="","",IF(対策リスト!CD7="","-------",対策リスト!CD7)) -> 
A53: 7 | C53: =対策リスト!BV8&"" ->  | D53: =対策リスト!BY8&"" ->  | E53: =IF(C53="","",IF(対策リスト!CD8="","-------",対策リスト!CD8)) -> 
A54: 8 | C54: =対策リスト!BV9&"" ->  | D54: =対策リスト!BY9&"" ->  | E54: =IF(C54="","",IF(対策リスト!CD9="","-------",対策リスト!CD9)) -> 
A55: 9 | C55: =対策リスト!BV10&"" ->  | D55: =対策リスト!BY10&"" ->  | E55: =IF(C55="","",IF(対策リスト!CD10="","-------",対策リスト!CD10)) -> 
A56: 10 | C56: =対策リスト!BV11&"" ->  | D56: =対策リスト!BY11&"" ->  | E56: =IF(C56="","",IF(対策リスト!CD11="","-------",対策リスト!CD11)) -> 
C90: 第１年度追加（選択対策）
A91: 1
A92: 2
A93: 3
A94: 4
A95: 5
A96: 6
A97: 7
A98: 8
A99: 9
A100: 10
A101: 11
A102: 12
A103: 13
A104: 14
A105: 15
C119: 第１年度追加（その他の対策）
D120: 具体的な取組内容
A121: 1
A122: 2
A123: 3
A124: 4
A125: 5
A126: 6
A127: 7
A128: 8
A129: 9
A130: 10

Sheet 報告書② 第2年度(取組） (hidden)
A3: ５の１ 重点的に実施する取組の実施状況（基本対策）
A4: 番号 | B4: 分類 | C4: 項目 | D4: 対策内容 | E4: 実施状況
E5: 基準年度 | F5: 第１年度 | G5: 第２年度 | H5: 第３年度
A6: 1 | B6: 一般管理事項 | C6: エネルギー管理推進体制の整備 | D6: エネルギー管理推進体制が整備されている。エネルギー管理推進体制の中で、エネルギー管理が推進されている。 | E6: =IF('計画書② (取組）'!E5="","",'計画書② (取組）'!E5) ->  | F6: =IF(C6="","",IFERROR(IF(VLOOKUP(C6,'報告書② 第1年度(取組）'!$C$6:$F$17,4,0)="","未入力",VLOOKUP(C6,'報告書② 第1年度(取組）'!$C$6:$F$35,4,0)),"-------")) -> 未入力
A7: 2 | B7: 一般管理事項 | C7: 省エネルギー教育の実施 | D7: 省エネルギー、地球温暖化防止に関する研修、教育を定期的に実施し、実施記録を残している。 | E7: =IF('計画書② (取組）'!E6="","",'計画書② (取組）'!E6) ->  | F7: =IF(C7="","",IFERROR(IF(VLOOKUP(C7,'報告書② 第1年度(取組）'!$C$6:$F$17,4,0)="","未入力",VLOOKUP(C7,'報告書② 第1年度(取組）'!$C$6:$F$35,4,0)),"-------")) -> 未入力
A8: 3 | B8: 一般管理事項 | C8: エネルギー使用量の把握 | D8: エネルギー使用量や走行距離を車両別に定期的に把握・記録されている。 | E8: =IF('計画書② (取組）'!E7="","",'計画書② (取組）'!E7) ->  | F8: =IF(C8="","",IFERROR(IF(VLOOKUP(C8,'報告書② 第1年度(取組）'!$C$6:$F$17,4,0)="","未入力",VLOOKUP(C8,'報告書② 第1年度(取組）'!$C$6:$F$35,4,0)),"-------")) -> 未入力
A9: 4 | B9: 一般管理事項 | C9: エコドライブ推進体制の整備 | D9: エコドライブ推進に関する責任者の設置、実践方法に関するマニュアルを作成するなど、推進体制を整備している。 | E9: =IF('計画書② (取組）'!E8="","",'計画書② (取組）'!E8) ->  | F9: =IF(C9="","",IFERROR(IF(VLOOKUP(C9,'報告書② 第1年度(取組）'!$C$6:$F$17,4,0)="","未入力",VLOOKUP(C9,'報告書② 第1年度(取組）'!$C$6:$F$35,4,0)),"-------")) -> 未入力
A10: 5 | B10: 一般管理事項 | C10: エコドライブ教育の実施 | D10: 車両を運転する全社員に対するエコドライブに関する研修、教育を定期的に実施している。 | E10: =IF('計画書② (取組）'!E9="","",'計画書② (取組）'!E9) ->  | F10: =IF(C10="","",IFERROR(IF(VLOOKUP(C10,'報告書② 第1年度(取組）'!$C$6:$F$17,4,0)="","未入力",VLOOKUP(C10,'報告書② 第1年度(取組）'!$C$6:$F$35,4,0)),"-------")) -> 未入力
A11: 6 | B11: ボイラー、工業炉、熱交換器等 | C11: エコドライブ実践 | D11: エコドライブ10のすすめを実践し、チェックシート等に記録している。 | E11: =IF('計画書② (取組）'!E10="","",'計画書② (取組）'!E10) ->  | F11: =IF(C11="","",IFERROR(IF(VLOOKUP(C11,'報告書② 第1年度(取組）'!$C$6:$F$17,4,0)="","未入力",VLOOKUP(C11,'報告書② 第1年度(取組）'!$C$6:$F$35,4,0)),"-------")) -> 未入力
A12: 7 | B12: ボイラー、工業炉、熱交換器等 | C12: 車両の維持管理 | D12: 車両の点検・整備に関する責任者の設置、マニュアルの作成等、自動車の維持管理体制が整備されている。 | E12: =IF('計画書② (取組）'!E11="","",'計画書② (取組）'!E11) ->  | F12: =IF(C12="","",IFERROR(IF(VLOOKUP(C12,'報告書② 第1年度(取組）'!$C$6:$F$17,4,0)="","未入力",VLOOKUP(C12,'報告書② 第1年度(取組）'!$C$6:$F$35,4,0)),"-------")) -> 未入力
A13: 8 | B13: ボイラー、工業炉、熱交換器等 | C13: 車両の性能管理 | D13: 日常及び定期的な保守・点検、修理が行われ、記録されている。 | E13: =IF('計画書② (取組）'!E12="","",'計画書② (取組）'!E12) ->  | F13: =IF(C13="","",IFERROR(IF(VLOOKUP(C13,'報告書② 第1年度(取組）'!$C$6:$F$17,4,0)="","未入力",VLOOKUP(C13,'報告書② 第1年度(取組）'!$C$6:$F$35,4,0)),"-------")) -> 未入力
A14: 9 | B14: ボイラー、工業炉、熱交換器等 | C14: 効率的なルート選定 | D14: 事前に目的地までの効率的なルートを選定し、運転者に伝える仕組みが整備されている。 | E14: =IF('計画書② (取組）'!E13="","",'計画書② (取組）'!E13) ->  | F14: =IF(C14="","",IFERROR(IF(VLOOKUP(C14,'報告書② 第1年度(取組）'!$C$6:$F$17,4,0)="","未入力",VLOOKUP(C14,'報告書② 第1年度(取組）'!$C$6:$F$35,4,0)),"-------")) -> 未入力
A15: 10 | C15: 効率的な自動車管理 | D15: 輸送需要を把握し、目的や輸送量に応じた自動車を使用するなど、適切な車両管理を行っている。 | E15: =IF('計画書② (取組）'!E14="","",'計画書② (取組）'!E14) ->  | F15: =IF(C15="","",IFERROR(IF(VLOOKUP(C15,'報告書② 第1年度(取組）'!$C$6:$F$17,4,0)="","未入力",VLOOKUP(C15,'報告書② 第1年度(取組）'!$C$6:$F$35,4,0)),"-------")) -> 未入力
A16: 11 | C16: 照明器具の点灯時間管理 | D16: 照明器具の点灯時間がルール化されている。不要な照明の使用や消し忘れをチェックする仕組みがある。センサー等による制御が導入されている。 | E16: =IF('計画書② (取組）'!E15="","",'計画書② (取組）'!E15) ->  | F16: =IF(C16="","",IFERROR(IF(VLOOKUP(C16,'報告書② 第1年度(取組）'!$C$6:$F$17,4,0)="","未入力",VLOOKUP(C16,'報告書② 第1年度(取組）'!$C$6:$F$35,4,0)),"-------")) -> 未入力
A17: 12 | B17: ボイラー、工業炉、熱交換器等 | C17: 事務所機器の待機電力管理 | D17: PC、OA機器等の事務所機器が省エネモードに設定されており、長時間不使用の場合には電源を切ることがルール化されている。PC、OA機器等の事務所機器がルールに従って運転されている。 | E17: =IF('計画書② (取組）'!E16="","",'計画書② (取組）'!E16) ->  | F17: =IF(C17="","",IFERROR(IF(VLOOKUP(C17,'報告書② 第1年度(取組）'!$C$6:$F$17,4,0)="","未入力",VLOOKUP(C17,'報告書② 第1年度(取組）'!$C$6:$F$35,4,0)),"-------")) -> 未入力
A19: 基本対策の実施状況に関する説明・特記事項など
A20: 第１年度 | D20: ='報告書② 第1年度(取組）'!D20:F20&"" -> 
A21: 第２年度
A22: 第３年度
A24: ５の２ 重点的に実施する取組の実施状況（選択対策）
A25: 番号 | B25: 分類 | C25: 項目 | D25: 対策内容 | E25: 実施状況
E26: 基準年度 | F26: 第１年度 | G26: 第２年度 | H26: 第３年度
A27: 1 | C27: =対策リスト!AU2&"" ->  | D27: =IFERROR(VLOOKUP(C27,選択対策,2,0),"") ->  | E27: =IF(C27="","",IFERROR(IF(VLOOKUP(C27,'報告書② 第1年度(取組）'!$C$27:$F$41,3,0)="","未入力",VLOOKUP(C27,'報告書② 第1年度(取組）'!$C$27:$F$41,3,0)),"-------")) ->  | F27: =IF(C27="","",IFERROR(IF(VLOOKUP(C27,'報告書② 第1年度(取組）'!$C$27:$F$41,4,0)="","未入力",VLOOKUP(C27,'報告書② 第1年度(取組）'!$C$27:$F$41,4,0)),"-------")) -> 
A28: 2 | C28: =対策リスト!AU3&"" ->  | E28: =IF(C28="","",IFERROR(IF(VLOOKUP(C28,'計画書② (取組）'!$C$21:$F$35,3,0)="","未入力",VLOOKUP(C28,'計画書② (取組）'!$C$21:$F$35,3,0)),"-------")) ->  | F28: =IF(C28="","",IFERROR(IF(VLOOKUP(C28,'報告書② 第1年度(取組）'!$C$27:$F$41,4,0)="","未入力",VLOOKUP(C28,'報告書② 第1年度(取組）'!$C$27:$F$41,4,0)),"-------")) -> 
A29: 3 | C29: =対策リスト!AU4&"" ->  | E29: =IF(C29="","",IFERROR(IF(VLOOKUP(C29,'計画書② (取組）'!$C$21:$F$35,3,0)="","未入力",VLOOKUP(C29,'計画書② (取組）'!$C$21:$F$35,3,0)),"-------")) ->  | F29: =IF(C29="","",IFERROR(IF(VLOOKUP(C29,'報告書② 第1年度(取組）'!$C$27:$F$41,4,0)="","未入力",VLOOKUP(C29,'報告書② 第1年度(取組）'!$C$27:$F$41,4,0)),"-------")) -> 
A30: 4 | C30: =対策リスト!AU5&"" ->  | E30: =IF(C30="","",IFERROR(IF(VLOOKUP(C30,'計画書② (取組）'!$C$21:$F$35,3,0)="","未入力",VLOOKUP(C30,'計画書② (取組）'!$C$21:$F$35,3,0)),"-------")) ->  | F30: =IF(C30="","",IFERROR(IF(VLOOKUP(C30,'報告書② 第1年度(取組）'!$C$27:$F$41,4,0)="","未入力",VLOOKUP(C30,'報告書② 第1年度(取組）'!$C$27:$F$41,4,0)),"-------")) -> 
A31: 5 | C31: =対策リスト!AU6&"" ->  | E31: =IF(C31="","",IFERROR(IF(VLOOKUP(C31,'計画書② (取組）'!$C$21:$F$35,3,0)="","未入力",VLOOKUP(C31,'計画書② (取組）'!$C$21:$F$35,3,0)),"-------")) ->  | F31: =IF(C31="","",IFERROR(IF(VLOOKUP(C31,'報告書② 第1年度(取組）'!$C$27:$F$41,4,0)="","未入力",VLOOKUP(C31,'報告書② 第1年度(取組）'!$C$27:$F$41,4,0)),"-------")) -> 
A32: 6 | C32: =対策リスト!AU7&"" ->  | E32: =IF(C32="","",IFERROR(IF(VLOOKUP(C32,'計画書② (取組）'!$C$21:$F$35,3,0)="","未入力",VLOOKUP(C32,'計画書② (取組）'!$C$21:$F$35,3,0)),"-------")) ->  | F32: =IF(C32="","",IFERROR(IF(VLOOKUP(C32,'報告書② 第1年度(取組）'!$C$27:$F$41,4,0)="","未入力",VLOOKUP(C32,'報告書② 第1年度(取組）'!$C$27:$F$41,4,0)),"-------")) -> 
A33: 7 | C33: =対策リスト!AU8&"" ->  | E33: =IF(C33="","",IFERROR(IF(VLOOKUP(C33,'計画書② (取組）'!$C$21:$F$35,3,0)="","未入力",VLOOKUP(C33,'計画書② (取組）'!$C$21:$F$35,3,0)),"-------")) ->  | F33: =IF(C33="","",IFERROR(IF(VLOOKUP(C33,'報告書② 第1年度(取組）'!$C$27:$F$41,4,0)="","未入力",VLOOKUP(C33,'報告書② 第1年度(取組）'!$C$27:$F$41,4,0)),"-------")) -> 
A34: 8 | C34: =対策リスト!AU9&"" ->  | E34: =IF(C34="","",IFERROR(IF(VLOOKUP(C34,'計画書② (取組）'!$C$21:$F$35,3,0)="","未入力",VLOOKUP(C34,'計画書② (取組）'!$C$21:$F$35,3,0)),"-------")) ->  | F34: =IF(C34="","",IFERROR(IF(VLOOKUP(C34,'報告書② 第1年度(取組）'!$C$27:$F$41,4,0)="","未入力",VLOOKUP(C34,'報告書② 第1年度(取組）'!$C$27:$F$41,4,0)),"-------")) -> 
A35: 9 | C35: =対策リスト!AU10&"" ->  | E35: =IF(C35="","",IFERROR(IF(VLOOKUP(C35,'計画書② (取組）'!$C$21:$F$35,3,0)="","未入力",VLOOKUP(C35,'計画書② (取組）'!$C$21:$F$35,3,0)),"-------")) ->  | F35: =IF(C35="","",IFERROR(IF(VLOOKUP(C35,'報告書② 第1年度(取組）'!$C$27:$F$41,4,0)="","未入力",VLOOKUP(C35,'報告書② 第1年度(取組）'!$C$27:$F$41,4,0)),"-------")) -> 
A36: 10 | C36: =対策リスト!AU11&"" ->  | E36: =IF(C36="","",IFERROR(IF(VLOOKUP(C36,'計画書② (取組）'!$C$21:$F$35,3,0)="","未入力",VLOOKUP(C36,'計画書② (取組）'!$C$21:$F$35,3,0)),"-------")) ->  | F36: =IF(C36="","",IFERROR(IF(VLOOKUP(C36,'報告書② 第1年度(取組）'!$C$27:$F$41,4,0)="","未入力",VLOOKUP(C36,'報告書② 第1年度(取組）'!$C$27:$F$41,4,0)),"-------")) -> 
A37: 11 | C37: =対策リスト!AU12&"" ->  | E37: =IF(C37="","",IFERROR(IF(VLOOKUP(C37,'計画書② (取組）'!$C$21:$F$35,3,0)="","未入力",VLOOKUP(C37,'計画書② (取組）'!$C$21:$F$35,3,0)),"-------")) ->  | F37: =IF(C37="","",IFERROR(IF(VLOOKUP(C37,'報告書② 第1年度(取組）'!$C$27:$F$41,4,0)="","未入力",VLOOKUP(C37,'報告書② 第1年度(取組）'!$C$27:$F$41,4,0)),"-------")) -> 
A38: 12 | C38: =対策リスト!AU13&"" ->  | E38: =IF(C38="","",IFERROR(IF(VLOOKUP(C38,'計画書② (取組）'!$C$21:$F$35,3,0)="","未入力",VLOOKUP(C38,'計画書② (取組）'!$C$21:$F$35,3,0)),"-------")) ->  | F38: =IF(C38="","",IFERROR(IF(VLOOKUP(C38,'報告書② 第1年度(取組）'!$C$27:$F$41,4,0)="","未入力",VLOOKUP(C38,'報告書② 第1年度(取組）'!$C$27:$F$41,4,0)),"-------")) -> 
A39: 13 | C39: =対策リスト!AU14&"" ->  | E39: =IF(C39="","",IFERROR(IF(VLOOKUP(C39,'計画書② (取組）'!$C$21:$F$35,3,0)="","未入力",VLOOKUP(C39,'計画書② (取組）'!$C$21:$F$35,3,0)),"-------")) ->  | F39: =IF(C39="","",IFERROR(IF(VLOOKUP(C39,'報告書② 第1年度(取組）'!$C$27:$F$41,4,0)="","未入力",VLOOKUP(C39,'報告書② 第1年度(取組）'!$C$27:$F$41,4,0)),"-------")) -> 
A40: 14 | C40: =対策リスト!AU15&"" ->  | E40: =IF(C40="","",IFERROR(IF(VLOOKUP(C40,'計画書② (取組）'!$C$21:$F$35,3,0)="","未入力",VLOOKUP(C40,'計画書② (取組）'!$C$21:$F$35,3,0)),"-------")) ->  | F40: =IF(C40="","",IFERROR(IF(VLOOKUP(C40,'報告書② 第1年度(取組）'!$C$27:$F$41,4,0)="","未入力",VLOOKUP(C40,'報告書② 第1年度(取組）'!$C$27:$F$41,4,0)),"-------")) -> 
A41: 15 | C41: =対策リスト!AU16&"" ->  | E41: =IF(C41="","",IFERROR(IF(VLOOKUP(C41,'計画書② (取組）'!$C$21:$F$35,3,0)="","未入力",VLOOKUP(C41,'計画書② (取組）'!$C$21:$F$35,3,0)),"-------")) ->  | F41: =IF(C41="","",IFERROR(IF(VLOOKUP(C41,'報告書② 第1年度(取組）'!$C$27:$F$41,4,0)="","未入力",VLOOKUP(C41,'報告書② 第1年度(取組）'!$C$27:$F$41,4,0)),"-------")) -> 
A44: ５の３ 重点的に実施する取組の実施状況（その他の対策）
A45: 番号 | B45: 項目 | D45: 具体的な取組内容 | E45: 実施状況
E46: 基準年度 | F46: 第１年度 | G46: 第２年度 | H46: 第３年度
A47: 1 | C47: =対策リスト!BU2&"" ->  | D47: =対策リスト!BX2&"" ->  | E47: =IF(C47="","",IF(対策リスト!CD2="","-------",対策リスト!CD2)) ->  | F47: =IF(C47="","",IF(対策リスト!CC2="","-------",対策リスト!CC2)) -> 
A48: 2 | C48: =対策リスト!BU3&"" ->  | D48: =対策リスト!BX3&"" ->  | E48: =IF(C48="","",IF(対策リスト!CD3="","-------",対策リスト!CD3)) ->  | F48: =IF(C48="","",IF(対策リスト!CC3="","-------",対策リスト!CC3)) -> 
A49: 3 | C49: =対策リスト!BU4&"" ->  | D49: =対策リスト!BX4&"" ->  | E49: =IF(C49="","",IF(対策リスト!CD4="","-------",対策リスト!CD4)) ->  | F49: =IF(C49="","",IF(対策リスト!CC4="","-------",対策リスト!CC4)) -> 
A50: 4 | C50: =対策リスト!BU5&"" ->  | D50: =対策リスト!BX5&"" ->  | E50: =IF(C50="","",IF(対策リスト!CD5="","-------",対策リスト!CD5)) ->  | F50: =IF(C50="","",IF(対策リスト!CC5="","-------",対策リスト!CC5)) -> 
A51: 5 | C51: =対策リスト!BU6&"" ->  | D51: =対策リスト!BX6&"" ->  | E51: =IF(C51="","",IF(対策リスト!CD6="","-------",対策リスト!CD6)) ->  | F51: =IF(C51="","",IF(対策リスト!CC6="","-------",対策リスト!CC6)) -> 
A52: 6 | C52: =対策リスト!BU7&"" ->  | D52: =対策リスト!BX7&"" ->  | E52: =IF(C52="","",IF(対策リスト!CD7="","-------",対策リスト!CD7)) ->  | F52: =IF(C52="","",IF(対策リスト!CC7="","-------",対策リスト!CC7)) -> 
A53: 7 | C53: =対策リスト!BU8&"" ->  | D53: =対策リスト!BX8&"" ->  | E53: =IF(C53="","",IF(対策リスト!CD8="","-------",対策リスト!CD8)) ->  | F53: =IF(C53="","",IF(対策リスト!CC8="","-------",対策リスト!CC8)) -> 
A54: 8 | C54: =対策リスト!BU9&"" ->  | D54: =対策リスト!BX9&"" ->  | E54: =IF(C54="","",IF(対策リスト!CD9="","-------",対策リスト!CD9)) ->  | F54: =IF(C54="","",IF(対策リスト!CC9="","-------",対策リスト!CC9)) -> 
A55: 9 | C55: =対策リスト!BU10&"" ->  | D55: =対策リスト!BX10&"" ->  | E55: =IF(C55="","",IF(対策リスト!CD10="","-------",対策リスト!CD10)) ->  | F55: =IF(C55="","",IF(対策リスト!CC10="","-------",対策リスト!CC10)) -> 
A56: 10 | C56: =対策リスト!BU11&"" ->  | D56: =対策リスト!BX11&"" ->  | E56: =IF(C56="","",IF(対策リスト!CD11="","-------",対策リスト!CD11)) ->  | F56: =IF(C56="","",IF(対策リスト!CC11="","-------",対策リスト!CC11)) -> 
C90: 第２年度追加（選択対策）
A91: 1
A92: 2
A93: 3
A94: 4
A95: 5
A96: 6
A97: 7
A98: 8
A99: 9
A100: 10
A101: 11
A102: 12
A103: 13
A104: 14
A105: 15
C119: 第２年度追加（その他の対策）
D120: 具体的な取組内容
A121: 1
A122: 2
A123: 3
A124: 4
A125: 5
A126: 6
A127: 7
A128: 8
A129: 9
A130: 10

Sheet 報告書② 第3年度(取組） (hidden)
J2: =はじめに!F29 -> 0
A3: ５の１ 重点的に実施する取組の実施状況（基本対策）
A4: 番号 | B4: 分類 | C4: 項目 | D4: 対策内容 | E4: 実施状況
E5: 基準年度 | F5: 第１年度 | G5: 第２年度 | H5: 第３年度 | K5: 第３年度状況 | L5: 項目数 | M5: 評価指標 | O5: 実施状況 | P5: 項目数 | Q5: 実施済 | R5: 未実施 | S5: 非該当
A6: 1 | B6: 一般管理事項 | C6: エネルギー管理推進体制の整備 | D6: エネルギー管理推進体制が整備されている。エネルギー管理推進体制の中で、エネルギー管理が推進されている。 | E6: =IF('計画書② (取組）'!E5="","",'計画書② (取組）'!E5) ->  | F6: =IF(C6="","",IFERROR(IF(VLOOKUP(C6,'報告書② 第2年度(取組）'!$C$6:$G17,4,0)="","未入力",VLOOKUP(C6,'報告書② 第2年度(取組）'!$C$6:$G$17,4,0)),"------")) -> 未入力 | G6: =IF(C6="","",IFERROR(IF(VLOOKUP(C6,'報告書② 第2年度(取組）'!$C$6:$G17,5,0)="","未入力",VLOOKUP(C6,'報告書② 第2年度(取組）'!$C$6:$G$17,5,0)),"------")) -> 未入力 | K6: 実施済 | L6: =COUNTIFS($H$6:$H$17,$K6,$E$6:$E$17,"<>非該当") -> 0 | M6: 5 | O6: 第1年度 | P6: =IF($J$2>0,$L$9,"") ->  | Q6: =IF($J$2>0,COUNTIFS($F$6:$F$17,Q$5),"") ->  | R6: =IF($J$2>0,COUNTIFS($F$6:$F$17,R$5),"") ->  | S6: =IF($J$2>0,COUNTIFS($F$6:$F$17,S$5),"") ->  | T6: =IFERROR(IF(P6="","",Q6/(P6-S6)),0) ->  | U6: =IF(P6="","",ROUNDUP($T6*$M$9,0)) -> 
A7: 2 | B7: 一般管理事項 | C7: 省エネルギー教育の実施 | D7: 省エネルギー、地球温暖化防止に関する研修、教育を定期的に実施し、実施記録を残している。 | E7: =IF('計画書② (取組）'!E6="","",'計画書② (取組）'!E6) ->  | F7: =IF(C7="","",IFERROR(IF(VLOOKUP(C7,'報告書② 第2年度(取組）'!$C$6:$G18,4,0)="","未入力",VLOOKUP(C7,'報告書② 第2年度(取組）'!$C$6:$G$17,4,0)),"------")) -> 未入力 | G7: =IF(C7="","",IFERROR(IF(VLOOKUP(C7,'報告書② 第2年度(取組）'!$C$6:$G18,5,0)="","未入力",VLOOKUP(C7,'報告書② 第2年度(取組）'!$C$6:$G$17,5,0)),"------")) -> 未入力 | K7: 未実施 | L7: =COUNTIFS($H$6:$H$17,$K7,$E$6:$E$17,"<>非該当") -> 0 | M7: 0 | O7: 第2年度 | P7: =IF($J$2>1,$L$9,"") ->  | Q7: =IF($J$2>1,COUNTIFS($G$6:$G$17,Q$5),"") ->  | R7: =IF($J$2>1,COUNTIFS($G$6:$G$17,R$5),"") ->  | S7: =IF($J$2>1,COUNTIFS($G$6:$G$17,S$5),"") ->  | T7: =IFERROR(IF(P7="","",Q7/(P7-S7)),0) ->  | U7: =IF(P7="","",ROUNDUP($T7*$M$9,0)) -> 
A8: 3 | B8: 一般管理事項 | C8: エネルギー使用量の把握 | D8: エネルギー使用量や走行距離を車両別に定期的に把握・記録されている。 | E8: =IF('計画書② (取組）'!E7="","",'計画書② (取組）'!E7) ->  | F8: =IF(C8="","",IFERROR(IF(VLOOKUP(C8,'報告書② 第2年度(取組）'!$C$6:$G19,4,0)="","未入力",VLOOKUP(C8,'報告書② 第2年度(取組）'!$C$6:$G$17,4,0)),"------")) -> 未入力 | G8: =IF(C8="","",IFERROR(IF(VLOOKUP(C8,'報告書② 第2年度(取組）'!$C$6:$G19,5,0)="","未入力",VLOOKUP(C8,'報告書② 第2年度(取組）'!$C$6:$G$17,5,0)),"------")) -> 未入力 | K8: 非該当 | L8: =COUNTIF($H$6:$H$17,$K8)+COUNTIF($E$6:$E$17,$K8) -> 0 | M8: - | O8: 第3年度 | P8: =IF($J$2>2,$L$9,"") ->  | Q8: =IF($J$2>2,COUNTIFS($H$6:$H$17,Q$5),"") ->  | R8: =IF($J$2>2,COUNTIFS($H$6:$H$17,R$5),"") ->  | S8: =IF($J$2>2,COUNTIFS($H$6:$H$17,S$5),"") ->  | U8: =IF(P8="","",ROUNDUP($T8*$M$9,0)) -> 
A9: 4 | B9: 一般管理事項 | C9: エコドライブ推進体制の整備 | D9: エコドライブ推進に関する責任者の設置、実践方法に関するマニュアルを作成するなど、推進体制を整備している。 | E9: =IF('計画書② (取組）'!E8="","",'計画書② (取組）'!E8) ->  | F9: =IF(C9="","",IFERROR(IF(VLOOKUP(C9,'報告書② 第2年度(取組）'!$C$6:$G20,4,0)="","未入力",VLOOKUP(C9,'報告書② 第2年度(取組）'!$C$6:$G$17,4,0)),"------")) -> 未入力 | G9: =IF(C9="","",IFERROR(IF(VLOOKUP(C9,'報告書② 第2年度(取組）'!$C$6:$G20,5,0)="","未入力",VLOOKUP(C9,'報告書② 第2年度(取組）'!$C$6:$G$17,5,0)),"------")) -> 未入力 | K9: 合計 | L9: 12 | M9: 50 | O9: 平均 | P9: =IFERROR(ROUNDUP(AVERAGE(P6:P8),0),"") ->  | Q9: =IFERROR(ROUNDUP(AVERAGE(Q6:Q8),0),"") ->  | R9: =IFERROR(ROUNDUP(AVERAGE(R6:R8),0),"") ->  | T9: =IFERROR(AVERAGE(T6:T8),"") ->  | U9: =IFERROR(ROUNDUP(AVERAGE(U6:U8),0),"") -> 
A10: 5 | B10: 一般管理事項 | C10: エコドライブ教育の実施 | D10: 車両を運転する全社員に対するエコドライブに関する研修、教育を定期的に実施している。 | E10: =IF('計画書② (取組）'!E9="","",'計画書② (取組）'!E9) ->  | F10: =IF(C10="","",IFERROR(IF(VLOOKUP(C10,'報告書② 第2年度(取組）'!$C$6:$G21,4,0)="","未入力",VLOOKUP(C10,'報告書② 第2年度(取組）'!$C$6:$G$17,4,0)),"------")) -> 未入力 | G10: =IF(C10="","",IFERROR(IF(VLOOKUP(C10,'報告書② 第2年度(取組）'!$C$6:$G21,5,0)="","未入力",VLOOKUP(C10,'報告書② 第2年度(取組）'!$C$6:$G$17,5,0)),"------")) -> 未入力 | K10: 最終年度 | L10: =L6/(L9-L8) -> 0 | M10: =ROUNDUP($L$10*$M$9,0) -> 0
A11: 6 | B11: ボイラー、工業炉、熱交換器等 | C11: エコドライブ実践 | D11: エコドライブ10のすすめを実践し、チェックシート等に記録している。 | E11: =IF('計画書② (取組）'!E10="","",'計画書② (取組）'!E10) ->  | F11: =IF(C11="","",IFERROR(IF(VLOOKUP(C11,'報告書② 第2年度(取組）'!$C$6:$G22,4,0)="","未入力",VLOOKUP(C11,'報告書② 第2年度(取組）'!$C$6:$G$17,4,0)),"------")) -> 未入力 | G11: =IF(C11="","",IFERROR(IF(VLOOKUP(C11,'報告書② 第2年度(取組）'!$C$6:$G22,5,0)="","未入力",VLOOKUP(C11,'報告書② 第2年度(取組）'!$C$6:$G$17,5,0)),"------")) -> 未入力
A12: 7 | B12: ボイラー、工業炉、熱交換器等 | C12: 車両の維持管理 | D12: 車両の点検・整備に関する責任者の設置、マニュアルの作成等、自動車の維持管理体制が整備されている。 | E12: =IF('計画書② (取組）'!E11="","",'計画書② (取組）'!E11) ->  | F12: =IF(C12="","",IFERROR(IF(VLOOKUP(C12,'報告書② 第2年度(取組）'!$C$6:$G23,4,0)="","未入力",VLOOKUP(C12,'報告書② 第2年度(取組）'!$C$6:$G$17,4,0)),"------")) -> 未入力 | G12: =IF(C12="","",IFERROR(IF(VLOOKUP(C12,'報告書② 第2年度(取組）'!$C$6:$G23,5,0)="","未入力",VLOOKUP(C12,'報告書② 第2年度(取組）'!$C$6:$G$17,5,0)),"------")) -> 未入力
A13: 8 | B13: ボイラー、工業炉、熱交換器等 | C13: 車両の性能管理 | D13: 日常及び定期的な保守・点検、修理が行われ、記録されている。 | E13: =IF('計画書② (取組）'!E12="","",'計画書② (取組）'!E12) ->  | F13: =IF(C13="","",IFERROR(IF(VLOOKUP(C13,'報告書② 第2年度(取組）'!$C$6:$G24,4,0)="","未入力",VLOOKUP(C13,'報告書② 第2年度(取組）'!$C$6:$G$17,4,0)),"------")) -> 未入力 | G13: =IF(C13="","",IFERROR(IF(VLOOKUP(C13,'報告書② 第2年度(取組）'!$C$6:$G24,5,0)="","未入力",VLOOKUP(C13,'報告書② 第2年度(取組）'!$C$6:$G$17,5,0)),"------")) -> 未入力
A14: 9 | B14: ボイラー、工業炉、熱交換器等 | C14: 効率的なルート選定 | D14: 事前に目的地までの効率的なルートを選定し、運転者に伝える仕組みが整備されている。 | E14: =IF('計画書② (取組）'!E13="","",'計画書② (取組）'!E13) ->  | F14: =IF(C14="","",IFERROR(IF(VLOOKUP(C14,'報告書② 第2年度(取組）'!$C$6:$G25,4,0)="","未入力",VLOOKUP(C14,'報告書② 第2年度(取組）'!$C$6:$G$17,4,0)),"------")) -> 未入力 | G14: =IF(C14="","",IFERROR(IF(VLOOKUP(C14,'報告書② 第2年度(取組）'!$C$6:$G25,5,0)="","未入力",VLOOKUP(C14,'報告書② 第2年度(取組）'!$C$6:$G$17,5,0)),"------")) -> 未入力
A15: 10 | C15: 効率的な自動車管理 | D15: 輸送需要を把握し、目的や輸送量に応じた自動車を使用するなど、適切な車両管理を行っている。 | E15: =IF('計画書② (取組）'!E14="","",'計画書② (取組）'!E14) ->  | F15: =IF(C15="","",IFERROR(IF(VLOOKUP(C15,'報告書② 第2年度(取組）'!$C$6:$G26,4,0)="","未入力",VLOOKUP(C15,'報告書② 第2年度(取組）'!$C$6:$G$17,4,0)),"------")) -> 未入力 | G15: =IF(C15="","",IFERROR(IF(VLOOKUP(C15,'報告書② 第2年度(取組）'!$C$6:$G26,5,0)="","未入力",VLOOKUP(C15,'報告書② 第2年度(取組）'!$C$6:$G$17,5,0)),"------")) -> 未入力
A16: 11 | C16: 照明器具の点灯時間管理 | D16: 照明器具の点灯時間がルール化されている。不要な照明の使用や消し忘れをチェックする仕組みがある。センサー等による制御が導入されている。 | E16: =IF('計画書② (取組）'!E15="","",'計画書② (取組）'!E15) ->  | F16: =IF(C16="","",IFERROR(IF(VLOOKUP(C16,'報告書② 第2年度(取組）'!$C$6:$G27,4,0)="","未入力",VLOOKUP(C16,'報告書② 第2年度(取組）'!$C$6:$G$17,4,0)),"------")) -> 未入力 | G16: =IF(C16="","",IFERROR(IF(VLOOKUP(C16,'報告書② 第2年度(取組）'!$C$6:$G27,5,0)="","未入力",VLOOKUP(C16,'報告書② 第2年度(取組）'!$C$6:$G$17,5,0)),"------")) -> 未入力
A17: 12 | B17: ボイラー、工業炉、熱交換器等 | C17: 事務所機器の待機電力管理 | D17: PC、OA機器等の事務所機器が省エネモードに設定されており、長時間不使用の場合には電源を切ることがルール化されている。PC、OA機器等の事務所機器がルールに従って運転されている。 | E17: =IF('計画書② (取組）'!E16="","",'計画書② (取組）'!E16) ->  | F17: =IF(C17="","",IFERROR(IF(VLOOKUP(C17,'報告書② 第2年度(取組）'!$C$6:$G28,4,0)="","未入力",VLOOKUP(C17,'報告書② 第2年度(取組）'!$C$6:$G$17,4,0)),"------")) -> 未入力 | G17: =IF(C17="","",IFERROR(IF(VLOOKUP(C17,'報告書② 第2年度(取組）'!$C$6:$G28,5,0)="","未入力",VLOOKUP(C17,'報告書② 第2年度(取組）'!$C$6:$G$17,5,0)),"------")) -> 未入力
A19: 基本対策の実施状況に関する説明・特記事項など
A20: 第１年度 | D20: ='報告書② 第2年度(取組）'!D20:F20&"" -> 
A21: 第２年度 | D21: ='報告書② 第2年度(取組）'!D21:F21&"" -> 
A22: 第３年度
A24: ５の２ 重点的に実施する取組の実施状況（選択対策）
A25: 番号 | B25: 分類 | C25: 項目 | D25: 対策内容 | E25: 実施状況 | K25: 第３年度
E26: 基準年度 | F26: 第１年度 | G26: 第２年度 | H26: 第３年度 | K26: 状況 | L26: 項目数 | M26: 評価指標 | O26: 実施状況 | P26: 項目数 | Q26: 実施済 | R26: 一部実施済 | S26: 未実施 | T26: 評価点
A27: 1 | C27: =対策リスト!AT2&"" ->  | D27: =IFERROR(VLOOKUP(C27,選択対策,2,0),"") ->  | E27: =IF(C27="","",IFERROR(IF(VLOOKUP(C27,'報告書② 第2年度(取組）'!$C$27:$G$41,3,0)="","未入力",VLOOKUP(C27,'報告書② 第2年度(取組）'!C27:G41,3,0)),"-------")) ->  | F27: =IF(C27="","",IFERROR(IF(VLOOKUP(C27,'報告書② 第2年度(取組）'!$C$27:$G$41,4,0)="","未入力",VLOOKUP(C27,'報告書② 第2年度(取組）'!C27:G41,4,0)),"-------")) ->  | G27: =IF(C27="","",IFERROR(IF(VLOOKUP(C27,'報告書② 第2年度(取組）'!$C$27:$G$41,5,0)="","未入力",VLOOKUP(C27,'報告書② 第2年度(取組）'!C27:G41,5,0)),"-------")) ->  | K27: 実施済 | L27: =COUNTIF($H$27:$H$41,$K27) -> 0 | M27: 5 | O27: 第1年度 | P27: =IF($J$2>0,SUM(Q27:S27),"") ->  | Q27: =IF($J$2>0,COUNTIF($F$27:$F$41,Q$26),"") ->  | R27: =IF($J$2>0,COUNTIF($F$27:$F$41,R$26),"") ->  | S27: =IF($J$2>0,COUNTIF($F$27:$F$41,S$26),"") ->  | T27: =IF($J$2>0,Q27*$M$27+R27*$M$28,"") -> 
A28: 2 | C28: =対策リスト!AT3&"" ->  | D28: =IFERROR(VLOOKUP(C28,選択対策,2,0),"") ->  | E28: =IF(C28="","",IFERROR(IF(VLOOKUP(C28,'報告書② 第2年度(取組）'!$C$27:$G$41,3,0)="","未入力",VLOOKUP(C28,'報告書② 第2年度(取組）'!C28:G42,3,0)),"-------")) ->  | F28: =IF(C28="","",IFERROR(IF(VLOOKUP(C28,'報告書② 第2年度(取組）'!$C$27:$G$41,4,0)="","未入力",VLOOKUP(C28,'報告書② 第2年度(取組）'!C28:G42,4,0)),"-------")) ->  | G28: =IF(C28="","",IFERROR(IF(VLOOKUP(C28,'報告書② 第2年度(取組）'!$C$27:$G$41,5,0)="","未入力",VLOOKUP(C28,'報告書② 第2年度(取組）'!C28:G42,5,0)),"-------")) ->  | K28: 一部実施済 | L28: =COUNTIF($H$27:$H$41,$K28) -> 0 | M28: 3 | O28: 第2年度 | P28: =IF($J$2>1,SUM(Q28:S28),"") ->  | Q28: =IF($J$2>1,COUNTIF($G$27:$G$41,Q$26),"") ->  | R28: =IF($J$2>1,COUNTIF($G$27:$G$41,R$26),"") ->  | S28: =IF($J$2>1,COUNTIF($G$27:$G$41,S$26),"") ->  | T28: =IF($J$2>1,Q28*$M$27+R28*$M$28,"") -> 
A29: 3 | C29: =対策リスト!AT4&"" ->  | E29: =IF(C29="","",IFERROR(IF(VLOOKUP(C29,'報告書② 第2年度(取組）'!$C$27:$G$41,3,0)="","未入力",VLOOKUP(C29,'報告書② 第2年度(取組）'!C29:G43,3,0)),"-------")) ->  | F29: =IF(C29="","",IFERROR(IF(VLOOKUP(C29,'報告書② 第2年度(取組）'!$C$27:$G$41,4,0)="","未入力",VLOOKUP(C29,'報告書② 第2年度(取組）'!C29:G43,4,0)),"-------")) ->  | G29: =IF(C29="","",IFERROR(IF(VLOOKUP(C29,'報告書② 第2年度(取組）'!$C$27:$G$41,5,0)="","未入力",VLOOKUP(C29,'報告書② 第2年度(取組）'!C29:G43,5,0)),"-------")) ->  | K29: 未実施 | L29: =COUNTIF($H$27:$H$41,$K29) -> 0 | M29: 0 | O29: 第3年度 | P29: =IF($J$2>2,SUM(Q29:S29),"") ->  | Q29: =IF($J$2>2,COUNTIF($H$27:$H$41,Q$26),"") ->  | R29: =IF($J$2>2,COUNTIF($H$27:$H$41,R$26),"") ->  | S29: =IF($J$2>2,COUNTIF($H$27:$H$41,S$26),"") ->  | T29: =IF($J$2>2,Q29*$M$27+R29*$M$28,"") -> 
A30: 4 | C30: =対策リスト!AT5&"" ->  | E30: =IF(C30="","",IFERROR(IF(VLOOKUP(C30,'報告書② 第2年度(取組）'!$C$27:$G$41,3,0)="","未入力",VLOOKUP(C30,'報告書② 第2年度(取組）'!C30:G44,3,0)),"-------")) ->  | F30: =IF(C30="","",IFERROR(IF(VLOOKUP(C30,'報告書② 第2年度(取組）'!$C$27:$G$41,4,0)="","未入力",VLOOKUP(C30,'報告書② 第2年度(取組）'!C30:G44,4,0)),"-------")) ->  | G30: =IF(C30="","",IFERROR(IF(VLOOKUP(C30,'報告書② 第2年度(取組）'!$C$27:$G$41,5,0)="","未入力",VLOOKUP(C30,'報告書② 第2年度(取組）'!C30:G44,5,0)),"-------")) ->  | K30: 合計 | L30: =SUM(L27:L29) -> 0 | M30: 50 | O30: 平均 | P30: =IFERROR(ROUNDUP(AVERAGE(P27:P29),0),"") ->  | Q30: =IFERROR(ROUNDUP(AVERAGE(Q27:Q29),0),"") ->  | R30: =IFERROR(ROUNDUP(AVERAGE(R27:R29),0),"") ->  | T30: =IFERROR(ROUNDUP(AVERAGE(T27:T29),0),"") -> 
A31: 5 | C31: =対策リスト!AT6&"" ->  | E31: =IF(C31="","",IFERROR(IF(VLOOKUP(C31,'報告書② 第2年度(取組）'!$C$27:$G$41,3,0)="","未入力",VLOOKUP(C31,'報告書② 第2年度(取組）'!C31:G45,3,0)),"-------")) ->  | F31: =IF(C31="","",IFERROR(IF(VLOOKUP(C31,'報告書② 第2年度(取組）'!$C$27:$G$41,4,0)="","未入力",VLOOKUP(C31,'報告書② 第2年度(取組）'!C31:G45,4,0)),"-------")) ->  | G31: =IF(C31="","",IFERROR(IF(VLOOKUP(C31,'報告書② 第2年度(取組）'!$C$27:$G$41,5,0)="","未入力",VLOOKUP(C31,'報告書② 第2年度(取組）'!C31:G45,5,0)),"-------")) ->  | K31: 最終年度 評価点 | L31: =IF(L27*M27+L28*M28>M30,M30,L27*M27+L28*M28) -> 0
A32: 6 | C32: =対策リスト!AT7&"" ->  | E32: =IF(C32="","",IFERROR(IF(VLOOKUP(C32,'報告書② 第2年度(取組）'!$C$27:$G$41,3,0)="","未入力",VLOOKUP(C32,'報告書② 第2年度(取組）'!C32:G46,3,0)),"-------")) ->  | F32: =IF(C32="","",IFERROR(IF(VLOOKUP(C32,'報告書② 第2年度(取組）'!$C$27:$G$41,4,0)="","未入力",VLOOKUP(C32,'報告書② 第2年度(取組）'!C32:G46,4,0)),"-------")) ->  | G32: =IF(C32="","",IFERROR(IF(VLOOKUP(C32,'報告書② 第2年度(取組）'!$C$27:$G$41,5,0)="","未入力",VLOOKUP(C32,'報告書② 第2年度(取組）'!C32:G46,5,0)),"-------")) -> 
A33: 7 | C33: =対策リスト!AT8&"" ->  | E33: =IF(C33="","",IFERROR(IF(VLOOKUP(C33,'報告書② 第2年度(取組）'!$C$27:$G$41,3,0)="","未入力",VLOOKUP(C33,'報告書② 第2年度(取組）'!C33:G47,3,0)),"-------")) ->  | F33: =IF(C33="","",IFERROR(IF(VLOOKUP(C33,'報告書② 第2年度(取組）'!$C$27:$G$41,4,0)="","未入力",VLOOKUP(C33,'報告書② 第2年度(取組）'!C33:G47,4,0)),"-------")) ->  | G33: =IF(C33="","",IFERROR(IF(VLOOKUP(C33,'報告書② 第2年度(取組）'!$C$27:$G$41,5,0)="","未入力",VLOOKUP(C33,'報告書② 第2年度(取組）'!C33:G47,5,0)),"-------")) -> 
A34: 8 | C34: =対策リスト!AT9&"" ->  | E34: =IF(C34="","",IFERROR(IF(VLOOKUP(C34,'報告書② 第2年度(取組）'!$C$27:$G$41,3,0)="","未入力",VLOOKUP(C34,'報告書② 第2年度(取組）'!C34:G48,3,0)),"-------")) ->  | F34: =IF(C34="","",IFERROR(IF(VLOOKUP(C34,'報告書② 第2年度(取組）'!$C$27:$G$41,4,0)="","未入力",VLOOKUP(C34,'報告書② 第2年度(取組）'!C34:G48,4,0)),"-------")) ->  | G34: =IF(C34="","",IFERROR(IF(VLOOKUP(C34,'報告書② 第2年度(取組）'!$C$27:$G$41,5,0)="","未入力",VLOOKUP(C34,'報告書② 第2年度(取組）'!C34:G48,5,0)),"-------")) -> 
A35: 9 | C35: =対策リスト!AT10&"" ->  | E35: =IF(C35="","",IFERROR(IF(VLOOKUP(C35,'報告書② 第2年度(取組）'!$C$27:$G$41,3,0)="","未入力",VLOOKUP(C35,'報告書② 第2年度(取組）'!C35:G49,3,0)),"-------")) ->  | F35: =IF(C35="","",IFERROR(IF(VLOOKUP(C35,'報告書② 第2年度(取組）'!$C$27:$G$41,4,0)="","未入力",VLOOKUP(C35,'報告書② 第2年度(取組）'!C35:G49,4,0)),"-------")) ->  | G35: =IF(C35="","",IFERROR(IF(VLOOKUP(C35,'報告書② 第2年度(取組）'!$C$27:$G$41,5,0)="","未入力",VLOOKUP(C35,'報告書② 第2年度(取組）'!C35:G49,5,0)),"-------")) -> 
A36: 10 | C36: =対策リスト!AT11&"" ->  | E36: =IF(C36="","",IFERROR(IF(VLOOKUP(C36,'報告書② 第2年度(取組）'!$C$27:$G$41,3,0)="","未入力",VLOOKUP(C36,'報告書② 第2年度(取組）'!C36:G50,3,0)),"-------")) ->  | F36: =IF(C36="","",IFERROR(IF(VLOOKUP(C36,'報告書② 第2年度(取組）'!$C$27:$G$41,4,0)="","未入力",VLOOKUP(C36,'報告書② 第2年度(取組）'!C36:G50,4,0)),"-------")) ->  | G36: =IF(C36="","",IFERROR(IF(VLOOKUP(C36,'報告書② 第2年度(取組）'!$C$27:$G$41,5,0)="","未入力",VLOOKUP(C36,'報告書② 第2年度(取組）'!C36:G50,5,0)),"-------")) -> 
A37: 11 | C37: =対策リスト!AT12&"" ->  | E37: =IF(C37="","",IFERROR(IF(VLOOKUP(C37,'報告書② 第2年度(取組）'!$C$27:$G$41,3,0)="","未入力",VLOOKUP(C37,'報告書② 第2年度(取組）'!C37:G51,3,0)),"-------")) ->  | F37: =IF(C37="","",IFERROR(IF(VLOOKUP(C37,'報告書② 第2年度(取組）'!$C$27:$G$41,4,0)="","未入力",VLOOKUP(C37,'報告書② 第2年度(取組）'!C37:G51,4,0)),"-------")) ->  | G37: =IF(C37="","",IFERROR(IF(VLOOKUP(C37,'報告書② 第2年度(取組）'!$C$27:$G$41,5,0)="","未入力",VLOOKUP(C37,'報告書② 第2年度(取組）'!C37:G51,5,0)),"-------")) -> 
A38: 12 | C38: =対策リスト!AT13&"" ->  | E38: =IF(C38="","",IFERROR(IF(VLOOKUP(C38,'報告書② 第2年度(取組）'!$C$27:$G$41,3,0)="","未入力",VLOOKUP(C38,'報告書② 第2年度(取組）'!C38:G52,3,0)),"-------")) ->  | F38: =IF(C38="","",IFERROR(IF(VLOOKUP(C38,'報告書② 第2年度(取組）'!$C$27:$G$41,4,0)="","未入力",VLOOKUP(C38,'報告書② 第2年度(取組）'!C38:G52,4,0)),"-------")) ->  | G38: =IF(C38="","",IFERROR(IF(VLOOKUP(C38,'報告書② 第2年度(取組）'!$C$27:$G$41,5,0)="","未入力",VLOOKUP(C38,'報告書② 第2年度(取組）'!C38:G52,5,0)),"-------")) -> 
A39: 13 | C39: =対策リスト!AT14&"" ->  | E39: =IF(C39="","",IFERROR(IF(VLOOKUP(C39,'報告書② 第2年度(取組）'!$C$27:$G$41,3,0)="","未入力",VLOOKUP(C39,'報告書② 第2年度(取組）'!C39:G53,3,0)),"-------")) ->  | F39: =IF(C39="","",IFERROR(IF(VLOOKUP(C39,'報告書② 第2年度(取組）'!$C$27:$G$41,4,0)="","未入力",VLOOKUP(C39,'報告書② 第2年度(取組）'!C39:G53,4,0)),"-------")) ->  | G39: =IF(C39="","",IFERROR(IF(VLOOKUP(C39,'報告書② 第2年度(取組）'!$C$27:$G$41,5,0)="","未入力",VLOOKUP(C39,'報告書② 第2年度(取組）'!C39:G53,5,0)),"-------")) -> 
A40: 14 | C40: =対策リスト!AT15&"" ->  | E40: =IF(C40="","",IFERROR(IF(VLOOKUP(C40,'報告書② 第2年度(取組）'!$C$27:$G$41,3,0)="","未入力",VLOOKUP(C40,'報告書② 第2年度(取組）'!C40:G54,3,0)),"-------")) ->  | F40: =IF(C40="","",IFERROR(IF(VLOOKUP(C40,'報告書② 第2年度(取組）'!$C$27:$G$41,4,0)="","未入力",VLOOKUP(C40,'報告書② 第2年度(取組）'!C40:G54,4,0)),"-------")) ->  | G40: =IF(C40="","",IFERROR(IF(VLOOKUP(C40,'報告書② 第2年度(取組）'!$C$27:$G$41,5,0)="","未入力",VLOOKUP(C40,'報告書② 第2年度(取組）'!C40:G54,5,0)),"-------")) -> 
A41: 15 | C41: =対策リスト!AT16&"" ->  | E41: =IF(C41="","",IFERROR(IF(VLOOKUP(C41,'報告書② 第2年度(取組）'!$C$27:$G$41,3,0)="","未入力",VLOOKUP(C41,'報告書② 第2年度(取組）'!C41:G55,3,0)),"-------")) ->  | F41: =IF(C41="","",IFERROR(IF(VLOOKUP(C41,'報告書② 第2年度(取組）'!$C$27:$G$41,4,0)="","未入力",VLOOKUP(C41,'報告書② 第2年度(取組）'!C41:G55,4,0)),"-------")) ->  | G41: =IF(C41="","",IFERROR(IF(VLOOKUP(C41,'報告書② 第2年度(取組）'!$C$27:$G$41,5,0)="","未入力",VLOOKUP(C41,'報告書② 第2年度(取組）'!C41:G55,5,0)),"-------")) -> 
K43: =VLOOKUP(C47,'報告書② 第2年度(取組）'!$C$47:$G$56,5,0) -> 0
A44: ５の３ 重点的に実施する取組の実施状況（その他の対策）
A45: 番号 | B45: 項目 | D45: 具体的な取組内容 | E45: 実施状況 | K45: 第３年度
E46: 基準年度 | F46: 第１年度 | G46: 第２年度 | H46: 第３年度 | K46: 状況 | L46: 項目数 | M46: 評価指標 | O46: 実施状況 | P46: 項目数 | Q46: 実施済 | R46: 未実施 | S46: 評価点
A47: 1 | C47: =対策リスト!BT2&"" ->  | D47: =対策リスト!BW2&"" ->  | E47: =IF(C47="","",IF(対策リスト!CD2="","-------",対策リスト!CD2)) ->  | F47: =IF(C47="","",IF(対策リスト!CC2="","-------",対策リスト!CC2)) ->  | G47: =IF(C47="","",IF(対策リスト!CB2="","-------",対策リスト!CB2)) ->  | K47: 実施済 | L47: =COUNTIF($H$47:$H$56,$K47) -> 0 | M47: 5 | O47: 第1年度 | P47: =IF($J$2>0,SUM(Q47:R47),"") ->  | Q47: =IF($J$2>0,COUNTIF($F$47:$F$56,Q$46),"") ->  | R47: =IF($J$2>0,COUNTIF($F$47:$F$56,R$46),"") ->  | S47: =IF($J$2>0,Q47*$M$47,"") -> 
A48: 2 | C48: =対策リスト!BT3&"" ->  | D48: =対策リスト!BW3&"" ->  | E48: =IF(C48="","",IF(対策リスト!CD3="","-------",対策リスト!CD3)) ->  | F48: =IF(C48="","",IF(対策リスト!CC3="","-------",対策リスト!CC3)) ->  | G48: =IF(C48="","",IF(対策リスト!CB3="","-------",対策リスト!CB3)) ->  | K48: 未実施 | L48: =COUNTIF($H$47:$H$56,$K48) -> 0 | M48: 0 | O48: 第2年度 | P48: =IF($J$2>1,SUM(Q48:R48),"") ->  | Q48: =IF($J$2>0,COUNTIF($G$47:$G$56,Q$46),"") ->  | R48: =IF($J$2>0,COUNTIF($G$47:$G$56,R$46),"") ->  | S48: =IF($J$2>1,Q48*$M$47,"") -> 
A49: 3 | C49: =対策リスト!BT4&"" ->  | D49: =対策リスト!BW4&"" ->  | E49: =IF(C49="","",IF(対策リスト!CD4="","-------",対策リスト!CD4)) ->  | F49: =IF(C49="","",IF(対策リスト!CC4="","-------",対策リスト!CC4)) ->  | G49: =IF(C49="","",IF(対策リスト!CB4="","-------",対策リスト!CB4)) ->  | K49: 合計 | L49: =SUM(L47:L48) -> 0 | M49: 25 | O49: 第3年度 | P49: =IF($J$2>2,SUM(Q49:R49),"") ->  | Q49: =IF($J$2>0,COUNTIF($H$47:$H$56,Q$46),"") ->  | R49: =IF($J$2>0,COUNTIF($H$47:$H$56,R$46),"") ->  | S49: =IF($J$2>2,Q49*$M$47,"") -> 
A50: 4 | C50: =対策リスト!BT5&"" ->  | D50: =対策リスト!BW5&"" ->  | E50: =IF(C50="","",IF(対策リスト!CD5="","-------",対策リスト!CD5)) ->  | F50: =IF(C50="","",IF(対策リスト!CC5="","-------",対策リスト!CC5)) ->  | G50: =IF(C50="","",IF(対策リスト!CB5="","-------",対策リスト!CB5)) ->  | K50: 最終年度 評価点 | L50: =IF(L47*M47>M49,M49,L47*M47) -> 0 | O50: 平均 | P50: =IFERROR(ROUNDUP(AVERAGE(P47:P49),0),"") ->  | Q50: =IFERROR(ROUNDUP(AVERAGE(Q47:Q49),0),"") ->  | R50: =IFERROR(ROUNDUP(AVERAGE(R47:R49),0),"") ->  | S50: =IFERROR(ROUNDUP(AVERAGE(S47:S49),0),"") -> 
A51: 5 | C51: =対策リスト!BT6&"" ->  | D51: =対策リスト!BW6&"" ->  | E51: =IF(C51="","",IF(対策リスト!CD6="","-------",対策リスト!CD6)) ->  | F51: =IF(C51="","",IF(対策リスト!CC6="","-------",対策リスト!CC6)) ->  | G51: =IF(C51="","",IF(対策リスト!CB6="","-------",対策リスト!CB6)) -> 
A52: 6 | C52: =対策リスト!BT7&"" ->  | D52: =対策リスト!BW7&"" ->  | E52: =IF(C52="","",IF(対策リスト!CD7="","-------",対策リスト!CD7)) ->  | F52: =IF(C52="","",IF(対策リスト!CC7="","-------",対策リスト!CC7)) ->  | G52: =IF(C52="","",IF(対策リスト!CB7="","-------",対策リスト!CB7)) -> 
A53: 7 | C53: =対策リスト!BT8&"" ->  | D53: =対策リスト!BW8&"" ->  | E53: =IF(C53="","",IF(対策リスト!CD8="","-------",対策リスト!CD8)) ->  | F53: =IF(C53="","",IF(対策リスト!CC8="","-------",対策リスト!CC8)) ->  | G53: =IF(C53="","",IF(対策リスト!CB8="","-------",対策リスト!CB8)) -> 
A54: 8 | C54: =対策リスト!BT9&"" ->  | D54: =対策リスト!BW9&"" ->  | E54: =IF(C54="","",IF(対策リスト!CD9="","-------",対策リスト!CD9)) ->  | F54: =IF(C54="","",IF(対策リスト!CC9="","-------",対策リスト!CC9)) ->  | G54: =IF(C54="","",IF(対策リスト!CB9="","-------",対策リスト!CB9)) -> 
A55: 9 | C55: =対策リスト!BT10&"" ->  | D55: =対策リスト!BW10&"" ->  | E55: =IF(C55="","",IF(対策リスト!CD10="","-------",対策リスト!CD10)) ->  | F55: =IF(C55="","",IF(対策リスト!CC10="","-------",対策リスト!CC10)) ->  | G55: =IF(C55="","",IF(対策リスト!CB10="","-------",対策リスト!CB10)) -> 
A56: 10 | C56: =対策リスト!BT11&"" ->  | D56: =対策リスト!BW11&"" ->  | E56: =IF(C56="","",IF(対策リスト!CD11="","-------",対策リスト!CD11)) ->  | F56: =IF(C56="","",IF(対策リスト!CC11="","-------",対策リスト!CC11)) ->  | G56: =IF(C56="","",IF(対策リスト!CB11="","-------",対策リスト!CB11)) -> 
C90: 第３年度追加（選択対策）
A91: 1
A92: 2
A93: 3
A94: 4
A95: 5
A96: 6
A97: 7
A98: 8
A99: 9
A100: 10
A101: 11
A102: 12
A103: 13
A104: 14
A105: 15
C119: 第３年度追加（その他の対策）
D120: 具体的な取組内容
A121: 1
A122: 2
A123: 3
A124: 4
A125: 5
A126: 6
A127: 7
A128: 8
A129: 9
A130: 10

Sheet 報告書③（任意記載） (hidden)
A2: 参考１ 計画期間内に実施した削減対策（詳細）
A3: 番号 | B3: 対策内容 | C3: 実施年度 | D3: 推計削減量 （t-CO2/年） | F3: 写真
A4: 1
A5: 2
A6: 3
A7: 4
A8: 5
A9: 6
A10: 7
A11: 8
A12: 9
A13: 10

Sheet 事業所排出量内訳（第1年度） (hidden)
C1: 温室効果ガス排出量内訳 | H1: 第１年度 | I1: ="（"&はじめに!E4+1&"年度）" -> （1年度） | P1: =はじめに!E4+1 -> 1 | Q1: １．エネルギー起源二酸化炭素（CO2）排出量
Q2: 熱量合計 | R2: =SUM(I13,I20) -> 0 | S2: GJ
C3: １．エネルギー起源二酸化炭素（CO2）排出量 | Q3: 原油換算 | R3: =R2*0.0258 -> 0 | S3: KL
C4: 燃料の種類 | E4: 使用量 | F4: 外部 供給量 | G4: 実使用量 | H4: 単位 | I4: 熱量 (GJ) | J4: 排出量 (t-CO2) | N4: =IF(R2=0,0,1) -> 0 | Q4: 排出量合計 | R4: =ROUNDDOWN(SUM(J13,J20),0) -> 0 | S4: t-CO2
L5: エネルギー名称区分2022 | M5: エネルギー名称区分2023 | N5: 単位発熱量 | O5: 炭素排出係数
C6: 揮発油（ガソリン） | G6: =IF(AND(E6="",F6=""),"",SUM(E6)-SUM(F6)) ->  | H6: kl | I6: =IFERROR(IF(G6="","",$G6*N6),"-------------") ->  | J6: =IFERROR(IF(G6="","",$I6*O6*44/12),"----------") ->  | L6: 揮発油 | M6: 揮発油 | N6: =IF($P$1=2022,VLOOKUP(L6,係数2022,7,0),VLOOKUP(M6,係数2023,7,0)) -> 33.4 | O6: =IF($P$1=2022,VLOOKUP(L6,係数2022,9,0),VLOOKUP(M6,係数2023,9,0)) -> 0.0187 | Q6: ２．エネルギー起源二酸化炭素（CO2）以外の温室効果ガス排出量
C7: 軽油 | G7: =IF(AND(E7="",F7=""),"",SUM(E7)-SUM(F7)) ->  | H7: kl | I7: =IFERROR(IF(G7="","",$G7*N7),"-------------") ->  | J7: =IFERROR(IF(G7="","",$I7*O7*44/12),"----------") ->  | L7: 軽油 | M7: 軽油 | N7: =IF($P$1=2022,VLOOKUP(L7,係数2022,7,0),VLOOKUP(M7,係数2023,7,0)) -> 38 | O7: =IF($P$1=2022,VLOOKUP(L7,係数2022,9,0),VLOOKUP(M7,係数2023,9,0)) -> 0.0188 | Q7: 排出量合計 | R7: =SUM(E33) -> 0 | S7: t-CO2
C8: 液化石油ガス (LPG) | H8: t | I8: =IFERROR(IF(G8="","",$G8*N8),"-------------") ->  | J8: =IFERROR(IF(G8="","",$I8*O8*44/12),"----------") ->  | L8: 液化石油ガス (LPG) | M8: 液化石油ガス (LPG) | N8: =IF($P$1=2022,VLOOKUP(L8,係数2022,7,0),VLOOKUP(M8,係数2023,7,0)) -> 50.1 | O8: =IF($P$1=2022,VLOOKUP(L8,係数2022,9,0),VLOOKUP(M8,係数2023,9,0)) -> 0.0163
C9: 液化天然ガス (LNG) | H9: t | I9: =IFERROR(IF(G9="","",$G9*N9),"-------------") ->  | J9: =IFERROR(IF(G9="","",$I9*O9*44/12),"----------") ->  | L9: 液化天然ガス (LNG) | M9: 液化天然ガス (LNG) | N9: =IF($P$1=2022,VLOOKUP(L9,係数2022,7,0),VLOOKUP(M9,係数2023,7,0)) -> 54.7 | O9: =IF($P$1=2022,VLOOKUP(L9,係数2022,9,0),VLOOKUP(M9,係数2023,9,0)) -> 0.0139 | Q9: ３．クレジット等による削減量
C10: 都市ガス（CNG含む） | H10: 千m3 | I10: =IFERROR(IF(G10="","",$G10*N10),"-------------") ->  | J10: =IFERROR(IF(G10="","",$I10*O10*44/12),"----------") ->  | L10: 都市ガス | M10: 都市ガス | N10: =IF($P$1=2022,VLOOKUP(L10,係数2022,7,0),VLOOKUP(M10,係数2023,7,0)) -> 45 | O10: =IF($P$1=2022,VLOOKUP(L10,係数2022,9,0),VLOOKUP(M10,係数2023,9,0)) -> 0.014 | Q10: 削減量合計 | R10: =SUM(E45) -> 0 | S10: t-CO2
C11: ="その他（"&Q22&"）" -> その他（）
C12: 水素 | H12: t | I12: =IFERROR(IF(G12="","",$G12*N12),"-------------") ->  | M12: 水素 | N12: =IF($P$1=2022,VLOOKUP(L12,係数2022,7,0),VLOOKUP(M12,係数2023,7,0)) -> 142 | O12: =IF($P$1=2022,VLOOKUP(L12,係数2022,9,0),VLOOKUP(M12,係数2023,9,0)) -> ー | Q12: 温室効果ガス総排出量 | R12: =SUM(R4,R7)-R10 -> 0 | S12: t-CO2
C13: 小 計 | E13: － | F13: － | G13: － | H13: － | I13: =IF(COUNTBLANK(I6:I12)=7,"",SUM(I6:I12)) ->  | J13: =IF(COUNTBLANK(J6:J11)=6,"",SUM(J6:J11)) -> 
Q14: ４．原単位の指標
C15: 電気の種類 | E15: 使用量 | F15: 外部 供給量 | G15: 実使用量 | H15: 単位 | I15: 熱量 (GJ) | J15: 排出量 (t-CO2) | Q15: 排出原単位 | R15: =IF(R12="","",IFERROR(ROUND(R12/D52,3-INT(LOG(R12/D52))),)) -> 0 | S15: ="t-CO2/"&D51 -> t-CO2/
L16: エネルギー名称区分2022 | M16: エネルギー名称区分2023 | N16: 単位発熱量 | O16: 炭素排出係数
C17: 電気事業者 | D17: 昼間買電 | E17: =R31 ->  | G17: =E17 ->  | H17: 千kWh | I17: =IFERROR(IF(G17="","",G17*N17),"----------") ->  | J17: =U31 ->  | L17: 電気事業者_昼間買電 | M17: 電気事業者_昼間買電 | N17: =IF($P$1=2022,VLOOKUP(L17,係数2022,7,0),VLOOKUP(M17,係数2023,7,0)) -> 8.64 | O17: =IF($P$1=2022,VLOOKUP(L17,係数2022,9,0),VLOOKUP(M17,係数2023,9,0)) -> ー | Q17: ５．年度末使用車両数
D18: 夜間買電 | E18: =S31 ->  | G18: =E18 ->  | H18: 千kWh | I18: =IFERROR(IF(G18="","",G18*N18),"----------") ->  | J18: =V31 ->  | L18: 電気事業者_夜間買電 | M18: 電気事業者_夜間買電 | N18: =IF($P$1=2022,VLOOKUP(L18,係数2022,7,0),VLOOKUP(M18,係数2023,7,0)) -> 8.64 | O18: =IF($P$1=2022,VLOOKUP(L18,係数2022,9,0),VLOOKUP(M18,係数2023,9,0)) -> ー | Q18: 非化石エネルギー自動車割合 | R18: =IF(OR(D68=0,D68="",H68=0,H68=""),0,H68/D68*100) -> 0 | S18: ％
C19: その他買電 | E19: =R40 ->  | G19: =E19 ->  | H19: 千kWh | I19: =IFERROR(IF(G19="","",G19*N19),"----------") ->  | J19: =IF(E19="","",T40) ->  | L19: その他買電 | M19: その他買電 | N19: =IF($P$1=2022,VLOOKUP(L19,係数2022,7,0),VLOOKUP(M19,係数2023,7,0)) -> 8.64 | O19: =IF($P$1=2022,VLOOKUP(L19,係数2022,9,0),VLOOKUP(M19,係数2023,9,0)) -> ー
C20: 小 計 | E20: =IF(COUNTBLANK(E17:E19)=3,"",SUM(E17:E19)) ->  | G20: =IF(COUNTBLANK(G17:G19)=3,"",SUM(G17:G19)) ->  | H20: 千kWh | I20: =IF(COUNTBLANK(I17:I19)=3,"",SUM(I17:I19)) ->  | J20: =IF(COUNTBLANK(J17:J19)=3,"",SUM(J17:J19)) -> 
Q21: その他の名称 | R21: 換算係数 | S21: 排出係数
C23: ２．エネルギー起源二酸化炭素（CO2）以外の温室効果ガス排出量
C24: 温室効果ガスの種類 | E24: 排出量 (t-CO2) | Q24: 電気事業者名 | R24: 昼間買電量 (千kWh) | S24: 夜間買電量 (千kWh) | T24: 排出係数 (tCO2/千kWh) | U24: 昼間排出量 (t-CO2) | V24: 夜間排出量 (t-CO2)
C26: 非エネルギー起源二酸化炭素（CO2） | U26: =IF($T26="","",R26*$T26) ->  | V26: =IF($T26="","",S26*$T26) -> 
C27: メタン（CH4） | U27: =IF($T27="","",R27*$T27) -> 
C28: 一酸化二窒素（N2O）
C29: ハイドロフルオロカーボン（HFC）
C30: パーフルオロカーボン（PFC）
C31: 六フッ化硫黄（SF6） | Q31: 合計 | R31: =IF(COUNTBLANK(R26:S30)=10,"",SUM(R26:R30)) ->  | S31: =IF(COUNTBLANK(R26:S30)=10,"",SUM(S26:S30)) ->  | U31: =IF(COUNTBLANK(R26:S30)=10,"",SUM(U26:U30)) ->  | V31: =IF(COUNTBLANK(R26:S30)=10,"",SUM(V26:V30)) -> 
C32: 三フッ化窒素（NF3）
C33: 合 計 | E33: =IF(COUNTBLANK(E26:E32)=7,"",SUM(E26:E32)) ->  | Q33: その他買電 | R33: 買電量 (千kWh) | S33: 排出係数 (tCO2/千kWh) | T33: 排出量 (t-CO2)
C35: ３．クレジット等による削減量 | T35: =IF(S35="","",R35*S35) -> 
C36: クレジット等の種類 | E36: 削減量 (t-CO2) | T36: =IF(S36="","",R36*S36) -> 
T37: =IF(S37="","",R37*S37) -> 
T38: =IF(S38="","",R38*S38) -> 
T39: =IF(S39="","",R39*S39) -> 
Q40: 合計 | R40: =IF(COUNTBLANK(R35:R39)=5,"",SUM(R35:R39)) ->  | T40: =IF(COUNTBLANK(R35:R39)=5,"",SUM(T35:T39)) -> 
C45: 合 計 | E45: =IF(COUNTBLANK(E38:E44)=7,"",SUM(E38:E44)) -> 
C47: ４．原単位の指標
C48: 原単位の指標（分母）
C50: 名称 | D50: ='事業所排出量内訳 (基準年度)'!D50&"" -> 
C51: 単位 | D51: ='事業所排出量内訳 (基準年度)'!D51&"" -> 
C52: 数値
C55: ５．年度末使用車両数
C56: 車種 | D56: 全台数 （台） | E56: 全台数のうち下記の車種の内訳 | H56: 台数 （台）
C58: トラック | E58: EV・PHV・水素自動車
E59: ハイブリッド自動車
E60: 低炭素ディーゼル自動車・天然ガス自動車
C61: バス | E61: EV・PHV・水素自動車
E62: ハイブリッド自動車
E63: 低炭素ディーゼル自動車・天然ガス自動車
C64: タクシー | E64: EV・PHV・水素自動車
E65: ハイブリッド自動車
C66: 一般車両 | E66: EV・PHV・水素自動車
E67: ハイブリッド自動車
C68: 合 計 | D68: =IF(COUNTBLANK(D58)+COUNTBLANK(D61)+COUNTBLANK(D64)+COUNTBLANK(D66)=4,"",SUM(D58,D61,D64,D66)) ->  | E68: 合 計 | H68: =IF(COUNTBLANK(H58:H67)=10,"",SUM(H58:H67)) -> 

Sheet 事業所排出量内訳（第2年度） (hidden)
C1: 温室効果ガス排出量内訳 | H1: 第２年度 | I1: ="（"&はじめに!E4+2&"年度）" -> （2年度） | P1: =はじめに!E4+2 -> 2 | Q1: １．エネルギー起源二酸化炭素（CO2）排出量
Q2: 熱量合計 | R2: =SUM(I13,I20) -> 0 | S2: GJ
C3: １．エネルギー起源二酸化炭素（CO2）排出量 | Q3: 原油換算 | R3: =R2*0.0258 -> 0 | S3: KL
C4: 燃料の種類 | E4: 使用量 | F4: 外部 供給量 | G4: 実使用量 | H4: 単位 | I4: 熱量 (GJ) | J4: 排出量 (t-CO2) | N4: =IF(R2=0,0,1) -> 0 | Q4: 排出量合計 | R4: =ROUNDDOWN(SUM(J13,J20),0) -> 0 | S4: t-CO2
L5: エネルギー名称区分2022 | M5: エネルギー名称区分2023 | N5: 単位発熱量 | O5: 炭素排出係数
C6: 揮発油（ガソリン） | G6: =IF(AND(E6="",F6=""),"",SUM(E6)-SUM(F6)) ->  | H6: kl | I6: =IFERROR(IF(G6="","",$G6*N6),"-------------") ->  | J6: =IFERROR(IF(G6="","",$I6*O6*44/12),"----------") ->  | L6: 揮発油 | M6: 揮発油 | N6: =IF($P$1=2022,VLOOKUP(L6,係数2022,7,0),VLOOKUP(M6,係数2023,7,0)) -> 33.4 | O6: =IF($P$1=2022,VLOOKUP(L6,係数2022,9,0),VLOOKUP(M6,係数2023,9,0)) -> 0.0187 | Q6: ２．エネルギー起源二酸化炭素（CO2）以外の温室効果ガス排出量
C7: 軽油 | G7: =IF(AND(E7="",F7=""),"",SUM(E7)-SUM(F7)) ->  | H7: kl | I7: =IFERROR(IF(G7="","",$G7*N7),"-------------") ->  | J7: =IFERROR(IF(G7="","",$I7*O7*44/12),"----------") ->  | L7: 軽油 | M7: 軽油 | N7: =IF($P$1=2022,VLOOKUP(L7,係数2022,7,0),VLOOKUP(M7,係数2023,7,0)) -> 38 | O7: =IF($P$1=2022,VLOOKUP(L7,係数2022,9,0),VLOOKUP(M7,係数2023,9,0)) -> 0.0188 | Q7: 排出量合計 | R7: =SUM(E33) -> 0 | S7: t-CO2
C8: 液化石油ガス (LPG) | H8: t | I8: =IFERROR(IF(G8="","",$G8*N8),"-------------") ->  | J8: =IFERROR(IF(G8="","",$I8*O8*44/12),"----------") ->  | L8: 液化石油ガス (LPG) | M8: 液化石油ガス (LPG) | N8: =IF($P$1=2022,VLOOKUP(L8,係数2022,7,0),VLOOKUP(M8,係数2023,7,0)) -> 50.1 | O8: =IF($P$1=2022,VLOOKUP(L8,係数2022,9,0),VLOOKUP(M8,係数2023,9,0)) -> 0.0163
C9: 液化天然ガス (LNG) | H9: t | I9: =IFERROR(IF(G9="","",$G9*N9),"-------------") ->  | J9: =IFERROR(IF(G9="","",$I9*O9*44/12),"----------") ->  | L9: 液化天然ガス (LNG) | M9: 液化天然ガス (LNG) | N9: =IF($P$1=2022,VLOOKUP(L9,係数2022,7,0),VLOOKUP(M9,係数2023,7,0)) -> 54.7 | O9: =IF($P$1=2022,VLOOKUP(L9,係数2022,9,0),VLOOKUP(M9,係数2023,9,0)) -> 0.0139 | Q9: ３．クレジット等による削減量
C10: 都市ガス（CNG含む） | H10: 千m3 | I10: =IFERROR(IF(G10="","",$G10*N10),"-------------") ->  | J10: =IFERROR(IF(G10="","",$I10*O10*44/12),"----------") ->  | L10: 都市ガス | M10: 都市ガス | N10: =IF($P$1=2022,VLOOKUP(L10,係数2022,7,0),VLOOKUP(M10,係数2023,7,0)) -> 45 | O10: =IF($P$1=2022,VLOOKUP(L10,係数2022,9,0),VLOOKUP(M10,係数2023,9,0)) -> 0.014 | Q10: 削減量合計 | R10: =SUM(E45) -> 0 | S10: t-CO2
C11: ="その他（"&Q22&"）" -> その他（）
C12: 水素 | H12: t | I12: =IFERROR(IF(G12="","",$G12*N12),"-------------") ->  | M12: 水素 | N12: =IF($P$1=2022,VLOOKUP(L12,係数2022,7,0),VLOOKUP(M12,係数2023,7,0)) -> 142 | O12: =IF($P$1=2022,VLOOKUP(L12,係数2022,9,0),VLOOKUP(M12,係数2023,9,0)) -> ー | Q12: 温室効果ガス総排出量 | R12: =SUM(R4,R7)-R10 -> 0 | S12: t-CO2
C13: 小 計 | E13: － | F13: － | G13: － | H13: － | I13: =IF(COUNTBLANK(I6:I12)=7,"",SUM(I6:I12)) ->  | J13: =IF(COUNTBLANK(J6:J11)=6,"",SUM(J6:J11)) -> 
Q14: ４．原単位の指標
C15: 電気の種類 | E15: 使用量 | F15: 外部 供給量 | G15: 実使用量 | H15: 単位 | I15: 熱量 (GJ) | J15: 排出量 (t-CO2) | Q15: 排出原単位 | R15: =IF(R12="","",IFERROR(ROUND(R12/D52,3-INT(LOG(R12/D52))),)) -> 0 | S15: ="t-CO2/"&D51 -> t-CO2/
L16: エネルギー名称区分2022 | M16: エネルギー名称区分2023 | N16: 単位発熱量 | O16: 炭素排出係数
C17: 電気事業者 | D17: 昼間買電 | E17: =R31 ->  | G17: =E17 ->  | H17: 千kWh | I17: =IFERROR(IF(G17="","",G17*N17),"----------") ->  | J17: =U31 ->  | L17: 電気事業者_昼間買電 | M17: 電気事業者_昼間買電 | N17: =IF($P$1=2022,VLOOKUP(L17,係数2022,7,0),VLOOKUP(M17,係数2023,7,0)) -> 8.64 | O17: =IF($P$1=2022,VLOOKUP(L17,係数2022,9,0),VLOOKUP(M17,係数2023,9,0)) -> ー | Q17: ５．年度末使用車両数
D18: 夜間買電 | E18: =S31 ->  | G18: =E18 ->  | H18: 千kWh | I18: =IFERROR(IF(G18="","",G18*N18),"----------") ->  | J18: =V31 ->  | L18: 電気事業者_夜間買電 | M18: 電気事業者_夜間買電 | N18: =IF($P$1=2022,VLOOKUP(L18,係数2022,7,0),VLOOKUP(M18,係数2023,7,0)) -> 8.64 | O18: =IF($P$1=2022,VLOOKUP(L18,係数2022,9,0),VLOOKUP(M18,係数2023,9,0)) -> ー | Q18: 非化石エネルギー自動車割合 | R18: =IF(OR(D68=0,D68="",H68=0,H68=""),0,H68/D68*100) -> 0 | S18: ％
C19: その他買電 | E19: =R40 ->  | G19: =E19 ->  | H19: 千kWh | I19: =IFERROR(IF(G19="","",G19*N19),"----------") ->  | J19: =IF(E19="","",T40) ->  | L19: その他買電 | M19: その他買電 | N19: =IF($P$1=2022,VLOOKUP(L19,係数2022,7,0),VLOOKUP(M19,係数2023,7,0)) -> 8.64 | O19: =IF($P$1=2022,VLOOKUP(L19,係数2022,9,0),VLOOKUP(M19,係数2023,9,0)) -> ー
C20: 小 計 | E20: =IF(COUNTBLANK(E17:E19)=3,"",SUM(E17:E19)) ->  | G20: =IF(COUNTBLANK(G17:G19)=3,"",SUM(G17:G19)) ->  | H20: 千kWh | I20: =IF(COUNTBLANK(I17:I19)=3,"",SUM(I17:I19)) ->  | J20: =IF(COUNTBLANK(J17:J19)=3,"",SUM(J17:J19)) -> 
Q21: その他の名称 | R21: 換算係数 | S21: 排出係数
C23: ２．エネルギー起源二酸化炭素（CO2）以外の温室効果ガス排出量
C24: 温室効果ガスの種類 | E24: 排出量 (t-CO2) | Q24: 電気事業者名 | R24: 昼間買電量 (千kWh) | S24: 夜間買電量 (千kWh) | T24: 排出係数 (tCO2/千kWh) | U24: 昼間排出量 (t-CO2) | V24: 夜間排出量 (t-CO2)
C26: 非エネルギー起源二酸化炭素（CO2） | U26: =IF($T26="","",R26*$T26) ->  | V26: =IF($T26="","",S26*$T26) -> 
C27: メタン（CH4） | U27: =IF($T27="","",R27*$T27) -> 
C28: 一酸化二窒素（N2O）
C29: ハイドロフルオロカーボン（HFC）
C30: パーフルオロカーボン（PFC）
C31: 六フッ化硫黄（SF6） | Q31: 合計 | R31: =IF(COUNTBLANK(R26:S30)=10,"",SUM(R26:R30)) ->  | S31: =IF(COUNTBLANK(R26:S30)=10,"",SUM(S26:S30)) ->  | U31: =IF(COUNTBLANK(R26:S30)=10,"",SUM(U26:U30)) ->  | V31: =IF(COUNTBLANK(R26:S30)=10,"",SUM(V26:V30)) -> 
C32: 三フッ化窒素（NF3）
C33: 合 計 | E33: =IF(COUNTBLANK(E26:E32)=7,"",SUM(E26:E32)) ->  | Q33: その他買電 | R33: 買電量 (千kWh) | S33: 排出係数 (tCO2/千kWh) | T33: 排出量 (t-CO2)
C35: ３．クレジット等による削減量 | T35: =IF(S35="","",R35*S35) -> 
C36: クレジット等の種類 | E36: 削減量 (t-CO2) | T36: =IF(S36="","",R36*S36) -> 
T37: =IF(S37="","",R37*S37) -> 
T38: =IF(S38="","",R38*S38) -> 
T39: =IF(S39="","",R39*S39) -> 
Q40: 合計 | R40: =IF(COUNTBLANK(R35:R39)=5,"",SUM(R35:R39)) ->  | T40: =IF(COUNTBLANK(R35:R39)=5,"",SUM(T35:T39)) -> 
C45: 合 計 | E45: =IF(COUNTBLANK(E38:E44)=7,"",SUM(E38:E44)) -> 
C47: ４．原単位の指標
C48: 原単位の指標（分母）
C50: 名称 | D50: ='事業所排出量内訳 (基準年度)'!D50&"" -> 
C51: 単位 | D51: ='事業所排出量内訳 (基準年度)'!D51&"" -> 
C52: 数値
C55: ５．年度末使用車両数
C56: 車種 | D56: 全台数 （台） | E56: 全台数のうち下記の車種の内訳 | H56: 台数 （台）
C58: トラック | E58: EV・PHV・水素自動車
E59: ハイブリッド自動車
E60: 低炭素ディーゼル自動車・天然ガス自動車
C61: バス | E61: EV・PHV・水素自動車
E62: ハイブリッド自動車
E63: 低炭素ディーゼル自動車・天然ガス自動車
C64: タクシー | E64: EV・PHV・水素自動車
E65: ハイブリッド自動車
C66: 一般車両 | E66: EV・PHV・水素自動車
E67: ハイブリッド自動車
C68: 合 計 | D68: =IF(COUNTBLANK(D58)+COUNTBLANK(D61)+COUNTBLANK(D64)+COUNTBLANK(D66)=4,"",SUM(D58,D61,D64,D66)) ->  | E68: 合 計 | H68: =IF(COUNTBLANK(H58:H67)=10,"",SUM(H58:H67)) -> 

Sheet 事業所排出量内訳（第3年度） (hidden)
C1: 温室効果ガス排出量内訳 | H1: 第３年度 | I1: ="（"&はじめに!E4+3&"年度）" -> （3年度） | P1: =はじめに!E4+3 -> 3 | Q1: １．エネルギー起源二酸化炭素（CO2）排出量
Q2: 熱量合計 | R2: =SUM(I13,I20) -> 0 | S2: GJ
C3: １．エネルギー起源二酸化炭素（CO2）排出量 | Q3: 原油換算 | R3: =R2*0.0258 -> 0 | S3: KL
C4: 燃料の種類 | E4: 使用量 | F4: 外部 供給量 | G4: 実使用量 | H4: 単位 | I4: 熱量 (GJ) | J4: 排出量 (t-CO2) | N4: =IF(R2=0,0,1) -> 0 | Q4: 排出量合計 | R4: =ROUNDDOWN(SUM(J13,J20),0) -> 0 | S4: t-CO2
L5: エネルギー名称区分2022 | M5: エネルギー名称区分2023 | N5: 単位発熱量 | O5: 炭素排出係数
C6: 揮発油（ガソリン） | G6: =IF(AND(E6="",F6=""),"",SUM(E6)-SUM(F6)) ->  | H6: kl | I6: =IFERROR(IF(G6="","",$G6*N6),"-------------") ->  | J6: =IFERROR(IF(G6="","",$I6*O6*44/12),"----------") ->  | L6: 揮発油 | M6: 揮発油 | N6: =IF($P$1=2022,VLOOKUP(L6,係数2022,7,0),VLOOKUP(M6,係数2023,7,0)) -> 33.4 | O6: =IF($P$1=2022,VLOOKUP(L6,係数2022,9,0),VLOOKUP(M6,係数2023,9,0)) -> 0.0187 | Q6: ２．エネルギー起源二酸化炭素（CO2）以外の温室効果ガス排出量
C7: 軽油 | G7: =IF(AND(E7="",F7=""),"",SUM(E7)-SUM(F7)) ->  | H7: kl | I7: =IFERROR(IF(G7="","",$G7*N7),"-------------") ->  | J7: =IFERROR(IF(G7="","",$I7*O7*44/12),"----------") ->  | L7: 軽油 | M7: 軽油 | N7: =IF($P$1=2022,VLOOKUP(L7,係数2022,7,0),VLOOKUP(M7,係数2023,7,0)) -> 38 | O7: =IF($P$1=2022,VLOOKUP(L7,係数2022,9,0),VLOOKUP(M7,係数2023,9,0)) -> 0.0188 | Q7: 排出量合計 | R7: =SUM(E33) -> 0 | S7: t-CO2
C8: 液化石油ガス (LPG) | H8: t | I8: =IFERROR(IF(G8="","",$G8*N8),"-------------") ->  | J8: =IFERROR(IF(G8="","",$I8*O8*44/12),"----------") ->  | L8: 液化石油ガス (LPG) | M8: 液化石油ガス (LPG) | N8: =IF($P$1=2022,VLOOKUP(L8,係数2022,7,0),VLOOKUP(M8,係数2023,7,0)) -> 50.1 | O8: =IF($P$1=2022,VLOOKUP(L8,係数2022,9,0),VLOOKUP(M8,係数2023,9,0)) -> 0.0163
C9: 液化天然ガス (LNG) | H9: t | I9: =IFERROR(IF(G9="","",$G9*N9),"-------------") ->  | J9: =IFERROR(IF(G9="","",$I9*O9*44/12),"----------") ->  | L9: 液化天然ガス (LNG) | M9: 液化天然ガス (LNG) | N9: =IF($P$1=2022,VLOOKUP(L9,係数2022,7,0),VLOOKUP(M9,係数2023,7,0)) -> 54.7 | O9: =IF($P$1=2022,VLOOKUP(L9,係数2022,9,0),VLOOKUP(M9,係数2023,9,0)) -> 0.0139 | Q9: ３．クレジット等による削減量
C10: 都市ガス（CNG含む） | H10: 千m3 | I10: =IFERROR(IF(G10="","",$G10*N10),"-------------") ->  | J10: =IFERROR(IF(G10="","",$I10*O10*44/12),"----------") ->  | L10: 都市ガス | M10: 都市ガス | N10: =IF($P$1=2022,VLOOKUP(L10,係数2022,7,0),VLOOKUP(M10,係数2023,7,0)) -> 45 | O10: =IF($P$1=2022,VLOOKUP(L10,係数2022,9,0),VLOOKUP(M10,係数2023,9,0)) -> 0.014 | Q10: 削減量合計 | R10: =SUM(E45) -> 0 | S10: t-CO2
C11: ="その他（"&Q22&"）" -> その他（）
C12: 水素 | H12: t | I12: =IFERROR(IF(G12="","",$G12*N12),"-------------") ->  | M12: 水素 | N12: =IF($P$1=2022,VLOOKUP(L12,係数2022,7,0),VLOOKUP(M12,係数2023,7,0)) -> 142 | O12: =IF($P$1=2022,VLOOKUP(L12,係数2022,9,0),VLOOKUP(M12,係数2023,9,0)) -> ー | Q12: 温室効果ガス総排出量 | R12: =SUM(R4,R7)-R10 -> 0 | S12: t-CO2
C13: 小 計 | E13: － | F13: － | G13: － | H13: － | I13: =IF(COUNTBLANK(I6:I12)=7,"",SUM(I6:I12)) ->  | J13: =IF(COUNTBLANK(J6:J11)=6,"",SUM(J6:J11)) -> 
Q14: ４．原単位の指標
C15: 電気の種類 | E15: 使用量 | F15: 外部 供給量 | G15: 実使用量 | H15: 単位 | I15: 熱量 (GJ) | J15: 排出量 (t-CO2) | Q15: 排出原単位 | R15: =IF(R12="","",IFERROR(ROUND(R12/D52,3-INT(LOG(R12/D52))),)) -> 0 | S15: ="t-CO2/"&D51 -> t-CO2/
L16: エネルギー名称区分2022 | M16: エネルギー名称区分2023 | N16: 単位発熱量 | O16: 炭素排出係数
C17: 電気事業者 | D17: 昼間買電 | E17: =R31 ->  | G17: =E17 ->  | H17: 千kWh | I17: =IFERROR(IF(G17="","",G17*N17),"----------") ->  | J17: =U31 ->  | L17: 電気事業者_昼間買電 | M17: 電気事業者_昼間買電 | N17: =IF($P$1=2022,VLOOKUP(L17,係数2022,7,0),VLOOKUP(M17,係数2023,7,0)) -> 8.64 | O17: =IF($P$1=2022,VLOOKUP(L17,係数2022,9,0),VLOOKUP(M17,係数2023,9,0)) -> ー | Q17: ５．年度末使用車両数
D18: 夜間買電 | E18: =S31 ->  | G18: =E18 ->  | H18: 千kWh | I18: =IFERROR(IF(G18="","",G18*N18),"----------") ->  | J18: =V31 ->  | L18: 電気事業者_夜間買電 | M18: 電気事業者_夜間買電 | N18: =IF($P$1=2022,VLOOKUP(L18,係数2022,7,0),VLOOKUP(M18,係数2023,7,0)) -> 8.64 | O18: =IF($P$1=2022,VLOOKUP(L18,係数2022,9,0),VLOOKUP(M18,係数2023,9,0)) -> ー | Q18: 非化石エネルギー自動車割合 | R18: =IF(OR(D68=0,D68="",H68=0,H68=""),0,H68/D68*100) -> 0 | S18: ％
C19: その他買電 | E19: =R40 ->  | G19: =E19 ->  | H19: 千kWh | J19: =IF(E19="","",T40) ->  | L19: その他買電 | M19: その他買電 | N19: =IF($P$1=2022,VLOOKUP(L19,係数2022,7,0),VLOOKUP(M19,係数2023,7,0)) -> 8.64 | O19: =IF($P$1=2022,VLOOKUP(L19,係数2022,9,0),VLOOKUP(M19,係数2023,9,0)) -> ー
C20: 小 計 | E20: =IF(COUNTBLANK(E17:E19)=3,"",SUM(E17:E19)) ->  | G20: =IF(COUNTBLANK(G17:G19)=3,"",SUM(G17:G19)) ->  | H20: 千kWh | I20: =IF(COUNTBLANK(I17:I19)=3,"",SUM(I17:I19)) ->  | J20: =IF(COUNTBLANK(J17:J19)=3,"",SUM(J17:J19)) -> 
Q21: その他の名称 | R21: 換算係数 | S21: 排出係数
C23: ２．エネルギー起源二酸化炭素（CO2）以外の温室効果ガス排出量
C24: 温室効果ガスの種類 | E24: 排出量 (t-CO2) | Q24: 電気事業者名 | R24: 昼間買電量 (千kWh) | S24: 夜間買電量 (千kWh) | T24: 排出係数 (tCO2/千kWh) | U24: 昼間排出量 (t-CO2) | V24: 夜間排出量 (t-CO2)
C26: 非エネルギー起源二酸化炭素（CO2） | U26: =IF($T26="","",R26*$T26) ->  | V26: =IF($T26="","",S26*$T26) -> 
C27: メタン（CH4） | U27: =IF($T27="","",R27*$T27) -> 
C28: 一酸化二窒素（N2O）
C29: ハイドロフルオロカーボン（HFC）
C30: パーフルオロカーボン（PFC）
C31: 六フッ化硫黄（SF6） | Q31: 合計 | R31: =IF(COUNTBLANK(R26:S30)=10,"",SUM(R26:R30)) ->  | S31: =IF(COUNTBLANK(R26:S30)=10,"",SUM(S26:S30)) ->  | U31: =IF(COUNTBLANK(R26:S30)=10,"",SUM(U26:U30)) ->  | V31: =IF(COUNTBLANK(R26:S30)=10,"",SUM(V26:V30)) -> 
C32: 三フッ化窒素（NF3）
C33: 合 計 | E33: =IF(COUNTBLANK(E26:E32)=7,"",SUM(E26:E32)) ->  | Q33: その他買電 | R33: 買電量 (千kWh) | S33: 排出係数 (tCO2/千kWh) | T33: 排出量 (t-CO2)
C35: ３．クレジット等による削減量 | T35: =IF(S35="","",R35*S35) -> 
C36: クレジット等の種類 | E36: 削減量 (t-CO2) | T36: =IF(S36="","",R36*S36) -> 
T37: =IF(S37="","",R37*S37) -> 
T38: =IF(S38="","",R38*S38) -> 
T39: =IF(S39="","",R39*S39) -> 
Q40: 合計 | R40: =IF(COUNTBLANK(R35:R39)=5,"",SUM(R35:R39)) ->  | T40: =IF(COUNTBLANK(R35:R39)=5,"",SUM(T35:T39)) -> 
C45: 合 計 | E45: =IF(COUNTBLANK(E38:E44)=7,"",SUM(E38:E44)) -> 
C47: ４．原単位の指標
C48: 原単位の指標（分母）
C50: 名称 | D50: ='事業所排出量内訳 (基準年度)'!D50&"" -> 
C51: 単位 | D51: ='事業所排出量内訳 (基準年度)'!D51&"" -> 
C52: 数値
C55: ５．年度末使用車両数
C56: 車種 | D56: 全台数 （台） | E56: 全台数のうち下記の車種の内訳 | H56: 台数 （台）
C58: トラック | E58: EV・PHV・水素自動車
E59: ハイブリッド自動車
E60: 低炭素ディーゼル自動車・天然ガス自動車
C61: バス | E61: EV・PHV・水素自動車
E62: ハイブリッド自動車
E63: 低炭素ディーゼル自動車・天然ガス自動車
C64: タクシー | E64: EV・PHV・水素自動車
E65: ハイブリッド自動車
C66: 一般車両 | E66: EV・PHV・水素自動車
E67: ハイブリッド自動車
C68: 合 計 | D68: =IF(COUNTBLANK(D58)+COUNTBLANK(D61)+COUNTBLANK(D64)+COUNTBLANK(D66)=4,"",SUM(D58,D61,D64,D66)) ->  | E68: 合 計 | H68: =IF(COUNTBLANK(H58:H67)=10,"",SUM(H58:H67)) -> 

Sheet 報告書提出書 (hidden)
B3: 事業者温室効果ガス削減報告書 提出書
L5: =IF(はじめに!E30="","",はじめに!E30) ->  | M5: 年 | N5: =IF(はじめに!G30="","",はじめに!G30) ->  | O5: 月 | P5: =IF(はじめに!I30="","",はじめに!I30) ->  | Q5: 日
A6: （あて先）仙台市長
G8: 住所 | J8: =IF(はじめに!E7="","",はじめに!E7) -> 
G9: 法人の名称 | J9: =IF(はじめに!E6="","",はじめに!E6) -> 
G10: 代表者氏名 | J10: =IF(はじめに!E8="","",はじめに!E8) -> 
A12: 仙台市地球温暖化対策等の推進に関する条例第11条第1項の規定により、別紙のとおり事業者温室効果ガス削減報告書を提出します。
A15: 事業者の名称 | D15: =IF(J9="","",J9) -> 
A16: 市内代表事業所の 名称 | D16: =IF(はじめに!E14="","",はじめに!E14) -> 
A17: 市内代表事業所の 所在地 | D17: =IF(はじめに!E16="","",はじめに!E16) -> 
A19: 該当する 事業者の要件 | D19: =IF(はじめに!S10=TRUE,"〇","") ->  | E19: ①原油換算エネルギー使用量が1,500kL以上の事業所 （条例第2条第5号イに該当する特定事業者）
D20: =IF(はじめに!S11=TRUE,"〇","") ->  | E20: ②エネルギー起源CO2を除くいずれかの物質の温室効果ガス排出量が3,000トン以上の事業所（条例第2条第5号ロに該当する特定事業者）
D21: =IF(はじめに!S12=TRUE,"〇","") -> 〇 | E21: ③市内に100台以上の自動車を所有する運送事業者 （条例第2条第5号ハに該当する特定事業者）
D22: =IF(はじめに!S13=TRUE,"〇","") ->  | E22: ④任意提出事業者 （条例第15条第1項に該当する一般事業者）
A24: 連絡先 | D24: 担当者 | F24: 部署名 | H24: =IF(はじめに!E21="","",はじめに!E21) -> 
F25: 氏名 | H25: =IF(はじめに!E24="","",はじめに!E24) -> 
D26: 郵便番号 | H26: =IF(はじめに!F22="","",はじめに!F22 & "-") & IF(はじめに!H22="","",はじめに!H22) -> 
D27: 住所 | H27: =IF(はじめに!E23="","",はじめに!E23) -> 
D28: 電話番号 | H28: =IF(はじめに!E25="","",はじめに!E25) -> 
D29: ＦＡＸ番号 | H29: =IF(はじめに!E26="","",はじめに!E26) -> 
D30: メールアドレス | H30: =IF(はじめに!E27="","",はじめに!E27) -> 
A33: ※受理 | F33: ※整理番号
F34: ※備考

Sheet 報告書（公表用） (hidden)
B3: 事業者温室効果ガス削減報告書概要（第二計画期間） | N3: =" 第 "&はじめに!F29&" 年度分" -> 第 年度分
A5: １ 事業者の概要
A6: 事業者の名称 | E6: =IF(はじめに!E6="","",はじめに!E6) -> 
A7: 市内代表事業所の名称 | E7: =IF(はじめに!E14="","",はじめに!E14) -> 
A8: 市内代表事業所の所在地 | E8: =IF(はじめに!E16="","",はじめに!E16) -> 
A9: 主たる事業 | E9: =IF(はじめに!S17="","",はじめに!S17) -> 
A10: 事業者の該当要件 | E10: =IF(報告書提出書!D19="","",報告書提出書!D19) ->  | F10: 条例第2条第5号イに該当する特定事業者
E11: =IF(報告書提出書!D20="","",報告書提出書!D20) ->  | F11: 条例第2条第5号ロに該当する特定事業者
E12: =IF(報告書提出書!D21="","",報告書提出書!D21) -> 〇 | F12: 条例第2条第5号ハに該当する特定事業者
E13: =IF(報告書提出書!D22="","",報告書提出書!D22) ->  | F13: 条例第15条第1項に該当する一般事業者
A14: 温室効果ガス 排出抑制の ための基本方針 | E14: =IF('報告書①（事業者概要・実績）'!A13="","",'報告書①（事業者概要・実績）'!A13) -> 
A16: ２ 温室効果ガスの排出状況等
A17: 温室効果ガスの 削減目標 | E17: 基準年度 | G17: =IF(はじめに!E4="","",はじめに!E4) ->  | H17: 年度 | I17: 基準排出量 | K17: =IF('報告書①（事業者概要・実績）'!H24="","",'報告書①（事業者概要・実績）'!H24) ->  | M17: t-CO2 | N17: 基準原単位 | P17: =IF('報告書①（事業者概要・実績）'!M24="","",'報告書①（事業者概要・実績）'!M24) -> 
E18: 目標年度 | G18: =IF(はじめに!H3="","",はじめに!H3) -> 2025 | H18: 年度 | I18: 目標排出量 | K18: =IF('報告書①（事業者概要・実績）'!H25="","",'報告書①（事業者概要・実績）'!H25) ->  | M18: t-CO2 | N18: 目標原単位 | P18: =IF('報告書①（事業者概要・実績）'!M25="","",'報告書①（事業者概要・実績）'!M25) -> 
I19: 削減率 | K19: =IF('報告書①（事業者概要・実績）'!H26="","",'報告書①（事業者概要・実績）'!H26) ->  | M19: ％ | N19: 削減率 | P19: =IF('報告書①（事業者概要・実績）'!M26="","",'報告書①（事業者概要・実績）'!M26) ->  | Q19: ％
A20: 温室効果ガスの 排出状況 | E20: 第１年度 | G20: =IF('報告書①（事業者概要・実績）'!C28="","",'報告書①（事業者概要・実績）'!C28) ->  | H20: 年度 | I20: 排出量 | K20: =IF('報告書①（事業者概要・実績）'!H28="","",'報告書①（事業者概要・実績）'!H28) ->  | M20: t-CO2 | N20: 排出原単位 | P20: =IF('報告書①（事業者概要・実績）'!M28="","",'報告書①（事業者概要・実績）'!M28) -> 
I21: 削減率 | K21: =IF('報告書①（事業者概要・実績）'!H29="","",'報告書①（事業者概要・実績）'!H29) ->  | M21: ％ | N21: 削減率 | P21: =IF('報告書①（事業者概要・実績）'!M29="","",'報告書①（事業者概要・実績）'!M29) ->  | Q21: ％
E22: 排出量等の 増減理由 | G22: =IF('報告書①（事業者概要・実績）'!C31="","",'報告書①（事業者概要・実績）'!C31) -> 
E23: 第２年度 | G23: =IF('報告書①（事業者概要・実績）'!C32="","",'報告書①（事業者概要・実績）'!C32) ->  | H23: 年度 | I23: 排出量 | K23: =IF('報告書①（事業者概要・実績）'!H32="","",'報告書①（事業者概要・実績）'!H32) ->  | M23: t-CO2 | N23: 排出原単位 | P23: =IF('報告書①（事業者概要・実績）'!M32="","",'報告書①（事業者概要・実績）'!M32) -> 
I24: 削減率 | K24: =IF('報告書①（事業者概要・実績）'!H33="","",'報告書①（事業者概要・実績）'!H33) ->  | M24: ％ | N24: 削減率 | P24: =IF('報告書①（事業者概要・実績）'!M33="","",'報告書①（事業者概要・実績）'!M33) ->  | Q24: ％
E25: 排出量等の 増減理由 | G25: =IF('報告書①（事業者概要・実績）'!C35="","",'報告書①（事業者概要・実績）'!C35) -> 
E26: 第３年度 | G26: =IF('報告書①（事業者概要・実績）'!C36="","",'報告書①（事業者概要・実績）'!C36) ->  | H26: 年度 | I26: 排出量 | K26: =IF('報告書①（事業者概要・実績）'!H36="","",'報告書①（事業者概要・実績）'!H36) ->  | M26: t-CO2 | N26: 排出原単位 | P26: =IF('報告書①（事業者概要・実績）'!M36="","",'報告書①（事業者概要・実績）'!M36) -> 
I27: 削減率 | K27: =IF('報告書①（事業者概要・実績）'!H37="","",'報告書①（事業者概要・実績）'!H37) ->  | M27: ％ | N27: 削減率 | P27: =IF('報告書①（事業者概要・実績）'!M37="","",'報告書①（事業者概要・実績）'!M37) ->  | Q27: ％
E28: 排出量等の 増減理由 | G28: =IF('報告書①（事業者概要・実績）'!C39="","",'報告書①（事業者概要・実績）'!C39) -> 
A30: ３ 温室効果ガスの排出抑制に関する取組
A31: 基本対策の実施状況 | E31: 基準年度 | G31: =IF('計画書② (取組）'!J9="","",'計画書② (取組）'!J9*100) ->  | H31: ％ | I31: 目標年度 | K31: =IF('計画書② (取組）'!J10="","",'計画書② (取組）'!J10*100) ->  | L31: ％
E32: 第１年度 | G32: =IF('報告書② 第3年度(取組）'!T6="","",'報告書② 第3年度(取組）'!T6*100) ->  | H32: ％ | I32: 実施状況の説明等 | K32: =IF('報告書② 第1年度(取組）'!D20="","",'報告書② 第1年度(取組）'!D20) -> 
E33: 第２年度 | G33: =IF('報告書② 第3年度(取組）'!T7="","",'報告書② 第3年度(取組）'!T7*100) ->  | H33: ％ | I33: 実施状況の説明等 | K33: =IF('報告書② 第2年度(取組）'!D21="","",'報告書② 第2年度(取組）'!D21) -> 
E34: 第３年度 | G34: =IF('報告書② 第3年度(取組）'!T8="","",'報告書② 第3年度(取組）'!T8*100) ->  | H34: ％ | I34: 実施状況の説明等 | K34: =IF('報告書② 第3年度(取組）'!D22="","",'報告書② 第3年度(取組）'!D22) -> 
A38: 選択対策の実施状況 | E38: 項目 | P38: 実施状況
E39: =IF(はじめに!$F$29=1,'報告書② 第1年度(取組）'!C27&"",IF(はじめに!$F$29=2,'報告書② 第2年度(取組）'!C27&"",'報告書② 第3年度(取組）'!C27&"")) ->  | P39: =IF(はじめに!$F$29=1,'報告書② 第1年度(取組）'!F27&"",IF(はじめに!$F$29=2,'報告書② 第2年度(取組）'!G27&"",'報告書② 第3年度(取組）'!H27&"")) -> 
E40: =IF(はじめに!$F$29=1,'報告書② 第1年度(取組）'!C28&"",IF(はじめに!$F$29=2,'報告書② 第2年度(取組）'!C28&"",'報告書② 第3年度(取組）'!C28&"")) ->  | P40: =IF(はじめに!$F$29=1,'報告書② 第1年度(取組）'!F28&"",IF(はじめに!$F$29=2,'報告書② 第2年度(取組）'!G28&"",'報告書② 第3年度(取組）'!H28&"")) -> 
E41: =IF(はじめに!$F$29=1,'報告書② 第1年度(取組）'!C29&"",IF(はじめに!$F$29=2,'報告書② 第2年度(取組）'!C29&"",'報告書② 第3年度(取組）'!C29&"")) ->  | P41: =IF(はじめに!$F$29=1,'報告書② 第1年度(取組）'!F29&"",IF(はじめに!$F$29=2,'報告書② 第2年度(取組）'!G29&"",'報告書② 第3年度(取組）'!H29&"")) -> 
E42: =IF(はじめに!$F$29=1,'報告書② 第1年度(取組）'!C30&"",IF(はじめに!$F$29=2,'報告書② 第2年度(取組）'!C30&"",'報告書② 第3年度(取組）'!C30&"")) ->  | P42: =IF(はじめに!$F$29=1,'報告書② 第1年度(取組）'!F30&"",IF(はじめに!$F$29=2,'報告書② 第2年度(取組）'!G30&"",'報告書② 第3年度(取組）'!H30&"")) -> 
E43: =IF(はじめに!$F$29=1,'報告書② 第1年度(取組）'!C31&"",IF(はじめに!$F$29=2,'報告書② 第2年度(取組）'!C31&"",'報告書② 第3年度(取組）'!C31&"")) ->  | P43: =IF(はじめに!$F$29=1,'報告書② 第1年度(取組）'!F31&"",IF(はじめに!$F$29=2,'報告書② 第2年度(取組）'!G31&"",'報告書② 第3年度(取組）'!H31&"")) -> 
A44: その他の対策の 実施状況 | E44: 項目 | I44: 具体的な取組内容 | P44: 実施状況
E45: =IF(はじめに!$F$29=1,'報告書② 第1年度(取組）'!C47&"",IF(はじめに!$F$29=2,'報告書② 第2年度(取組）'!C47&"",'報告書② 第3年度(取組）'!C47&"")) ->  | I45: =IF(はじめに!$F$29=1,'報告書② 第1年度(取組）'!D47&"",IF(はじめに!$F$29=2,'報告書② 第2年度(取組）'!D47&"",'報告書② 第3年度(取組）'!D47&"")) ->  | P45: =IF(はじめに!$F$29=1,'報告書② 第1年度(取組）'!F47&"",IF(はじめに!$F$29=2,'報告書② 第2年度(取組）'!G47&"",'報告書② 第3年度(取組）'!H47&"")) -> 
E46: =IF(はじめに!$F$29=1,'報告書② 第1年度(取組）'!C48&"",IF(はじめに!$F$29=2,'報告書② 第2年度(取組）'!C48&"",'報告書② 第3年度(取組）'!C48&"")) ->  | I46: =IF(はじめに!$F$29=1,'報告書② 第1年度(取組）'!D48&"",IF(はじめに!$F$29=2,'報告書② 第2年度(取組）'!D48&"",'報告書② 第3年度(取組）'!D48&"")) ->  | P46: =IF(はじめに!$F$29=1,'報告書② 第1年度(取組）'!F48&"",IF(はじめに!$F$29=2,'報告書② 第2年度(取組）'!G48&"",'報告書② 第3年度(取組）'!H48&"")) -> 
E47: =IF(はじめに!$F$29=1,'報告書② 第1年度(取組）'!C49&"",IF(はじめに!$F$29=2,'報告書② 第2年度(取組）'!C49&"",'報告書② 第3年度(取組）'!C49&"")) ->  | I47: =IF(はじめに!$F$29=1,'報告書② 第1年度(取組）'!D49&"",IF(はじめに!$F$29=2,'報告書② 第2年度(取組）'!D49&"",'報告書② 第3年度(取組）'!D49&"")) ->  | P47: =IF(はじめに!$F$29=1,'報告書② 第1年度(取組）'!F49&"",IF(はじめに!$F$29=2,'報告書② 第2年度(取組）'!G49&"",'報告書② 第3年度(取組）'!H49&"")) -> 
E48: =IF(はじめに!$F$29=1,'報告書② 第1年度(取組）'!C50&"",IF(はじめに!$F$29=2,'報告書② 第2年度(取組）'!C50&"",'報告書② 第3年度(取組）'!C50&"")) ->  | I48: =IF(はじめに!$F$29=1,'報告書② 第1年度(取組）'!D50&"",IF(はじめに!$F$29=2,'報告書② 第2年度(取組）'!D50&"",'報告書② 第3年度(取組）'!D50&"")) ->  | P48: =IF(はじめに!$F$29=1,'報告書② 第1年度(取組）'!F50&"",IF(はじめに!$F$29=2,'報告書② 第2年度(取組）'!G50&"",'報告書② 第3年度(取組）'!H50&"")) -> 
E49: =IF(はじめに!$F$29=1,'報告書② 第1年度(取組）'!C51&"",IF(はじめに!$F$29=2,'報告書② 第2年度(取組）'!C51&"",'報告書② 第3年度(取組）'!C51&"")) ->  | I49: =IF(はじめに!$F$29=1,'報告書② 第1年度(取組）'!D51&"",IF(はじめに!$F$29=2,'報告書② 第2年度(取組）'!D51&"",'報告書② 第3年度(取組）'!D51&"")) ->  | P49: =IF(はじめに!$F$29=1,'報告書② 第1年度(取組）'!F51&"",IF(はじめに!$F$29=2,'報告書② 第2年度(取組）'!G51&"",'報告書② 第3年度(取組）'!H51&"")) -> 

Sheet 委任状 (hidden)
B3: 委任状
K5: 年 | M5: 月 | O5: 日
A7: （あて先）仙台市長
G9: 住所 | I9: =IF(計画書提出書!J8="","",計画書提出書!J8) -> 
G11: 法人の名称 | I11: =IF(計画書提出書!J9="","",計画書提出書!J9) -> 
G13: 代表者氏名 | I13: =IF(計画書提出書!J10="","",計画書提出書!J10) -> 
A16: 下記の者を代理人と定め、仙台市地球温暖化対策等の推進に関する条例第10条及び第11条に基づく手続きに関する一切の権限を委任します。
H20: 記
B23: 住所
B25: 名称
B27: 氏名

Sheet 評価点まとめ (hidden)
A2: 評価項目 | C2: 配点（最大） | D2: 評価点
A3: 定量項目 | B3: 排出量 | C3: 50 | D3: ='報告書①（事業者概要・実績）'!Z27 ->  | I3: 評価点 | K3: 評価
B4: 原単位 | C4: 50 | D4: ='報告書①（事業者概要・実績）'!Z28 ->  | I4: 以上 | J4: 未満
A5: 定性項目 | B5: 基本対策 | C5: 50 | D5: ='報告書② 第3年度(取組）'!U9 ->  | E5: （内訳） | I5: 160 | K5: S
B6: 選択対策 | C6: 50 （うち、その他対策25） | D6: =IF(SUM(E6:E7)>=50,50,SUM(E6:E7)) -> 0 | E6: ='報告書② 第3年度(取組）'!T30 ->  | I6: 130 | J6: 160 | K6: A
B7: その他対策 | E7: ='報告書② 第3年度(取組）'!S50 ->  | J7: 130 | K7: B
A8: 合計 | C8: 200 | D8: =SUM(D3:D7) -> 0
C11: 評価 | D11: =IF(D8>=I5,K5,IF(AND(D8>=I6,D8<J6),K6,IF(D8<J7,K7,"-"))) -> B

Sheet 係数 (hidden)
B1: 2022年度 燃料種別の単位発熱量及び炭素排出係数 | P1: 2023年度 燃料種別の単位発熱量及び炭素排出係数
C2: エネルギー名称区分 | D2: エネルギー区分 | E2: エネルギーの種類 | H2: 単位 | I2: 単位発熱量 | K2: 炭素排出係数 | Q2: エネルギー名称区分 | R2: エネルギー区分 | S2: 燃料及び熱の種類 | V2: 単位 | W2: 単位発熱量 | Y2: 炭素排出係数
B3: 化 石 燃 料 | C3: 原油（コンデンセートを除く。） | D3: 化石燃料 | E3: 原油（コンデンセートを除く。） | H3: kl | I3: 38.2 | J3: GＪ/ｋｌ | K3: 0.0187 | L3: tC/GJ | P3: 化 石 燃 料 | Q3: 原油（コンデンセートを除く。） | R3: 化石燃料 | S3: 原油（コンデンセートを除く。） | V3: kl | W3: 38.3 | X3: GＪ/ｋｌ | Y3: 0.019 | Z3: tC/GJ
C4: 原油のうちコンデンセート(NGL) | D4: 化石燃料 | E4: 原油のうちコンデンセート(NGL) | H4: kl | I4: 35.3 | J4: GＪ/ｋｌ | K4: 0.0184 | L4: tC/GJ | Q4: 原油のうちコンデンセート(NGL) | R4: 化石燃料 | S4: 原油のうちコンデンセート(NGL) | V4: kl | W4: 34.8 | X4: GＪ/ｋｌ | Y4: 0.0183 | Z4: tC/GJ
C5: 揮発油 | D5: 化石燃料 | E5: 揮発油 | H5: kl | I5: 34.6 | J5: GＪ/ｋｌ | K5: 0.0183 | L5: tC/GJ | Q5: 揮発油 | R5: 化石燃料 | S5: 揮発油 | V5: kl | W5: 33.4 | X5: GＪ/ｋｌ | Y5: 0.0187 | Z5: tC/GJ
C6: ナフサ | D6: 化石燃料 | E6: ナフサ | H6: kl | I6: 33.6 | J6: GＪ/ｋｌ | K6: 0.0182 | L6: tC/GJ | Q6: ナフサ | R6: 化石燃料 | S6: ナフサ | V6: kl | W6: 33.3 | X6: GＪ/ｋｌ | Y6: 0.0186 | Z6: tC/GJ
C7: ジェット燃料油 | D7: 化石燃料 | E7: ジェット燃料油 | H7: kl | I7: 36.7 | J7: GＪ/ｋｌ | K7: 0.0183 | L7: tC/GJ | Q7: ジェット燃料油 | R7: 化石燃料 | S7: ジェット燃料油 | V7: kl | W7: 36.3 | X7: GＪ/ｋｌ | Y7: 0.0186 | Z7: tC/GJ
C8: 灯油 | D8: 化石燃料 | E8: 灯油 | H8: kl | I8: 36.7 | J8: GＪ/ｋｌ | K8: 0.0185 | L8: tC/GJ | Q8: 灯油 | R8: 化石燃料 | S8: 灯油 | V8: kl | W8: 36.5 | X8: GＪ/ｋｌ | Y8: 0.0187 | Z8: tC/GJ
C9: 軽油 | D9: 化石燃料 | E9: 軽油 | H9: kl | I9: 37.7 | J9: GＪ/ｋｌ | K9: 0.0187 | L9: tC/GJ | Q9: 軽油 | R9: 化石燃料 | S9: 軽油 | V9: kl | W9: 38 | X9: GＪ/ｋｌ | Y9: 0.0188 | Z9: tC/GJ
C10: Ａ重油 | D10: 化石燃料 | E10: Ａ重油 | H10: kl | I10: 39.1 | J10: GＪ/ｋｌ | K10: 0.0189 | L10: tC/GJ | Q10: Ａ重油 | R10: 化石燃料 | S10: Ａ重油 | V10: kl | W10: 38.9 | X10: GＪ/ｋｌ | Y10: 0.0193 | Z10: tC/GJ
C11: Ｂ・Ｃ重油 | D11: 化石燃料 | E11: Ｂ・Ｃ重油 | H11: kl | I11: 41.9 | J11: GＪ/ｋｌ | K11: 0.0195 | L11: tC/GJ | Q11: Ｂ・Ｃ重油 | R11: 化石燃料 | S11: Ｂ・Ｃ重油 | V11: kl | W11: 41.8 | X11: GＪ/ｋｌ | Y11: 0.0202 | Z11: tC/GJ
C12: 石油アスファルト | D12: 化石燃料 | E12: 石油アスファルト | H12: t | I12: 40.9 | J12: GＪ/ｔ | K12: 0.0208 | L12: tC/GJ | Q12: 石油アスファルト | R12: 化石燃料 | S12: 石油アスファルト | V12: t | W12: 40 | X12: GＪ/ｔ | Y12: 0.0204 | Z12: tC/GJ
C13: 石油コークス | D13: 化石燃料 | E13: 石油コークス | H13: t | I13: 29.9 | J13: GＪ/ｔ | K13: 0.0254 | L13: tC/GJ | Q13: 石油コークス | R13: 化石燃料 | S13: 石油コークス | V13: t | W13: 34.1 | X13: GＪ/ｔ | Y13: 0.0245 | Z13: tC/GJ
C14: 液化石油ガス (LPG) | D14: 化石燃料 | E14: 石油ガス | F14: 液化石油ガス (LPG) | H14: t | I14: 50.8 | J14: GＪ/ｔ | K14: 0.0161 | L14: tC/GJ | Q14: 液化石油ガス (LPG) | R14: 化石燃料 | S14: 石油ガス | T14: 液化石油ガス (LPG) | V14: t | W14: 50.1 | X14: GＪ/ｔ | Y14: 0.0163 | Z14: tC/GJ
C15: 石油系炭化水素ガス | D15: 化石燃料 | F15: 石油系炭化水素ガス | H15: 千Nm3 | I15: 44.9 | J15: GＪ/千ｍ３ | K15: 0.0142 | L15: tC/GJ | Q15: 石油系炭化水素ガス | R15: 化石燃料 | T15: 石油系炭化水素ガス | V15: 千Nm3 | W15: 46.1 | X15: GＪ/千ｍ３ | Y15: 0.0144 | Z15: tC/GJ
C16: 液化天然ガス (LNG) | D16: 化石燃料 | E16: 可燃性 天然ガス | F16: 液化天然ガス (LNG) | H16: t | I16: 54.6 | J16: GＪ/ｔ | K16: 0.0135 | L16: tC/GJ | Q16: 液化天然ガス (LNG) | R16: 化石燃料 | S16: 可燃性 天然ガス | T16: 液化天然ガス (LNG) | V16: t | W16: 54.7 | X16: GＪ/ｔ | Y16: 0.0139 | Z16: tC/GJ
C17: その他可燃性天然ガス | D17: 化石燃料 | F17: その他可燃性天然ガス | H17: 千Nm3 | I17: 43.5 | J17: GＪ/千ｍ３ | K17: 0.0139 | L17: tC/GJ | Q17: その他可燃性天然ガス | R17: 化石燃料 | T17: その他可燃性天然ガス | V17: 千Nm3 | W17: 38.4 | X17: GＪ/千ｍ３ | Y17: 0.0139 | Z17: tC/GJ
C18: 原料炭 | D18: 化石燃料 | E18: 石炭 | F18: 原料炭 | G18: 輸入原料炭 | H18: t | I18: 29 | J18: GＪ/ｔ | K18: 0.0245 | L18: tC/GJ | Q18: 輸入原料炭 | R18: 化石燃料 | S18: 石炭 | T18: 原料炭 | U18: 輸入原料炭 | V18: t | W18: 28.7 | X18: GＪ/ｔ | Y18: 0.0246 | Z18: tC/GJ
D19: 化石燃料 | G19: コークス用原料炭 | H19: t | I19: ー | K19: ー | Q19: コークス用原料炭 | R19: 化石燃料 | U19: コークス用原料炭 | V19: t | W19: 28.9 | X19: GＪ/ｔ | Y19: 0.0245 | Z19: tC/GJ
D20: 化石燃料 | G20: 吹込用原料炭 | H20: t | I20: ー | K20: ー | Q20: 吹込用原料炭 | R20: 化石燃料 | U20: 吹込用原料炭 | V20: t | W20: 28.3 | X20: GＪ/ｔ | Y20: 0.0251 | Z20: tC/GJ
C21: 一般炭 | D21: 化石燃料 | F21: 一般炭 | G21: 輸入一般炭 | H21: t | I21: 25.7 | J21: GＪ/ｔ | K21: 0.0247 | L21: tC/GJ | Q21: 輸入一般炭 | R21: 化石燃料 | T21: 一般炭 | U21: 輸入一般炭 | V21: t | W21: 26.1 | X21: GＪ/ｔ | Y21: 0.0243 | Z21: tC/GJ
D22: 化石燃料 | G22: 国産一般炭 | H22: t | I22: ー | K22: ー | Q22: 国産一般炭 | R22: 化石燃料 | U22: 国産一般炭 | V22: t | W22: 24.2 | X22: GＪ/ｔ | Y22: 0.0242 | Z22: tC/GJ
C23: 無煙炭 | D23: 化石燃料 | F23: 輸入無煙炭 | H23: t | I23: 26.9 | J23: GＪ/ｔ | K23: 0.0255 | L23: tC/GJ | Q23: 輸入無煙炭 | R23: 化石燃料 | T23: 輸入無煙炭 | V23: t | W23: 27.8 | X23: GＪ/ｔ | Y23: 0.0259 | Z23: tC/GJ
C24: 石炭コークス | D24: 化石燃料 | E24: 石炭コークス | H24: t | I24: 29.4 | J24: GＪ/ｔ | K24: 0.0294 | L24: tC/GJ | Q24: 石炭コークス | R24: 化石燃料 | S24: 石炭コークス | V24: t | W24: 29 | X24: GＪ/ｔ | Y24: 0.0299 | Z24: tC/GJ
C25: コールタール | D25: 化石燃料 | E25: コールタール | H25: t | I25: 37.3 | J25: GＪ/ｔ | K25: 0.0209 | L25: tC/GJ | Q25: コールタール | R25: 化石燃料 | S25: コールタール | V25: t | W25: 37.3 | X25: GＪ/ｔ | Y25: 0.0209 | Z25: tC/GJ
C26: コークス炉ガス | D26: 化石燃料 | E26: コークス炉ガス | H26: 千Nm3 | I26: 21.1 | J26: GＪ/千ｍ３ | K26: 0.011 | L26: tC/GJ | Q26: コークス炉ガス | R26: 化石燃料 | S26: コークス炉ガス | V26: 千Nm3 | W26: 18.4 | X26: GＪ/千ｍ３ | Y26: 0.0109 | Z26: tC/GJ
C27: 高炉ガス | D27: 化石燃料 | E27: 高炉ガス | H27: 千Nm3 | I27: 3.41 | J27: GＪ/千ｍ３ | K27: 0.0263 | L27: tC/GJ | Q27: 高炉ガス | R27: 化石燃料 | S27: 高炉ガス | V27: 千Nm3 | W27: 3.23 | X27: GＪ/千ｍ３ | Y27: 0.0264 | Z27: tC/GJ
D28: 化石燃料 | E28: 発電用高炉ガス | H28: 千Nm3 | I28: ー | K28: ー | Q28: 発電用高炉ガス | R28: 化石燃料 | S28: 発電用高炉ガス | V28: 千Nm3 | W28: 3.45 | X28: GＪ/千ｍ３ | Y28: 0.0264 | Z28: tC/GJ
C29: 転炉ガス | D29: 化石燃料 | E29: 転炉ガス | H29: 千Nm3 | I29: 8.41 | J29: GＪ/千ｍ３ | K29: 0.0384 | L29: tC/GJ | Q29: 転炉ガス | R29: 化石燃料 | S29: 転炉ガス | V29: 千Nm3 | W29: 7.53 | X29: GＪ/千ｍ３ | Y29: 0.042 | Z29: tC/GJ
C30: 都市ガス | D30: 化石燃料 | E30: 都市ガス | H30: 千m3 | I30: 45 | J30: GＪ/千ｍ３ | K30: 0.0136 | L30: tC/GJ | Q30: 都市ガス | R30: 化石燃料 | S30: 都市ガス | V30: 千m3 | W30: 45 | X30: GＪ/千ｍ３ | Y30: 0.014 | Z30: tC/GJ
C31: テナント空調等推計値 | D31: 化石燃料 | E31: テナント空調等推計値 | H31: GJ | I31: 1 | J31: GＪ/GＪ | K31: 0.057 | L31: tCO2/GJ | Q31: テナント空調等推計値 | R31: 化石燃料 | S31: テナント空調等推計値 | V31: GJ | W31: 1.19 | X31: GＪ/GＪ | Y31: ー
B32: 非 化 石 燃 料 | C32: 黒液 | D32: 非化石燃料 | E32: 黒液 | H32: t | I32: ー | K32: ー | P32: 非 化 石 燃 料 | Q32: 黒液 | R32: 非化石燃料 | S32: 黒液 | V32: t | W32: 13.6 | X32: GJ/t | Y32: ー
C33: 木材 | D33: 非化石燃料 | E33: 木材 | H33: t | I33: ー | K33: ー | Q33: 木材 | R33: 非化石燃料 | S33: 木材 | V33: t | W33: 13.2 | X33: GJ/t | Y33: ー
C34: 木質廃材 | D34: 非化石燃料 | E34: 木質廃材 | H34: t | I34: ー | K34: ー | Q34: 木質廃材 | R34: 非化石燃料 | S34: 木質廃材 | V34: t | W34: 17.1 | X34: GJ/t | Y34: ー
C35: バイオエタノール | D35: 非化石燃料 | E35: バイオエタノール | H35: kl | I35: ー | K35: ー | Q35: バイオエタノール | R35: 非化石燃料 | S35: バイオエタノール | V35: kl | W35: 23.4 | X35: GJ/kl | Y35: ー
C36: バイオディーゼル | D36: 非化石燃料 | E36: バイオディーゼル | H36: kl | I36: ー | K36: ー | Q36: バイオディーゼル | R36: 非化石燃料 | S36: バイオディーゼル | V36: kl | W36: 35.6 | X36: GJ/kl | Y36: ー
C37: バイオガス | D37: 非化石燃料 | E37: バイオガス | H37: 千㎥ | I37: ー | K37: ー | Q37: バイオガス | R37: 非化石燃料 | S37: バイオガス | V37: 千㎥ | W37: 21.2 | X37: GJ/千㎥ | Y37: ー
C38: その他バイオマス | D38: 非化石燃料 | E38: その他バイオマス | H38: t | I38: ー | K38: ー | Q38: その他バイオマス | R38: 非化石燃料 | S38: その他バイオマス | V38: t | W38: 13.2 | X38: GJ/t | Y38: ー
C39: RDF | D39: 非化石燃料 | E39: RDF | H39: t | I39: ー | K39: ー | Q39: RDF | R39: 非化石燃料 | S39: RDF | V39: t | W39: 18 | X39: GJ/t | Y39: 0.0162 | Z39: tC/GJ
C40: RPF | D40: 非化石燃料 | E40: RPF | H40: t | I40: ー | K40: ー | Q40: RPF | R40: 非化石燃料 | S40: RPF | V40: t | W40: 26.9 | X40: GJ/t | Y40: 0.0166 | Z40: tC/GJ
C41: 廃タイヤ | D41: 非化石燃料 | E41: 廃タイヤ | H41: t | I41: ー | K41: ー | Q41: 廃タイヤ | R41: 非化石燃料 | S41: 廃タイヤ | V41: t | W41: 33.2 | X41: GJ/t | Y41: 0.0135 | Z41: tC/GJ
C42: 廃プラスチック_一般廃棄物 | D42: 非化石燃料 | E42: 廃プラスチック | F42: 一般廃棄物 | H42: t | I42: ー | K42: ー | Q42: 廃プラスチック_一般廃棄物 | R42: 非化石燃料 | S42: 廃プラスチック | T42: 一般廃棄物 | V42: t | W42: 29.3 | X42: GJ/t | Y42: 0.0257 | Z42: tC/GJ
C43: 廃プラスチック_産業廃棄物 | D43: 非化石燃料 | F43: 産業廃棄物 | H43: t | I43: ー | K43: ー | Q43: 廃プラスチック_産業廃棄物 | R43: 非化石燃料 | T43: 産業廃棄物 | V43: t | W43: 29.3 | X43: GJ/t | Y43: 0.0239 | Z43: tC/GJ
C44: 廃油 | D44: 非化石燃料 | E44: 廃油 | H44: kl | I44: ー | K44: ー | Q44: 廃油 | R44: 非化石燃料 | S44: 廃油 | V44: kl | W44: 40.2 | X44: GJ/kl | Y44: 0.0179 | Z44: tC/GJ
C45: 廃棄物ガス | D45: 非化石燃料 | E45: 廃棄物ガス | H45: 千㎥ | I45: ー | K45: ー | Q45: 廃棄物ガス | R45: 非化石燃料 | S45: 廃棄物ガス | V45: 千㎥ | W45: 21.2 | X45: GJ/千㎥ | Y45: ー
C46: 混合廃材 | D46: 非化石燃料 | E46: 混合廃材 | H46: t | I46: ー | K46: ー | Q46: 混合廃材 | R46: 非化石燃料 | S46: 混合廃材 | V46: t | W46: 17.1 | X46: GJ/t | Y46: ー
C47: 水素 | D47: 非化石燃料 | E47: 水素 | H47: t | I47: ー | K47: ー | Q47: 水素 | R47: 非化石燃料 | S47: 水素 | V47: t | W47: 142 | X47: GJ/t | Y47: ー
C48: アンモニア | D48: 非化石燃料 | E48: アンモニア | H48: t | I48: ー | K48: ー | Q48: アンモニア | R48: 非化石燃料 | S48: アンモニア | V48: t | W48: 22.5 | X48: GJ/t | Y48: ー
B49: 熱 | C49: 産業用蒸気 | D49: 熱 | E49: 産業用蒸気 | H49: GJ | I49: 1.02 | J49: GＪ/GＪ | K49: 0.06 | L49: tCO2/GJ | P49: 熱 | Q49: 産業用蒸気_化石 | R49: 熱 | S49: 産業用蒸気 | V49: GJ | W49: 1.17 | X49: GＪ/GＪ | Y49: 0.0654 | Z49: tCO2/GJ
C50: 産業用以外の蒸気 | D50: 熱 | E50: 産業用以外の蒸気 | H50: GJ | I50: 1.36 | J50: GＪ/GＪ | K50: 0.057 | L50: tCO2/GJ | Q50: 産業用以外の蒸気_化石 | R50: 熱 | S50: 産業用以外の蒸気 | V50: GJ | W50: 1.19 | X50: GＪ/GＪ | Y50: ー
C51: 温水 | D51: 熱 | E51: 温水 | H51: GJ | I51: 1.36 | J51: GＪ/GＪ | K51: 0.057 | L51: tCO2/GJ | Q51: 温水_化石 | R51: 熱 | S51: 温水 | V51: GJ | W51: 1.19 | X51: GＪ/GＪ | Y51: ー
C52: 冷水 | D52: 熱 | E52: 冷水 | H52: GJ | I52: 1.36 | J52: GＪ/GＪ | K52: 0.057 | L52: tCO2/GJ | Q52: 冷水_化石 | R52: 熱 | S52: 冷水 | V52: GJ | W52: 1.19 | X52: GＪ/GＪ | Y52: ー
C53: 産業用蒸気_非化石 | D53: 熱 | E53: 産業用蒸気 | H53: GJ | I53: ー | K53: ー | Q53: 産業用蒸気_非化石 | R53: 熱 | S53: 産業用蒸気 | V53: GJ | W53: 1.17 | X53: GＪ/GＪ | Y53: ー
C54: 産業用以外の蒸気_非化石 | D54: 熱 | E54: 産業用以外の蒸気 | H54: GJ | I54: ー | K54: ー | Q54: 産業用以外の蒸気_非化石 | R54: 熱 | S54: 産業用以外の蒸気 | V54: GJ | W54: 1.19 | X54: GＪ/GＪ | Y54: ー
C55: 温水_非化石 | D55: 熱 | E55: 温水 | H55: GJ | I55: ー | K55: ー | Q55: 温水_非化石 | R55: 熱 | S55: 温水 | V55: GJ | W55: 1.19 | X55: GＪ/GＪ | Y55: ー
C56: 冷水_非化石 | D56: 熱 | E56: 冷水 | H56: GJ | I56: ー | K56: ー | Q56: 冷水_非化石 | R56: 熱 | S56: 冷水 | V56: GJ | W56: 1.19 | X56: GＪ/GＪ | Y56: ー
C57: 地熱 | D57: 熱 | E57: 地熱 | H57: GJ | I57: ー | K57: ー | Q57: 地熱 | R57: 熱 | S57: 地熱 | V57: GJ | W57: ー | Y57: ー
C58: 温泉熱 | D58: 熱 | E58: 温泉熱 | H58: GJ | I58: ー | K58: ー | Q58: 温泉熱 | R58: 熱 | S58: 温泉熱 | V58: GJ | W58: ー | Y58: ー
C59: 太陽熱 | D59: 熱 | E59: 太陽熱 | H59: GJ | I59: ー | K59: ー | Q59: 太陽熱 | R59: 熱 | S59: 太陽熱 | V59: GJ | W59: ー | Y59: ー
C60: 雪氷熱 | D60: 熱 | E60: 雪氷熱 | H60: GJ | I60: ー | K60: ー | Q60: 雪氷熱 | R60: 熱 | S60: 雪氷熱 | V60: GJ | W60: ー | Y60: ー
B61: 電 気 | C61: 電気事業者_昼間買電 | D61: 電気 | E61: 電気 事業者 | F61: 昼間買電 | H61: 千kWh | I61: 9.97 | J61: GＪ/千kWh | K61: ー | P61: 電 気 | Q61: 電気事業者_昼間買電 | R61: 電気 | S61: 電気 事業者 | T61: 昼間買電 | V61: 千kWh | W61: 8.64 | X61: GＪ/千kWh | Y61: ー
C62: 電気事業者_夜間買電 | D62: 電気 | F62: 夜間買電 | H62: 千kWh | I62: 9.28 | J62: GＪ/千kWh | K62: ー | Q62: 電気事業者_夜間買電 | R62: 電気 | T62: 夜間買電 | V62: 千kWh | W62: 8.64 | X62: GＪ/千kWh | Y62: ー
C63: 自家発電 | D63: 電気 | E63: 自家発電 | H63: 千kWh | I63: 9.76 | J63: GＪ/千kWh | K63: ー | Q63: 自家発電 | R63: 電気 | S63: 自家発電 | V63: 千kWh | W63: ー | Y63: ー
C64: その他買電 | D64: 電気 | E64: その他買電 | H64: 千kWh | I64: 9.76 | J64: GＪ/千kWh | K64: ー | Q64: その他買電 | R64: 電気 | S64: その他買電 | V64: 千kWh | W64: 8.64 | X64: GＪ/千kWh | Y64: ー
C65: 自己託送以外_電気事業者からの買電_化石分 | D65: 電気 | E65: 自己託送 以外 | F65: 電気事業者 からの買電 | G65: 化石分 | H65: 千kWh | I65: ー | K65: ー | Q65: 自己託送以外_電気事業者からの買電_化石分 | R65: 電気 | S65: 自己託送 以外 | T65: 電気事業者 からの買電 | U65: 化石分 | V65: 千kWh | W65: 8.64 | X65: GＪ/千kWh | Y65: ー
C66: 自己託送以外_電気事業者からの買電_非化石分 | D66: 電気 | G66: 非化石分 | H66: 千kWh | I66: ー | K66: ー | Q66: 自己託送以外_電気事業者からの買電_非化石分 | R66: 電気 | U66: 非化石分 | V66: 千kWh | W66: 8.64 | X66: GＪ/千kWh | Y66: ー
C67: 自己託送以外_オフサイト型PPA_非化石重み付けなし | D67: 電気 | F67: オフサイト型 PPA | G67: 非化石 重み付けなし | H67: 千kWh | I67: ー | K67: ー | Q67: 自己託送以外_オフサイト型PPA_非化石重み付けなし | R67: 電気 | T67: オフサイト型 PPA | U67: 非化石 重み付けなし | V67: 千kWh | W67: 3.6 | X67: GＪ/千kWh | Y67: ー
C68: 自己託送以外_オフサイト型PPA_非化石重み付けあり | D68: 電気 | G68: 非化石 重み付けあり | H68: 千kWh | I68: ー | K68: ー | Q68: 自己託送以外_オフサイト型PPA_非化石重み付けあり | R68: 電気 | U68: 非化石 重み付けあり | V68: 千kWh | W68: 3.6 | X68: GＪ/千kWh | Y68: ー
C69: 自己託送_非燃料由来の非化石電気 | D69: 電気 | E69: 自己託送 | F69: 非燃料由来の非化石電気 | H69: 千kWh | I69: ー | K69: ー | Q69: 自己託送_非燃料由来の非化石電気 | R69: 電気 | S69: 自己託送 | T69: 非燃料由来の非化石電気 | V69: 千kWh | W69: 3.6 | X69: GＪ/千kWh | Y69: ー
C70: 自己託送_上記以外_化石分 | D70: 電気 | F70: 上記以外 | G70: 化石分 | H70: 千kWh | I70: ー | K70: ー | Q70: 自己託送_上記以外_化石分 | R70: 電気 | T70: 上記以外 | U70: 化石分 | V70: 千kWh | W70: 8.64 | X70: GＪ/千kWh | Y70: ー
C71: 自己託送_上記以外_非化石分 | D71: 電気 | G71: 非化石分 | H71: 千kWh | I71: ー | K71: ー | Q71: 自己託送_上記以外_非化石分 | R71: 電気 | U71: 非化石分 | V71: 千kWh | W71: 8.64 | X71: GＪ/千kWh | Y71: ー
C72: 自営線_非燃料由来の非化石電気 | D72: 電気 | E72: 自営線 | F72: 非燃料由来の非化石電気 | H72: 千kWh | I72: ー | K72: ー | Q72: 自営線_非燃料由来の非化石電気 | R72: 電気 | S72: 自営線 | T72: 非燃料由来の非化石電気 | V72: 千kWh | W72: 3.6 | X72: GＪ/千kWh | Y72: ー
C73: 自営線_上記以外_化石分 | D73: 電気 | F73: 上記以外 | G73: 化石分 | H73: 千kWh | I73: ー | K73: ー | Q73: 自営線_上記以外_化石分 | R73: 電気 | T73: 上記以外 | U73: 化石分 | V73: 千kWh | W73: 8.64 | X73: GＪ/千kWh | Y73: ー
C74: 自営線_上記以外_非化石分 | D74: 電気 | G74: 非化石分 | H74: 千kWh | I74: ー | K74: ー | Q74: 自営線_上記以外_非化石分 | R74: 電気 | U74: 非化石分 | V74: 千kWh | W74: 8.64 | X74: GＪ/千kWh | Y74: ー
C75: 自家発電_太陽光 | D75: 電気 | E75: 自家発電 | F75: 太陽光 | H75: 千kWh | I75: ー | K75: ー | Q75: 自家発電_太陽光 | R75: 電気 | S75: 自家発電 | T75: 太陽光 | V75: 千kWh | W75: 3.6 | X75: GＪ/千kWh | Y75: ー
C76: 自家発電_風力 | D76: 電気 | F76: 風力 | H76: 千kWh | I76: ー | K76: ー | Q76: 自家発電_風力 | R76: 電気 | T76: 風力 | V76: 千kWh | W76: 3.6 | X76: GＪ/千kWh | Y76: ー
C77: 自家発電_地熱 | D77: 電気 | F77: 地熱 | H77: 千kWh | I77: ー | K77: ー | Q77: 自家発電_地熱 | R77: 電気 | T77: 地熱 | V77: 千kWh | W77: 3.6 | X77: GＪ/千kWh | Y77: ー
C78: 自家発電_水力 | D78: 電気 | F78: 水力 | H78: 千kWh | I78: ー | K78: ー | Q78: 自家発電_水力 | R78: 電気 | T78: 水力 | V78: 千kWh | W78: 3.6 | X78: GＪ/千kWh | Y78: ー
C79: 自家発電_その他_非燃料由来の非化石 | D79: 電気 | F79: その他 | G79: 非燃料由来 の非化石 | H79: 千kWh | I79: ー | K79: ー | Q79: 自家発電_その他_非燃料由来の非化石 | R79: 電気 | T79: その他 | U79: 非燃料由来 の非化石 | V79: 千kWh | W79: 3.6 | X79: GＪ/千kWh | Y79: ー
C80: 自家発電_その他_上記以外 | D80: 電気 | G80: 上記以外 | H80: 千kWh | I80: ー | K80: ー | Q80: 自家発電_その他_上記以外 | R80: 電気 | U80: 上記以外 | V80: 千kWh | W80: ー | Y80: ー

Sheet 産業分類 (hidden)
A1: 中分類 | B1: 名称 | D1: 小分類 | E1: 名称 | G1: 細分類 | H1: 名称
A2: 01 | B2: 農業 | D2: 010 | E2: 管理，補助的経済活動を行う事業所（01農業） | G2: 0100 | H2: 主として管理事務を行う本社等
A3: 02 | B3: 林業 | D3: 011 | E3: 耕種農業 | G3: 0109 | H3: その他の管理，補助的経済活動を行う事業所
A4: 03 | B4: 漁業（水産養殖業を除く） | D4: 012 | E4: 畜産農業 | G4: 0111 | H4: 米作農業
A5: 04 | B5: 水産養殖業 | D5: 013 | E5: 農業サービス業（園芸サービス業を除く） | G5: 0112 | H5: 米作以外の穀作農業
A6: 05 | B6: 鉱業、採石業、砂利採取業 | D6: 014 | E6: 園芸サービス業 | G6: 0113 | H6: 野菜作農業（きのこ類の栽培を含む）
A7: 06 | B7: 総合工事業 | D7: 020 | E7: 管理，補助的経済活動を行う事業所（02林業） | G7: 0114 | H7: 果樹作農業
A8: 07 | B8: 職別工事業(設備工事業を除く) | D8: 021 | E8: 育林業 | G8: 0115 | H8: 花き作農業
A9: 08 | B9: 設備工事業 | D9: 022 | E9: 素材生産業 | G9: 0116 | H9: 工芸農作物農業
A10: 09 | B10: 食料品製造業 | D10: 023 | E10: 特用林産物生産業（きのこ類の栽培を除く） | G10: 0117 | H10: ばれいしょ・かんしょ作農業
A11: 10 | B11: 飲料・たばこ・飼料製造業 | D11: 024 | E11: 林業サービス業 | G11: 0119 | H11: その他の耕種農業
A12: 11 | B12: 繊維工業 | D12: 029 | E12: その他の林業 | G12: 0121 | H12: 酪農業
A13: 12 | B13: 木材・木製品製造業（家具を除く） | D13: 030 | E13: 管理，補助的経済活動を行う事業所（03漁業） | G13: 0122 | H13: 肉用牛生産業
A14: 13 | B14: 家具・装備品製造業 | D14: 031 | E14: 海面漁業 | G14: 0123 | H14: 養豚業
A15: 14 | B15: パルプ・紙・紙加工品製造業 | D15: 032 | E15: 内水面漁業 | G15: 0124 | H15: 養鶏業
A16: 15 | B16: 印刷・同関連業 | D16: 040 | E16: 管理，補助的経済活動を行う事業所（04水産養殖業） | G16: 0125 | H16: 畜産類似業
A17: 16 | B17: 化学工業 | D17: 041 | E17: 海面養殖業 | G17: 0126 | H17: 養蚕農業
A18: 17 | B18: 石油製品・石炭製品製造業 | D18: 042 | E18: 内水面養殖業 | G18: 0129 | H18: その他の畜産農業
A19: 18 | B19: プラスチック製品製造業（別掲を除く） | D19: 050 | E19: 管理，補助的経済活動を行う事業所（05鉱業，採石業，砂利採取業） | G19: 0131 | H19: 穀作サービス業
A20: 19 | B20: ゴム製品製造業 | D20: 051 | E20: 金属鉱業 | G20: 0132 | H20: 野菜作・果樹作サービス業
A21: 20 | B21: なめし革・同製品・毛皮製造業 | D21: 052 | E21: 石炭・亜炭鉱業 | G21: 0133 | H21: 穀作，野菜作・果樹作以外の耕種サービス業
A22: 21 | B22: 窯業・土石製品製造業 | D22: 053 | E22: 原油・天然ガス鉱業 | G22: 0134 | H22: 畜産サービス業（獣医業を除く）
A23: 22 | B23: 鉄鋼業 | D23: 054 | E23: 採石業，砂・砂利・玉石採取業 | G23: 0141 | H23: 園芸サービス業
A24: 23 | B24: 非鉄金属製造業 | D24: 055 | E24: 窯業原料用鉱物鉱業（耐火物・陶磁器・ガラス・セメント原料用に限る） | G24: 0200 | H24: 主として管理事務を行う本社等
A25: 24 | B25: 金属製品製造業 | D25: 059 | E25: その他の鉱業 | G25: 0209 | H25: その他の管理，補助的経済活動を行う事業所
A26: 25 | B26: はん用機械器具製造業 | D26: 060 | E26: 管理，補助的経済活動を行う事業所（06総合工事業） | G26: 0211 | H26: 育林業
A27: 26 | B27: 生産用機械器具製造業 | D27: 061 | E27: 一般土木建築工事業 | G27: 0221 | H27: 素材生産業
A28: 27 | B28: 業務用機械器具製造業 | D28: 062 | E28: 土木工事業（舗装工事業を除く） | G28: 0231 | H28: 製薪炭業
A29: 28 | B29: 電子部品・デバイス・電子回路製造業 | D29: 063 | E29: 舗装工事業 | G29: 0239 | H29: その他の特用林産物生産業（きのこ類の栽培を除く）
A30: 29 | B30: 電気機械器具製造業 | D30: 064 | E30: 建築工事業(木造建築工事業を除く) | G30: 0241 | H30: 育林サービス業
A31: 30 | B31: 情報通信機械器具製造業 | D31: 065 | E31: 木造建築工事業 | G31: 0242 | H31: 素材生産サービス業
A32: 31 | B32: 輸送用機械器具製造業 | D32: 066 | E32: 建築リフォーム工事業 | G32: 0243 | H32: 山林種苗生産サービス業
A33: 32 | B33: その他の製造業 | D33: 070 | E33: 管理，補助的経済活動を行う事業所（07職別工事業） | G33: 0249 | H33: その他の林業サービス業
A34: 33 | B34: 電気業 | D34: 071 | E34: 大工工事業 | G34: 0299 | H34: その他の林業
A35: 34 | B35: ガス業 | D35: 072 | E35: とび・土工・コンクリート工事業 | G35: 0300 | H35: 主として管理事務を行う本社等
A36: 35 | B36: 熱供給業 | D36: 073 | E36: 鉄骨・鉄筋工事業 | G36: 0309 | H36: その他の管理，補助的経済活動を行う事業所
A37: 36 | B37: 水道業 | D37: 074 | E37: 石工・れんが・タイル・ブロック工事業 | G37: 0311 | H37: 底びき網漁業
A38: 37 | B38: 通信業 | D38: 075 | E38: 左官工事業 | G38: 0312 | H38: まき網漁業
A39: 38 | B39: 放送業 | D39: 076 | E39: 板金・金物工事業 | G39: 0313 | H39: 刺網漁業
A40: 39 | B40: 情報サービス業 | D40: 077 | E40: 塗装工事業 | G40: 0314 | H40: 釣・はえ縄漁業
A41: 40 | B41: インターネット附随サービス業 | D41: 078 | E41: 床・内装工事業 | G41: 0315 | H41: 定置網漁業
A42: 41 | B42: 映像・音声・文字情報制作業 | D42: 079 | E42: その他の職別工事業 | G42: 0316 | H42: 地びき網・船びき網漁業
A43: 42 | B43: 鉄道業 | D43: 080 | E43: 管理，補助的経済活動を行う事業所（08設備工事業） | G43: 0317 | H43: 採貝・採藻業
A44: 43 | B44: 道路旅客運送業 | D44: 081 | E44: 電気工事業 | G44: 0318 | H44: 捕鯨業
A45: 44 | B45: 道路貨物運送業 | D45: 082 | E45: 電気通信・信号装置工事業 | G45: 0319 | H45: その他の海面漁業
A46: 45 | B46: 水運業 | D46: 083 | E46: 管工事業（さく井工事業を除く） | G46: 0321 | H46: 内水面漁業
A47: 46 | B47: 航空運輸業 | D47: 084 | E47: 機械器具設置工事業 | G47: 0400 | H47: 主として管理事務を行う本社等
A48: 47 | B48: 倉庫業 | D48: 089 | E48: その他の設備工事業 | G48: 0409 | H48: その他の管理，補助的経済活動を行う事業所
A49: 48 | B49: 運輸に附帯するサービス業 | D49: 090 | E49: 管理，補助的経済活動を行う事業所（09食料品製造業） | G49: 0411 | H49: 魚類養殖業
A50: 49 | B50: 郵便業（信書便事業を含む） | D50: 091 | E50: 畜産食料品製造業 | G50: 0412 | H50: 貝類養殖業
A51: 50 | B51: 各種商品卸売業 | D51: 092 | E51: 水産食料品製造業 | G51: 0413 | H51: 藻類養殖業
A52: 51 | B52: 繊維・衣服等卸売業 | D52: 093 | E52: 野菜缶詰・果実缶詰・農産保存食料品製造業 | G52: 0414 | H52: 真珠養殖業
A53: 52 | B53: 飲食料品卸売業 | D53: 094 | E53: 調味料製造業 | G53: 0415 | H53: 種苗養殖業
A54: 53 | B54: 建築材料、鉱物・金属材料等卸売業 | D54: 095 | E54: 糖類製造業 | G54: 0419 | H54: その他の海面養殖業
A55: 54 | B55: 機械器具卸売業 | D55: 096 | E55: 精穀・製粉業 | G55: 0421 | H55: 内水面養殖業
A56: 55 | B56: その他の卸売業 | D56: 097 | E56: パン・菓子製造業 | G56: 0500 | H56: 主として管理事務を行う本社等
A57: 56 | B57: 各種商品小売業 | D57: 098 | E57: 動植物油脂製造業 | G57: 0509 | H57: その他の管理，補助的経済活動を行う事業所
A58: 57 | B58: 織物・衣服・身の回り品小売業 | D58: 099 | E58: その他の食料品製造業 | G58: 0511 | H58: 金・銀鉱業
A59: 58 | B59: 飲食料品小売業 | D59: 100 | E59: 管理，補助的経済活動を行う事業所（10飲料・たばこ・飼料製造業） | G59: 0512 | H59: 鉛・亜鉛鉱業
A60: 59 | B60: 機械器具小売業 | D60: 101 | E60: 清涼飲料製造業 | G60: 0513 | H60: 鉄鉱業
A61: 60 | B61: その他の小売業 | D61: 102 | E61: 酒類製造業 | G61: 0519 | H61: その他の金属鉱業
A62: 61 | B62: 無店舗小売業 | D62: 103 | E62: 茶・コーヒー製造業（清涼飲料を除く） | G62: 0521 | H62: 石炭鉱業（石炭選別業を含む）
A63: 62 | B63: 銀行業 | D63: 104 | E63: 製氷業 | G63: 0522 | H63: 亜炭鉱業
A64: 63 | B64: 協同組織金融業 | D64: 105 | E64: たばこ製造業 | G64: 0531 | H64: 原油鉱業
A65: 64 | B65: 貸金業、クレジットカード業等非預金信用機関 | D65: 106 | E65: 飼料・有機質肥料製造業 | G65: 0532 | H65: 天然ガス鉱業
A66: 65 | B66: 金融商品取引業、商品先物取引業 | D66: 110 | E66: 管理，補助的経済活動を行う事業所（11繊維工業） | G66: 0541 | H66: 花こう岩・同類似岩石採石業
A67: 66 | B67: 補助的金融業等 | D67: 111 | E67: 製糸業，紡績業，化学繊維・ねん糸等製造業 | G67: 0542 | H67: 石英粗面岩・同類似岩石採石業
A68: 67 | B68: 保険業（保険媒介代理業、保険サービス業を含む） | D68: 112 | E68: 織物業 | G68: 0543 | H68: 安山岩・同類似岩石採石業
A69: 68 | B69: 不動産取引業 | D69: 113 | E69: ニット生地製造業 | G69: 0544 | H69: 大理石採石業
A70: 69 | B70: 不動産賃貸業・管理業 | D70: 114 | E70: 染色整理業 | G70: 0545 | H70: ぎょう灰岩採石業
A71: 70 | B71: 物品賃貸業 | D71: 115 | E71: 綱・網・レース・繊維粗製品製造業 | G71: 0546 | H71: 砂岩採石業
A72: 71 | B72: 学術・開発研究機関 | D72: 116 | E72: 外衣・シャツ製造業（和式を除く） | G72: 0547 | H72: 粘板岩採石業
A73: 72 | B73: 専門サービス業（他に分類されないもの） | D73: 117 | E73: 下着類製造業 | G73: 0548 | H73: 砂・砂利・玉石採取業
A74: 73 | B74: 広告業 | D74: 118 | E74: 和装製品・その他の衣服・繊維製身の回り品製造業 | G74: 0549 | H74: その他の採石業，砂・砂利・玉石採取業
A75: 74 | B75: 技術サービス業（他に分類されないもの） | D75: 119 | E75: その他の繊維製品製造業 | G75: 0551 | H75: 耐火粘土鉱業
A76: 75 | B76: 宿泊業 | D76: 120 | E76: 管理，補助的経済活動を行う事業所（12木材・木製品製造業） | G76: 0552 | H76: ろう石鉱業
A77: 76 | B77: 飲食店 | D77: 121 | E77: 製材業，木製品製造業 | G77: 0553 | H77: ドロマイト鉱業
A78: 77 | B78: 持ち帰り・配達飲食サービス業 | D78: 122 | E78: 造作材・合板・建築用組立材料製造業 | G78: 0554 | H78: 長石鉱業
A79: 78 | B79: 洗濯・理容・美容・浴場業 | D79: 123 | E79: 木製容器製造業（竹，とうを含む） | G79: 0555 | H79: けい石鉱業
A80: 79 | B80: その他の生活関連サービス業 | D80: 129 | E80: その他の木製品製造業(竹，とうを含む) | G80: 0556 | H80: 天然けい砂鉱業
A81: 80 | B81: 娯楽業 | D81: 130 | E81: 管理，補助的経済活動を行う事業所（13家具・装備品製造業） | G81: 0557 | H81: 石灰石鉱業
A82: 81 | B82: 学校教育 | D82: 131 | E82: 家具製造業 | G82: 0559 | H82: その他の窯業原料用鉱物鉱業
A83: 82 | B83: その他の教育、学習支援業 | D83: 132 | E83: 宗教用具製造業 | G83: 0591 | H83: 酸性白土鉱業
A84: 83 | B84: 医療業 | D84: 133 | E84: 建具製造業 | G84: 0592 | H84: ベントナイト鉱業
A85: 84 | B85: 保健衛生 | D85: 139 | E85: その他の家具・装備品製造業 | G85: 0593 | H85: けいそう土鉱業
A86: 85 | B86: 社会保険・社会福祉・介護事業 | D86: 140 | E86: 管理，補助的経済活動を行う事業所（14パルプ・紙・紙加工品製造業） | G86: 0594 | H86: 滑石鉱業
A87: 86 | B87: 郵便局 | D87: 141 | E87: パルプ製造業 | G87: 0599 | H87: 他に分類されない鉱業
A88: 87 | B88: 協同組合（他に分類されないもの） | D88: 142 | E88: 紙製造業 | G88: 0600 | H88: 主として管理事務を行う本社等
A89: 88 | B89: 廃棄物処理業 | D89: 143 | E89: 加工紙製造業 | G89: 0609 | H89: その他の管理，補助的経済活動を行う事業所
A90: 89 | B90: 自動車整備業 | D90: 144 | E90: 紙製品製造業 | G90: 0611 | H90: 一般土木建築工事業
A91: 90 | B91: 機械等修理業（別掲を除く） | D91: 145 | E91: 紙製容器製造業 | G91: 0621 | H91: 土木工事業(別掲を除く)
A92: 91 | B92: 職業紹介・労働者派遣業 | D92: 149 | E92: その他のパルプ・紙・紙加工品製造業 | G92: 0622 | H92: 造園工事業
A93: 92 | B93: その他の事業サービス業 | D93: 150 | E93: 管理，補助的経済活動を行う事業所（15印刷・同関連業） | G93: 0623 | H93: しゅんせつ工事業
A94: 93 | B94: 政治・経済・文化団体 | D94: 151 | E94: 印刷業 | G94: 0631 | H94: 舗装工事業
A95: 94 | B95: 宗教 | D95: 152 | E95: 製版業 | G95: 0641 | H95: 建築工事業(木造建築工事業を除く)
A96: 95 | B96: その他のサービス業 | D96: 153 | E96: 製本業，印刷物加工業 | G96: 0651 | H96: 木造建築工事業
A97: 96 | B97: 外国公務 | D97: 159 | E97: 印刷関連サービス業 | G97: 0661 | H97: 建築リフォーム工事業
A98: 97 | B98: 国家公務 | D98: 160 | E98: 管理，補助的経済活動を行う事業所（16化学工業） | G98: 0700 | H98: 主として管理事務を行う本社等
A99: 98 | B99: 地方公務 | D99: 161 | E99: 化学肥料製造業 | G99: 0709 | H99: その他の管理，補助的経済活動を行う事業所
A100: 99 | B100: 分類不能の産業 | D100: 162 | E100: 無機化学工業製品製造業 | G100: 0711 | H100: 大工工事業(型枠大工工事業を除く)
D101: 163 | E101: 有機化学工業製品製造業 | G101: 0712 | H101: 型枠大工工事業
D102: 164 | E102: 油脂加工製品・石けん・合成洗剤・界面活性剤・塗料製造業 | G102: 0721 | H102: とび工事業
D103: 165 | E103: 医薬品製造業 | G103: 0722 | H103: 土工・コンクリート工事業
D104: 166 | E104: 化粧品・歯磨・その他の化粧用調整品製造業 | G104: 0723 | H104: 特殊コンクリート工事業
D105: 169 | E105: その他の化学工業 | G105: 0731 | H105: 鉄骨工事業
D106: 170 | E106: 管理，補助的経済活動を行う事業所（17石油製品・石炭製品製造業） | G106: 0732 | H106: 鉄筋工事業
D107: 171 | E107: 石油精製業 | G107: 0741 | H107: 石工工事業
D108: 172 | E108: 潤滑油・グリース製造業（石油精製業によらないもの） | G108: 0742 | H108: れんが工事業
D109: 173 | E109: コークス製造業 | G109: 0743 | H109: タイル工事業
D110: 174 | E110: 舗装材料製造業 | G110: 0744 | H110: コンクリートブロック工事業
D111: 179 | E111: その他の石油製品・石炭製品製造業 | G111: 0751 | H111: 左官工事業
D112: 180 | E112: 管理，補助的経済活動を行う事業所（18プラスチック製品製造業） | G112: 0761 | H112: 金属製屋根工事業
D113: 181 | E113: プラスチック板・棒・管・継手・異形押出製品製造業 | G113: 0762 | H113: 板金工事業
D114: 182 | E114: プラスチックフィルム・シート・床材・合成皮革製造業 | G114: 0763 | H114: 建築金物工事業
D115: 183 | E115: 工業用プラスチック製品製造業 | G115: 0771 | H115: 塗装工事業（道路標示・区画線工事業を除く）
D116: 184 | E116: 発泡・強化プラスチック製品製造業 | G116: 0772 | H116: 道路標示・区画線工事業
D117: 185 | E117: プラスチック成形材料製造業（廃プラスチックを含む） | G117: 0781 | H117: 床工事業
D118: 189 | E118: その他のプラスチック製品製造業 | G118: 0782 | H118: 内装工事業
D119: 190 | E119: 管理，補助的経済活動を行う事業所（19ゴム製品製造業） | G119: 0791 | H119: ガラス工事業
D120: 191 | E120: タイヤ・チューブ製造業 | G120: 0792 | H120: 金属製建具工事業
D121: 192 | E121: ゴム製・プラスチック製履物・同附属品製造業 | G121: 0793 | H121: 木製建具工事業
D122: 193 | E122: ゴムベルト・ゴムホース・工業用ゴム製品製造業 | G122: 0794 | H122: 屋根工事業（金属製屋根工事業を除く）
D123: 199 | E123: その他のゴム製品製造業 | G123: 0795 | H123: 防水工事業
D124: 200 | E124: 管理，補助的経済活動を行う事業所（20なめし革・同製品・毛皮製造業） | G124: 0796 | H124: はつり・解体工事業
D125: 201 | E125: なめし革製造業 | G125: 0799 | H125: 他に分類されない職別工事業
D126: 202 | E126: 工業用革製品製造業（手袋を除く） | G126: 0800 | H126: 主として管理事務を行う本社等
D127: 203 | E127: 革製履物用材料・同附属品製造業 | G127: 0809 | H127: その他の管理，補助的経済活動を行う事業所
D128: 204 | E128: 革製履物製造業 | G128: 0811 | H128: 一般電気工事業
D129: 205 | E129: 革製手袋製造業 | G129: 0812 | H129: 電気配線工事業
D130: 206 | E130: かばん製造業 | G130: 0821 | H130: 電気通信工事業（有線テレビジョン放送設備設置工事業を除く）
D131: 207 | E131: 袋物製造業 | G131: 0822 | H131: 有線テレビジョン放送設備設置工事業
D132: 208 | E132: 毛皮製造業 | G132: 0823 | H132: 信号装置工事業
D133: 209 | E133: その他のなめし革製品製造業 | G133: 0831 | H133: 一般管工事業
D134: 210 | E134: 管理，補助的経済活動を行う事業所（21窯業・土石製品製造業） | G134: 0832 | H134: 冷暖房設備工事業
D135: 211 | E135: ガラス・同製品製造業 | G135: 0833 | H135: 給排水・衛生設備工事業
D136: 212 | E136: セメント・同製品製造業 | G136: 0839 | H136: その他の管工事業
D137: 213 | E137: 建設用粘土製品製造業（陶磁器製を除く) | G137: 0841 | H137: 機械器具設置工事業（昇降設備工事業を除く）
D138: 214 | E138: 陶磁器・同関連製品製造業 | G138: 0842 | H138: 昇降設備工事業
D139: 215 | E139: 耐火物製造業 | G139: 0891 | H139: 築炉工事業
D140: 216 | E140: 炭素・黒鉛製品製造業 | G140: 0892 | H140: 熱絶縁工事業
D141: 217 | E141: 研磨材・同製品製造業 | G141: 0893 | H141: 道路標識設置工事業
D142: 218 | E142: 骨材・石工品等製造業 | G142: 0894 | H142: さく井工事業
D143: 219 | E143: その他の窯業・土石製品製造業 | G143: 0900 | H143: 主として管理事務を行う本社等
D144: 220 | E144: 管理，補助的経済活動を行う事業所（22鉄鋼業） | G144: 0909 | H144: その他の管理，補助的経済活動を行う事業所
D145: 221 | E145: 製鉄業 | G145: 0911 | H145: 部分肉・冷凍肉製造業
D146: 222 | E146: 製鋼・製鋼圧延業 | G146: 0912 | H146: 肉加工品製造業
D147: 223 | E147: 製鋼を行わない鋼材製造業（表面処理鋼材を除く） | G147: 0913 | H147: 処理牛乳・乳飲料製造業
D148: 224 | E148: 表面処理鋼材製造業 | G148: 0914 | H148: 乳製品製造業（処理牛乳，乳飲料を除く）
D149: 225 | E149: 鉄素形材製造業 | G149: 0919 | H149: その他の畜産食料品製造業
D150: 229 | E150: その他の鉄鋼業 | G150: 0921 | H150: 水産缶詰・瓶詰製造業
D151: 230 | E151: 管理，補助的経済活動を行う事業所（23非鉄金属製造業） | G151: 0922 | H151: 海藻加工業
D152: 231 | E152: 非鉄金属第1次製錬・精製業 | G152: 0923 | H152: 水産練製品製造業
D153: 232 | E153: 非鉄金属第2次製錬・精製業（非鉄金属合金製造業を含む） | G153: 0924 | H153: 塩干・塩蔵品製造業
D154: 233 | E154: 非鉄金属・同合金圧延業（抽伸，押出しを含む） | G154: 0925 | H154: 冷凍水産物製造業
D155: 234 | E155: 電線・ケーブル製造業 | G155: 0926 | H155: 冷凍水産食品製造業
D156: 235 | E156: 非鉄金属素形材製造業 | G156: 0929 | H156: その他の水産食料品製造業
D157: 239 | E157: その他の非鉄金属製造業 | G157: 0931 | H157: 野菜缶詰・果実缶詰・農産保存食料品製造業（野菜漬物を除く）
D158: 240 | E158: 管理，補助的経済活動を行う事業所（24金属製品製造業） | G158: 0932 | H158: 野菜漬物製造業（缶詰，瓶詰，つぼ詰を除く）
D159: 241 | E159: ブリキ缶・その他のめっき板等製品製造業 | G159: 0941 | H159: 味そ製造業
D160: 242 | E160: 洋食器・刃物・手道具・金物類製造業 | G160: 0942 | H160: しょう油・食用アミノ酸製造業
D161: 243 | E161: 暖房・調理等装置,配管工事用附属品製造業 | G161: 0943 | H161: ソース製造業
D162: 244 | E162: 建設用・建築用金属製品製造業（製缶板金業を含む) | G162: 0944 | H162: 食酢製造業
D163: 245 | E163: 金属素形材製品製造業 | G163: 0949 | H163: その他の調味料製造業
D164: 246 | E164: 金属被覆・彫刻業，熱処理業（ほうろう鉄器を除く） | G164: 0951 | H164: 砂糖製造業（砂糖精製業を除く）
D165: 247 | E165: 金属線製品製造業（ねじ類を除く) | G165: 0952 | H165: 砂糖精製業
D166: 248 | E166: ボルト・ナット・リベット・小ねじ・木ねじ等製造業 | G166: 0953 | H166: ぶどう糖・水あめ・異性化糖製造業
D167: 249 | E167: その他の金属製品製造業 | G167: 0961 | H167: 精米・精麦業
D168: 250 | E168: 管理，補助的経済活動を行う事業所（25はん用機械器具製造業） | G168: 0962 | H168: 小麦粉製造業
D169: 251 | E169: ボイラ・原動機製造業 | G169: 0969 | H169: その他の精穀・製粉業
D170: 252 | E170: ポンプ・圧縮機器製造業 | G170: 0971 | H170: パン製造業
D171: 253 | E171: 一般産業用機械・装置製造業 | G171: 0972 | H171: 生菓子製造業
D172: 259 | E172: その他のはん用機械・同部分品製造業 | G172: 0973 | H172: ビスケット類・干菓子製造業
D173: 260 | E173: 管理，補助的経済活動を行う事業所（26生産用機械器具製造業） | G173: 0974 | H173: 米菓製造業
D174: 261 | E174: 農業用機械製造業（農業用器具を除く） | G174: 0979 | H174: その他のパン・菓子製造業
D175: 262 | E175: 建設機械・鉱山機械製造業 | G175: 0981 | H175: 動植物油脂製造業（食用油脂加工業を除く）
D176: 263 | E176: 繊維機械製造業 | G176: 0982 | H176: 食用油脂加工業
D177: 264 | E177: 生活関連産業用機械製造業 | G177: 0991 | H177: でんぷん製造業
D178: 265 | E178: 基礎素材産業用機械製造業 | G178: 0992 | H178: めん類製造業
D179: 266 | E179: 金属加工機械製造業 | G179: 0993 | H179: 豆腐・油揚製造業
D180: 267 | E180: 半導体・フラットパネルディスプレイ製造装置製造業 | G180: 0994 | H180: あん類製造業
D181: 269 | E181: その他の生産用機械・同部分品製造業 | G181: 0995 | H181: 冷凍調理食品製造業
D182: 270 | E182: 管理，補助的経済活動を行う事業所（27業務用機械器具製造業） | G182: 0996 | H182: そう（惣）菜製造業
D183: 271 | E183: 事務用機械器具製造業 | G183: 0997 | H183: すし・弁当・調理パン製造業
D184: 272 | E184: サービス用・娯楽用機械器具製造業 | G184: 0998 | H184: レトルト食品製造業
D185: 273 | E185: 計量器・測定器・分析機器・試験機・測量機械器具・理化学機械器具製造業 | G185: 0999 | H185: 他に分類されない食料品製造業
D186: 274 | E186: 医療用機械器具・医療用品製造業 | G186: 1000 | H186: 主として管理事務を行う本社等
D187: 275 | E187: 光学機械器具・レンズ製造業 | G187: 1009 | H187: その他の管理，補助的経済活動を行う事業所
D188: 276 | E188: 武器製造業 | G188: 1011 | H188: 清涼飲料製造業
D189: 280 | E189: 管理，補助的経済活動を行う事業所（28電子部品・デバイス・電子回路製造業） | G189: 1021 | H189: 果実酒製造業
D190: 281 | E190: 電子デバイス製造業 | G190: 1022 | H190: ビール類製造業
D191: 282 | E191: 電子部品製造業 | G191: 1023 | H191: 清酒製造業
D192: 283 | E192: 記録メディア製造業 | G192: 1024 | H192: 蒸留酒・混成酒製造業
D193: 284 | E193: 電子回路製造業 | G193: 1031 | H193: 製茶業
D194: 285 | E194: ユニット部品製造業 | G194: 1032 | H194: コーヒー製造業
D195: 289 | E195: その他の電子部品・デバイス・電子回路製造業 | G195: 1041 | H195: 製氷業
D196: 290 | E196: 管理，補助的経済活動を行う事業所（29電気機械器具製造業） | G196: 1051 | H196: たばこ製造業（葉たばこ処理業を除く)
D197: 291 | E197: 発電用・送電用・配電用電気機械器具製造業 | G197: 1052 | H197: 葉たばこ処理業
D198: 292 | E198: 産業用電気機械器具製造業 | G198: 1061 | H198: 配合飼料製造業
D199: 293 | E199: 民生用電気機械器具製造業 | G199: 1062 | H199: 単体飼料製造業
D200: 294 | E200: 電球・電気照明器具製造業 | G200: 1063 | H200: 有機質肥料製造業
... 1260 more rows

Sheet 対策リスト (hidden)
AA1: 全選択項目 | AM1: 選択対策 | AN1: 対策内容 | AP1: リスト候補 | AT1: 第3年度選択項目 | AU1: 第2年度選択項目 | AV1: 第1年度選択項目 | BA1: 全その他項目 | BM1: その他対策 | BP1: リスト候補 | BT1: 第3年度その他項目 | BU1: 第2年度その他項目 | BV1: 第1年度その他項目 | BW1: 第3年度その他取組内容 | BX1: 第2年度その他取組内容 | BY1: 第1年度その他取組内容 | CA1: 実施状況第3年度 | CB1: 実施状況第2年度 | CC1: 実施状況第1年度 | CD1: 実施状況第基準年度
A2: 基本対策 | D2: 選択対策 | G2: その他対策 | Z2: 1 | AA2: ='計画書② (取組）'!C21 -> 0 | AB2: =IF(AA2<>0,ROW()-1,"") ->  | AC2: =RANK(AB2,$AB$2:$AB$81,1) ->  | AL2: 1 | AM2: 情報共有体制の整備 | AN2: エネルギー使用量や温室効果ガス排出量の把握・分析結果等を適切に社内（市内事業所間）で共有している。 | AO2: =IF(ISERROR(MATCH(AM2,$AA$2:$AA$81,0)),ROW(),"") -> 2 | AP2: =IFERROR(INDIRECT("AM"&SMALL($AO$2:$AO$26,ROW()-1)),"") -> 情報共有体制の整備 | AS2: 1 | AT2: =IFERROR(INDEX($AA$2:$AA$81,MATCH(AS2,$AC$2:$AC$81,0)),"") ->  | AU2: =IFERROR(INDEX($AA$2:$AA$61,MATCH(AS2,$AC$2:$AC$61,0)),"") ->  | AV2: =IFERROR(INDEX($AA$2:$AA$41,MATCH(AS2,$AC$2:$AC$41,0)),"") ->  | AZ2: 1 | BA2: =IF('計画書② (取組）'!C40="","",'計画書② (取組）'!C40&"‡"&'計画書② (取組）'!D40) ->  | BB2: =IF(BA2<>"",ROW()-1,"") ->  | BC2: =RANK(BB2,$BB$2:$BB$41,1) ->  | BD2: ='計画書② (取組）'!D40 -> 0 | BE2: =LEFT(BA2,FIND("‡",BA2)-1) ->  | BI2: 1 | BJ2: =IFERROR(INDEX($BE$2:$BE$41,MATCH(BI2,$BC$2:$BC$41,0)),"") ->  | BK2: =IFERROR(INDEX($BD$2:$BD$41,MATCH(BI2,$BC$2:$BC$41,0)),"") ->  | BM2: 環境マネジメントシステムの導入 | BO2: =IF(ISERROR(MATCH(BM2,$BA$2:$BA$41,0)),ROW(),"") -> 2 | BP2: =IFERROR(INDIRECT("bM"&SMALL($BO$2:$BO$26,ROW()-1)),"") -> 環境マネジメントシステムの導入 | BS2: 1 | BT2: =IFERROR(INDEX($BE$2:$BE$41,MATCH(BS2,$BC$2:$BC$41,0)),"") ->  | BU2: =IFERROR(INDEX($BE$2:$BE$41,MATCH(BS2,$BC$2:$BC$31,0)),"") ->  | BV2: =IFERROR(INDEX($BE$2:$BE$41,MATCH(BS2,$BC$2:$BC$21,0)),"") ->  | BW2: =IFERROR(INDEX($BD$2:$BD$41,MATCH(BS2,$BC$2:$BC$41,0)),"") ->  | BX2: =IFERROR(INDEX($BD$2:$BD$41,MATCH(BS2,$BC$2:$BC$31,0)),"") ->  | BY2: =IFERROR(INDEX($BD$2:$BD$41,MATCH(BS2,$BC$2:$BC$21,0)),"") ->  | CA2: =IF('報告書② 第3年度(取組）'!C47="","",'報告書② 第3年度(取組）'!H47&"") ->  | CB2: =IF('報告書② 第2年度(取組）'!C47="","",'報告書② 第2年度(取組）'!G47&"") ->  | CC2: =IF('報告書② 第1年度(取組）'!C47="","",'報告書② 第1年度(取組）'!F47&"") ->  | CD2: =IF('計画書② (取組）'!C40="","",'計画書② (取組）'!E40&"") -> 
A3: エネルギー管理推進体制の整備 | B3: エネルギー管理推進体制が整備されている。エネルギー管理推進体制の中で、エネルギー管理が推進されている。 | D3: 情報共有体制の整備 | E3: エネルギー使用量や温室効果ガス排出量の把握・分析結果等を適切に社内（市内事業所間）で共有している。 | G3: 環境マネジメントシステムの導入 | Z3: 2 | AA3: ='計画書② (取組）'!C22 -> 0 | AB3: =IF(AA3<>0,ROW()-1,"") ->  | AC3: =RANK(AB3,$AB$2:$AB$81,1) ->  | AL3: 2 | AM3: エネルギー使用量の見える化（前年度比較） | AN3: エネルギー使用量や走行距離を計量し、グラフ化している。エネルギー使用量等を前年度と比較して変化の理由を分析している。 | AO3: =IF(ISERROR(MATCH(AM3,$AA$2:$AA$81,0)),ROW(),"") -> 3 | AP3: =IFERROR(INDIRECT("AM"&SMALL($AO$2:$AO$26,ROW()-1)),"") -> エネルギー使用量の見える化（前年度比較） | AS3: 2 | AT3: =IFERROR(INDEX($AA$2:$AA$81,MATCH(AS3,$AC$2:$AC$81,0)),"") ->  | AU3: =IFERROR(INDEX($AA$2:$AA$61,MATCH(AS3,$AC$2:$AC$61,0)),"") ->  | AV3: =IFERROR(INDEX($AA$2:$AA$41,MATCH(AS3,$AC$2:$AC$41,0)),"") ->  | AZ3: 2 | BA3: =IF('計画書② (取組）'!C41="","",'計画書② (取組）'!C41&"‡"&'計画書② (取組）'!D41) ->  | BB3: =IF(BA3<>"",ROW()-1,"") ->  | BC3: =RANK(BB3,$BB$2:$BB$41,1) ->  | BD3: ='計画書② (取組）'!D41 -> 0 | BE3: =LEFT(BA3,FIND("‡",BA3)-1) ->  | BI3: 2 | BJ3: =IFERROR(INDEX($BE$2:$BE$41,MATCH(BI3,$BC$2:$BC$41,0)),"") ->  | BK3: =IFERROR(INDEX($BD$2:$BD$41,MATCH(BI3,$BC$2:$BC$41,0)),"") ->  | BL3: 2 | BM3: SBTやRE100等の国際的な気候変動イニシアティブなど脱炭素経営への取組 | BO3: =IF(ISERROR(MATCH(BM3,$BA$2:$BA$41,0)),ROW(),"") -> 3 | BP3: =IFERROR(INDIRECT("bM"&SMALL($BO$2:$BO$26,ROW()-1)),"") -> SBTやRE100等の国際的な気候変動イニシアティブなど脱炭素経営への取組 | BS3: 2 | BT3: =IFERROR(INDEX($BE$2:$BE$41,MATCH(BS3,$BC$2:$BC$41,0)),"") ->  | BU3: =IFERROR(INDEX($BE$2:$BE$41,MATCH(BS3,$BC$2:$BC$31,0)),"") ->  | BV3: =IFERROR(INDEX($BE$2:$BE$41,MATCH(BS3,$BC$2:$BC$21,0)),"") ->  | BW3: =IFERROR(INDEX($BD$2:$BD$41,MATCH(BS3,$BC$2:$BC$41,0)),"") ->  | BX3: =IFERROR(INDEX($BD$2:$BD$41,MATCH(BS3,$BC$2:$BC$31,0)),"") ->  | BY3: =IFERROR(INDEX($BD$2:$BD$41,MATCH(BS3,$BC$2:$BC$21,0)),"") ->  | CA3: =IF('報告書② 第3年度(取組）'!C48="","",'報告書② 第3年度(取組）'!H48&"") ->  | CB3: =IF('報告書② 第2年度(取組）'!C48="","",'報告書② 第2年度(取組）'!G48&"") ->  | CC3: =IF('報告書② 第1年度(取組）'!C48="","",'報告書② 第1年度(取組）'!F48&"") ->  | CD3: =IF('計画書② (取組）'!C41="","",'計画書② (取組）'!E41&"") -> 
A4: 省エネルギー教育の実施 | B4: 省エネルギー、地球温暖化防止に関する研修、教育を定期的に実施し、実施記録を残している。 | D4: エネルギー使用量の見える化（前年度比較） | E4: エネルギー使用量や走行距離を計量し、グラフ化している。エネルギー使用量等を前年度と比較して変化の理由を分析している。 | G4: SBTやRE100等の国際的な気候変動イニシアティブなど脱炭素経営への取組 | Z4: 3 | AA4: ='計画書② (取組）'!C23 -> 0 | AL4: 3 | AM4: エネルギー使用量の見える化（分計による課題発見） | AN4: エネルギー使用量や走行距離を、車両別、エネルギー種類別に計量し、グラフ化しており、エネルギー使用量等の変化の理由を分析して、省エネ対策の検討に利用している。 | AO4: 4 | AP4: エネルギー使用量の見える化（分計による課題発見） | AS4: 3 | AZ4: 3 | BA4: =IF('計画書② (取組）'!C42="","",'計画書② (取組）'!C42&"‡"&'計画書② (取組）'!D42) ->  | BC4: =RANK(BB4,$BB$2:$BB$41,1) ->  | BD4: ='計画書② (取組）'!D42 -> 0 | BI4: 3 | BL4: 3 | BM4: 従業員の自動車利用の抑制、公共交通機関の利用促進 | BO4: 4 | BP4: 従業員の自動車利用の抑制、公共交通機関の利用促進 | BS4: 3 | CA4: =IF('報告書② 第3年度(取組）'!C49="","",'報告書② 第3年度(取組）'!H49&"") ->  | CB4: =IF('報告書② 第2年度(取組）'!C49="","",'報告書② 第2年度(取組）'!G49&"") ->  | CC4: =IF('報告書② 第1年度(取組）'!C49="","",'報告書② 第1年度(取組）'!F49&"") ->  | CD4: =IF('計画書② (取組）'!C42="","",'計画書② (取組）'!E42&"") -> 
A5: エネルギー使用量の把握 | B5: エネルギー使用量や走行距離を車両別に定期的に把握・記録されている。 | D5: エネルギー使用量の見える化（分計による課題発見） | E5: エネルギー使用量や走行距離を、車両別、エネルギー種類別に計量し、グラフ化しており、エネルギー使用量等の変化の理由を分析して、省エネ対策の検討に利用している。 | G5: 従業員の自動車利用の抑制、公共交通機関の利用促進 | Z5: 4 | AA5: ='計画書② (取組）'!C24 -> 0 | AL5: 4 | AM5: 環境性能の良い車両の計画的導入 | AN5: ハイブリッド自動車、天然ガス自動車、電気自動車等の環境性能の優れた車両を計画的に導入している | AO5: 5 | AP5: 環境性能の良い車両の計画的導入 | AS5: 4 | AZ5: 4 | BA5: =IF('計画書② (取組）'!C43="","",'計画書② (取組）'!C43&"‡"&'計画書② (取組）'!D43) ->  | BD5: ='計画書② (取組）'!D43 -> 0 | BI5: 4 | BL5: 4 | BM5: 環境教育・学習の実施（従業員以外を対象にしたもの） | BO5: 5 | BP5: 環境教育・学習の実施（従業員以外を対象にしたもの） | BS5: 4 | CA5: =IF('報告書② 第3年度(取組）'!C50="","",'報告書② 第3年度(取組）'!H50&"") ->  | CB5: =IF('報告書② 第2年度(取組）'!C50="","",'報告書② 第2年度(取組）'!G50&"") ->  | CC5: =IF('報告書② 第1年度(取組）'!C50="","",'報告書② 第1年度(取組）'!F50&"") ->  | CD5: =IF('計画書② (取組）'!C43="","",'計画書② (取組）'!E43&"") -> 
A6: エコドライブ推進体制の整備 | B6: エコドライブ推進に関する責任者の設置、実践方法に関するマニュアルを作成するなど、推進体制を整備している。 | D6: 環境性能の良い車両の計画的導入 | E6: ハイブリッド自動車、天然ガス自動車、電気自動車等の環境性能の優れた車両を計画的に導入している。 | G6: 環境教育・学習の実施（従業員以外を対象にしたもの） | Z6: 5 | AA6: ='計画書② (取組）'!C25 -> 0 | AL6: 5 | AM6: 燃費向上のための装置等の計画的導入 | AN6: アイドリングストップ装置や低燃費タイヤなど、燃費向上のために必要な装置等を計画的に導入している | AO6: 6 | AP6: 燃費向上のための装置等の計画的導入 | AS6: 5 | AZ6: 5 | BA6: =IF('計画書② (取組）'!C44="","",'計画書② (取組）'!C44&"‡"&'計画書② (取組）'!D44) ->  | BD6: ='計画書② (取組）'!D44 -> 0 | BI6: 5 | BL6: 5 | BM6: 廃棄物削減対策の実施 | BO6: 6 | BP6: 廃棄物削減対策の実施 | BS6: 5 | CA6: =IF('報告書② 第3年度(取組）'!C51="","",'報告書② 第3年度(取組）'!H51&"") ->  | CB6: =IF('報告書② 第2年度(取組）'!C51="","",'報告書② 第2年度(取組）'!G51&"") ->  | CC6: =IF('報告書② 第1年度(取組）'!C51="","",'報告書② 第1年度(取組）'!F51&"") ->  | CD6: =IF('計画書② (取組）'!C44="","",'計画書② (取組）'!E44&"") -> 
A7: エコドライブ教育の実施 | B7: 車両を運転する全社員に対するエコドライブに関する研修、教育を定期的に実施している。 | D7: 燃費向上のための装置等の計画的導入 | E7: アイドリングストップ装置や低燃費タイヤなど、燃費向上のために必要な装置等を計画的に導入している。 | G7: 廃棄物削減対策の実施 | Z7: 6 | AA7: ='計画書② (取組）'!C26 -> 0 | AL7: 6 | AM7: エコドライブの管理 | AN7: デジタル式記録装置の活用等により、運転者・車種別等のエネルギー使用量を管理している。 | AO7: 7 | AP7: エコドライブの管理 | AS7: 6 | AZ7: 6 | BA7: =IF('計画書② (取組）'!C45="","",'計画書② (取組）'!C45&"‡"&'計画書② (取組）'!D45) ->  | BD7: ='計画書② (取組）'!D45 -> 0 | BI7: 6 | BL7: 6 | BM7: 森林の保全・緑化の推進 | BO7: 7 | BP7: 森林の保全・緑化の推進 | BS7: 6 | CA7: =IF('報告書② 第3年度(取組）'!C52="","",'報告書② 第3年度(取組）'!H52&"") ->  | CB7: =IF('報告書② 第2年度(取組）'!C52="","",'報告書② 第2年度(取組）'!G52&"") ->  | CC7: =IF('報告書② 第1年度(取組）'!C52="","",'報告書② 第1年度(取組）'!F52&"") ->  | CD7: =IF('計画書② (取組）'!C45="","",'計画書② (取組）'!E45&"") -> 
A8: エコドライブ実践 | B8: エコドライブ10のすすめを実践し、チェックシート等に記録している。 | D8: エコドライブの管理 | E8: デジタル式記録装置の活用等により、運転者・車種別等のエネルギー使用量を管理している。 | G8: 森林の保全・緑化の推進 | Z8: 7 | AA8: ='計画書② (取組）'!C27 -> 0 | AL8: 7 | AM8: 維持管理に関する教育 | AN8: 自動車の適正な維持管理に必要な知識や技術の習得のため、定期的に研修等を実施している。 | AO8: 8 | AP8: 維持管理に関する教育 | AS8: 7 | AZ8: 7 | BA8: =IF('計画書② (取組）'!C46="","",'計画書② (取組）'!C46&"‡"&'計画書② (取組）'!D46) ->  | BD8: ='計画書② (取組）'!D46 -> 0 | BI8: 7 | BL8: 7 | BM8: グリーン調達の実施 | BO8: 8 | BP8: グリーン調達の実施 | BS8: 7 | CA8: =IF('報告書② 第3年度(取組）'!C53="","",'報告書② 第3年度(取組）'!H53&"") ->  | CB8: =IF('報告書② 第2年度(取組）'!C53="","",'報告書② 第2年度(取組）'!G53&"") ->  | CC8: =IF('報告書② 第1年度(取組）'!C53="","",'報告書② 第1年度(取組）'!F53&"") ->  | CD8: =IF('計画書② (取組）'!C46="","",'計画書② (取組）'!E46&"") -> 
A9: 車両の維持管理 | B9: 車両の点検・整備に関する責任者の設置、マニュアルの作成等、自動車の維持管理体制が整備されている。 | D9: 維持管理に関する教育 | E9: 自動車の適正な維持管理に必要な知識や技術の習得のため、定期的に研修等を実施している。 | G9: グリーン調達の実施 | Z9: 8 | AA9: ='計画書② (取組）'!C28 -> 0 | AL9: 8 | AM9: モーダルシフトの推進 | AN9: 車両、鉄道、船等の低排出量の輸送方法への変更を検討・実施している。 | AO9: 9 | AP9: モーダルシフトの推進 | AS9: 8 | AZ9: 8 | BA9: =IF('計画書② (取組）'!C47="","",'計画書② (取組）'!C47&"‡"&'計画書② (取組）'!D47) ->  | BD9: ='計画書② (取組）'!D47 -> 0 | BI9: 8 | BL9: 8 | BM9: カーボンオフセットの実施 | BO9: 9 | BP9: カーボンオフセットの実施 | BS9: 8 | CA9: =IF('報告書② 第3年度(取組）'!C54="","",'報告書② 第3年度(取組）'!H54&"") ->  | CB9: =IF('報告書② 第2年度(取組）'!C54="","",'報告書② 第2年度(取組）'!G54&"") ->  | CC9: =IF('報告書② 第1年度(取組）'!C54="","",'報告書② 第1年度(取組）'!F54&"") ->  | CD9: =IF('計画書② (取組）'!C47="","",'計画書② (取組）'!E47&"") -> 
A10: 車両の性能管理 | B10: 日常及び定期的な保守・点検、修理が行われ、記録されている。 | D10: モーダルシフトの推進 | E10: 車両、鉄道、船等の低排出量の輸送方法への変更を検討・実施している。 | G10: カーボンオフセットの実施 | Z10: 9 | AA10: ='計画書② (取組）'!C29 -> 0 | AL10: 9 | AM10: 搬出入車両のエコカー導入誘導 | AN10: 搬出入を行う者（外部輸送事業者を含む）の貨物自動車をエコカーに更新するよう働きかけを行っている。 | AO10: 10 | AP10: 搬出入車両のエコカー導入誘導 | AS10: 9 | AZ10: 9 | BA10: =IF('計画書② (取組）'!C48="","",'計画書② (取組）'!C48&"‡"&'計画書② (取組）'!D48) ->  | BD10: ='計画書② (取組）'!D48 -> 0 | BI10: 9 | BL10: 9 | BM10: ヒートアイランド対策の実施 | BO10: 10 | BP10: ヒートアイランド対策の実施 | BS10: 9 | CA10: =IF('報告書② 第3年度(取組）'!C55="","",'報告書② 第3年度(取組）'!H55&"") ->  | CB10: =IF('報告書② 第2年度(取組）'!C55="","",'報告書② 第2年度(取組）'!G55&"") ->  | CC10: =IF('報告書② 第1年度(取組）'!C55="","",'報告書② 第1年度(取組）'!F55&"") ->  | CD10: =IF('計画書② (取組）'!C48="","",'計画書② (取組）'!E48&"") -> 
A11: 効率的なルート選定 | B11: 事前に目的地までの効率的なルートを選定し、運転者に伝える仕組みが整備されている。 | D11: 搬出入車両のエコカー導入誘導 | E11: 搬出入を行う者（外部輸送事業者を含む）の貨物自動車をエコカーに更新するよう働きかけを行っている。 | G11: ヒートアイランド対策の実施 | Z11: 10 | AA11: ='計画書② (取組）'!C30 -> 0 | AL11: 10 | AM11: 関係者への普及啓発 | AN11: 荷主（顧客）、協力会社等の関係者に対して、地球温暖化対策に関する普及啓発（地球温暖化対策への協力依頼）を行っている。 | AO11: 11 | AP11: 関係者への普及啓発 | AS11: 10 | AZ11: 10 | BA11: =IF('計画書② (取組）'!C49="","",'計画書② (取組）'!C49&"‡"&'計画書② (取組）'!D49) ->  | BD11: ='計画書② (取組）'!D49 -> 0 | BI11: 10 | BL11: 10 | BM11: 計画期間以前の温室効果ガスの大幅な削減 | BO11: 11 | BP11: 計画期間以前の温室効果ガスの大幅な削減 | BS11: 10
A12: 効率的な自動車管理 | B12: 輸送需要を把握し、目的や輸送量に応じた自動車を使用するなど、適切な車両管理を行っている。 | D12: 関係者への普及啓発 | E12: 荷主（顧客）、協力会社等の関係者に対して、地球温暖化対策に関する普及啓発（地球温暖化対策への協力依頼）を行っている。 | G12: 計画期間以前の温室効果ガスの大幅な削減 | Z12: 11 | AA12: ='計画書② (取組）'!C31 -> 0 | AL12: 11 | AM12: 事業者連携による効率的な輸送推進 | AN12: 他の事業者と連携して、共同輸配送や共同運行など効率的な輸送を推進している。 | AO12: 12 | AP12: 事業者連携による効率的な輸送推進 | AS12: 11 | AZ12: 11 | BA12: =IF('報告書② 第1年度(取組）'!C121="","",'報告書② 第1年度(取組）'!C121&"‡"&'報告書② 第1年度(取組）'!D121) ->  | BD12: ='報告書② 第1年度(取組）'!D121 -> 0 | BI12: 11 | BL12: 11 | BM12: 排出係数の小さい電気事業者の選択 | BO12: 12 | BP12: 排出係数の小さい電気事業者の選択 | BS12: 11
A13: 照明器具の点灯時間管理 | B13: 照明器具の点灯時間がルール化されている。不要な照明の使用や消し忘れをチェックする仕組みがある。センサー等による制御が導入されている。 | D13: 事業者連携による効率的な輸送推進 | E13: 他の事業者と連携して、共同輸配送や共同運行など効率的な輸送を推進している。 | G13: ＤＲ（デマンドレスポンス）の実施 | Z13: 12 | AA13: ='計画書② (取組）'!C32 -> 0 | AL13: 12 | AM13: 最適運行ルート選択 | AN13: 効率的な運行ルートを選択するため、カーナビゲーションシステム等を導入している。 | AO13: 13 | AP13: 最適運行ルート選択 | AS13: 12 | AZ13: 12 | BA13: =IF('報告書② 第1年度(取組）'!C122="","",'報告書② 第1年度(取組）'!C122&"‡"&'報告書② 第1年度(取組）'!D122) ->  | BD13: ='報告書② 第1年度(取組）'!D122 -> 0 | BI13: 12 | BL13: 12 | BM13: 市が実施する環境関連事業への参画 | BO13: 13 | BP13: 市が実施する環境関連事業への参画 | BS13: 12
A14: 事務所機器の待機電力管理 | B14: PC、OA機器等の事務所機器が省エネモードに設定されており、長時間不使用の場合には電源を切ることがルール化されている。PC、OA機器等の事務所機器がルールに従って運転されている。 | D14: 最適運行ルート選択 | E14: 効率的な運行ルートを選択するため、カーナビゲーションシステム等を導入している。 | G14: 市が実施する環境関連事業への参画 | Z14: 13 | AA14: ='計画書② (取組）'!C33 -> 0 | AL14: 13 | AM14: 効率的な自動車運用のためのシステム導入 | AN14: 車両動態管理システムなど、輸送や配車効率の向上に資する情報システムを導入している。 | AO14: 14 | AP14: 効率的な自動車運用のためのシステム導入 | AS14: 13 | AZ14: 13 | BA14: =IF('報告書② 第1年度(取組）'!C123="","",'報告書② 第1年度(取組）'!C123&"‡"&'報告書② 第1年度(取組）'!D123) ->  | BD14: ='報告書② 第1年度(取組）'!D123 -> 0 | BI14: 13 | BL14: 13 | BM14: その他地球温暖化を防止する対策の実施 | BO14: 14 | BP14: その他地球温暖化を防止する対策の実施 | BS14: 13
C15: =RIGHT(B15,1) ->  | D15: 効率的な自動車運用のためのシステム導入 | E15: 車両動態管理システムなど、輸送や配車効率の向上に資する情報システムを導入している。 | G15: その他地球温暖化を防止する対策の実施 | Z15: 14 | AA15: ='計画書② (取組）'!C34 -> 0 | AL15: 14 | AM15: 効率的なルート選定 | AN15: 混雑する道路や時間帯を避けるための輸送計画を作成している。 | AO15: 15 | AP15: 効率的なルート選定 | AS15: 14 | AZ15: 14 | BA15: =IF('報告書② 第1年度(取組）'!C124="","",'報告書② 第1年度(取組）'!C124&"‡"&'報告書② 第1年度(取組）'!D124) ->  | BD15: ='報告書② 第1年度(取組）'!D124 -> 0
D16: 効率的なルート選定 | E16: 混雑する道路や時間帯を避けるための輸送計画を作成している。 | Z16: 15 | AA16: ='計画書② (取組）'!C35 -> 0 | AL16: 15 | AM16: 空調設定温度の管理 | AN16: 空調設定温度が管理標準（管理マニュアル）で定められている。空調を使用している場所の温度が記録されている。 | AO16: 16 | AP16: 空調設定温度の管理 | AS16: 15 | AZ16: 15 | BA16: =IF('報告書② 第1年度(取組）'!C125="","",'報告書② 第1年度(取組）'!C125&"‡"&'報告書② 第1年度(取組）'!D125) ->  | BD16: ='報告書② 第1年度(取組）'!D125 -> 0
D17: 空調設定温度の管理 | E17: 空調設定温度がルール化されている。空調を使用している場所の温度が記録されている。 | Z17: 16 | AL17: 16 | AS17: 16 | AZ17: 16 | BA17: =IF('報告書② 第1年度(取組）'!C126="","",'報告書② 第1年度(取組）'!C126&"‡"&'報告書② 第1年度(取組）'!D126) ->  | BD17: ='報告書② 第1年度(取組）'!D126 -> 0
E18:  | F18: =RIGHT(E18,1) ->  | Z18: 17 | AL18: 17 | AS18: 17 | AZ18: 17 | BA18: =IF('報告書② 第1年度(取組）'!C127="","",'報告書② 第1年度(取組）'!C127&"‡"&'報告書② 第1年度(取組）'!D127) ->  | BD18: ='報告書② 第1年度(取組）'!D127 -> 0
Z19: 18 | AL19: 18 | AS19: 18 | AZ19: 18 | BA19: =IF('報告書② 第1年度(取組）'!C128="","",'報告書② 第1年度(取組）'!C128&"‡"&'報告書② 第1年度(取組）'!D128) ->  | BD19: ='報告書② 第1年度(取組）'!D128 -> 0
Z20: 19 | AL20: 19 | AS20: 19 | AZ20: 19 | BA20: =IF('報告書② 第1年度(取組）'!C129="","",'報告書② 第1年度(取組）'!C129&"‡"&'報告書② 第1年度(取組）'!D129) ->  | BD20: ='報告書② 第1年度(取組）'!D129 -> 0
Z21: 20 | AL21: 20 | AS21: 20 | AZ21: 20 | BA21: =IF('報告書② 第1年度(取組）'!C130="","",'報告書② 第1年度(取組）'!C130&"‡"&'報告書② 第1年度(取組）'!D130) ->  | BD21: ='報告書② 第1年度(取組）'!D130 -> 0
Z22: 21 | AA22: ='報告書② 第1年度(取組）'!C91 -> 0 | AL22: 21 | AS22: 21 | AZ22: 21 | BA22: =IF('報告書② 第2年度(取組）'!C121="","",'報告書② 第2年度(取組）'!C121&"‡"&'報告書② 第2年度(取組）'!D121) ->  | BD22: ='報告書② 第2年度(取組）'!D121 -> 0
Z23: 22 | AA23: ='報告書② 第1年度(取組）'!C92 -> 0 | AL23: 22 | AS23: 22 | AZ23: 22 | BA23: =IF('報告書② 第2年度(取組）'!C122="","",'報告書② 第2年度(取組）'!C122&"‡"&'報告書② 第2年度(取組）'!D122) ->  | BD23: ='報告書② 第2年度(取組）'!D122 -> 0
Z24: 23 | AA24: ='報告書② 第1年度(取組）'!C93 -> 0 | AL24: 23 | AS24: 23 | AZ24: 23 | BA24: =IF('報告書② 第2年度(取組）'!C123="","",'報告書② 第2年度(取組）'!C123&"‡"&'報告書② 第2年度(取組）'!D123) ->  | BD24: ='報告書② 第2年度(取組）'!D123 -> 0
Z25: 24 | AA25: ='報告書② 第1年度(取組）'!C94 -> 0 | AL25: 24 | AS25: 24 | AZ25: 24 | BA25: =IF('報告書② 第2年度(取組）'!C124="","",'報告書② 第2年度(取組）'!C124&"‡"&'報告書② 第2年度(取組）'!D124) ->  | BD25: ='報告書② 第2年度(取組）'!D124 -> 0
Z26: 25 | AA26: ='報告書② 第1年度(取組）'!C95 -> 0 | AL26: 25 | AS26: 25 | AZ26: 25 | BA26: =IF('報告書② 第2年度(取組）'!C125="","",'報告書② 第2年度(取組）'!C125&"‡"&'報告書② 第2年度(取組）'!D125) ->  | BD26: ='報告書② 第2年度(取組）'!D125 -> 0
Z27: 26 | AA27: ='報告書② 第1年度(取組）'!C96 -> 0 | AZ27: 26 | BA27: =IF('報告書② 第2年度(取組）'!C126="","",'報告書② 第2年度(取組）'!C126&"‡"&'報告書② 第2年度(取組）'!D126) ->  | BD27: ='報告書② 第2年度(取組）'!D126 -> 0
Z28: 27 | AA28: ='報告書② 第1年度(取組）'!C97 -> 0 | AZ28: 27 | BA28: =IF('報告書② 第2年度(取組）'!C127="","",'報告書② 第2年度(取組）'!C127&"‡"&'報告書② 第2年度(取組）'!D127) ->  | BD28: ='報告書② 第2年度(取組）'!D127 -> 0
Z29: 28 | AA29: ='報告書② 第1年度(取組）'!C98 -> 0 | AZ29: 28 | BA29: =IF('報告書② 第2年度(取組）'!C128="","",'報告書② 第2年度(取組）'!C128&"‡"&'報告書② 第2年度(取組）'!D128) ->  | BD29: ='報告書② 第2年度(取組）'!D128 -> 0
Z30: 29 | AA30: ='報告書② 第1年度(取組）'!C99 -> 0 | AZ30: 29 | BA30: =IF('報告書② 第2年度(取組）'!C129="","",'報告書② 第2年度(取組）'!C129&"‡"&'報告書② 第2年度(取組）'!D129) ->  | BD30: ='報告書② 第2年度(取組）'!D129 -> 0
Z31: 30 | AA31: ='報告書② 第1年度(取組）'!C100 -> 0 | AZ31: 30 | BA31: =IF('報告書② 第2年度(取組）'!C130="","",'報告書② 第2年度(取組）'!C130&"‡"&'報告書② 第2年度(取組）'!D130) ->  | BD31: ='報告書② 第2年度(取組）'!D130 -> 0
Z32: 31 | AA32: ='報告書② 第1年度(取組）'!C101 -> 0 | AZ32: 31 | BA32: =IF('報告書② 第3年度(取組）'!C121="","",'報告書② 第3年度(取組）'!C121&"‡"&'報告書② 第3年度(取組）'!D121) ->  | BD32: ='報告書② 第3年度(取組）'!D121 -> 0
Z33: 32 | AA33: ='報告書② 第1年度(取組）'!C102 -> 0 | AZ33: 32 | BA33: =IF('報告書② 第3年度(取組）'!C122="","",'報告書② 第3年度(取組）'!C122&"‡"&'報告書② 第3年度(取組）'!D122) ->  | BD33: ='報告書② 第3年度(取組）'!D122 -> 0
Z34: 33 | AA34: ='報告書② 第1年度(取組）'!C103 -> 0 | AZ34: 33 | BA34: =IF('報告書② 第3年度(取組）'!C123="","",'報告書② 第3年度(取組）'!C123&"‡"&'報告書② 第3年度(取組）'!D123) ->  | BD34: ='報告書② 第3年度(取組）'!D123 -> 0
Z35: 34 | AA35: ='報告書② 第1年度(取組）'!C104 -> 0 | AZ35: 34 | BA35: =IF('報告書② 第3年度(取組）'!C124="","",'報告書② 第3年度(取組）'!C124&"‡"&'報告書② 第3年度(取組）'!D124) ->  | BD35: ='報告書② 第3年度(取組）'!D124 -> 0
Z36: 35 | AA36: ='報告書② 第1年度(取組）'!C105 -> 0 | AZ36: 35 | BA36: =IF('報告書② 第3年度(取組）'!C125="","",'報告書② 第3年度(取組）'!C125&"‡"&'報告書② 第3年度(取組）'!D125) ->  | BD36: ='報告書② 第3年度(取組）'!D125 -> 0
Z37: 36 | AZ37: 36 | BA37: =IF('報告書② 第3年度(取組）'!C126="","",'報告書② 第3年度(取組）'!C126&"‡"&'報告書② 第3年度(取組）'!D126) ->  | BD37: ='報告書② 第3年度(取組）'!D126 -> 0
Z38: 37 | AZ38: 37 | BA38: =IF('報告書② 第3年度(取組）'!C127="","",'報告書② 第3年度(取組）'!C127&"‡"&'報告書② 第3年度(取組）'!D127) ->  | BD38: ='報告書② 第3年度(取組）'!D127 -> 0
Z39: 38 | AZ39: 38 | BA39: =IF('報告書② 第3年度(取組）'!C128="","",'報告書② 第3年度(取組）'!C128&"‡"&'報告書② 第3年度(取組）'!D128) ->  | BD39: ='報告書② 第3年度(取組）'!D128 -> 0
Z40: 39 | AZ40: 39 | BA40: =IF('報告書② 第3年度(取組）'!C129="","",'報告書② 第3年度(取組）'!C129&"‡"&'報告書② 第3年度(取組）'!D129) ->  | BD40: ='報告書② 第3年度(取組）'!D129 -> 0
Z41: 40 | AZ41: 40 | BA41: =IF('報告書② 第3年度(取組）'!C130="","",'報告書② 第3年度(取組）'!C130&"‡"&'報告書② 第3年度(取組）'!D130) ->  | BD41: ='報告書② 第3年度(取組）'!D130 -> 0
Z42: 41 | AA42: ='報告書② 第2年度(取組）'!C91 -> 0
Z43: 42 | AA43: ='報告書② 第2年度(取組）'!C92 -> 0
Z44: 43 | AA44: ='報告書② 第2年度(取組）'!C93 -> 0
Z45: 44 | AA45: ='報告書② 第2年度(取組）'!C94 -> 0
Z46: 45 | AA46: ='報告書② 第2年度(取組）'!C95 -> 0
Z47: 46 | AA47: ='報告書② 第2年度(取組）'!C96 -> 0
Z48: 47 | AA48: ='報告書② 第2年度(取組）'!C97 -> 0
Z49: 48 | AA49: ='報告書② 第2年度(取組）'!C98 -> 0
Z50: 49 | AA50: ='報告書② 第2年度(取組）'!C99 -> 0
Z51: 50 | AA51: ='報告書② 第2年度(取組）'!C100 -> 0
Z52: 51 | AA52: ='報告書② 第2年度(取組）'!C101 -> 0
Z53: 52 | AA53: ='報告書② 第2年度(取組）'!C102 -> 0
Z54: 53 | AA54: ='報告書② 第2年度(取組）'!C103 -> 0
Z55: 54 | AA55: ='報告書② 第2年度(取組）'!C104 -> 0
Z56: 55 | AA56: ='報告書② 第2年度(取組）'!C105 -> 0
Z57: 56
Z58: 57
Z59: 58
Z60: 59
Z61: 60
Z62: 61 | AA62: ='報告書② 第3年度(取組）'!C91 -> 0
Z63: 62 | AA63: ='報告書② 第3年度(取組）'!C92 -> 0
Z64: 63 | AA64: ='報告書② 第3年度(取組）'!C93 -> 0
Z65: 64 | AA65: ='報告書② 第3年度(取組）'!C94 -> 0
Z66: 65 | AA66: ='報告書② 第3年度(取組）'!C95 -> 0
Z67: 66 | AA67: ='報告書② 第3年度(取組）'!C96 -> 0 | AB67: =IF(AA67<>0,ROW()-1,"") ->  | AC67: =RANK(AB67,$AB$2:$AB$81,1) -> 
Z68: 67 | AA68: ='報告書② 第3年度(取組）'!C97 -> 0
Z69: 68 | AA69: ='報告書② 第3年度(取組）'!C98 -> 0
Z70: 69 | AA70: ='報告書② 第3年度(取組）'!C99 -> 0
Z71: 70 | AA71: ='報告書② 第3年度(取組）'!C100 -> 0
Z72: 71 | AA72: ='報告書② 第3年度(取組）'!C101 -> 0
Z73: 72 | AA73: ='報告書② 第3年度(取組）'!C102 -> 0
Z74: 73 | AA74: ='報告書② 第3年度(取組）'!C103 -> 0
Z75: 74 | AA75: ='報告書② 第3年度(取組）'!C104 -> 0
Z76: 75 | AA76: ='報告書② 第3年度(取組）'!C105 -> 0
Z77: 76
Z78: 77
Z79: 78
Z80: 79
Z81: 80

Sheet リスト1 (hidden)
A1: 項目エクセル | B1: 元シート | C1: 元セル | D1: 転記先シート名 | E1: セル | F1: 値区分 | K1: 番号 | L1: 通番
A2: 整理番号 | B2: はじめに | C2: S2 | D2: はじめに | E2: S2 | K2: 1 | L2: 1
A3: 提出年月日1 | B3: はじめに | C3: E5 | D3: はじめに | E3: E5 | K3: 2 | L3: 2
A4: 提出年月日2 | B4: はじめに | C4: G5 | D4: はじめに | E4: G5 | K4: 3 | L4: 3
A5: 提出年月日3 | B5: はじめに | C5: I5 | D5: はじめに | E5: I5 | K5: 4 | L5: 4
A6: 法人の名称 | B6: はじめに | C6: E6 | D6: はじめに | E6: E6 | K6: 5 | L6: 5
A7: 法人の所在地 | B7: はじめに | C7: E7 | D7: はじめに | E7: E7 | K7: 6 | L7: 6
A8: 代表者の職・氏名 | B8: はじめに | C8: E8 | D8: はじめに | E8: E8 | K8: 7 | L8: 7
A9: 代理者の職・氏名 | B9: はじめに | C9: E9 | D9: はじめに | E9: E9 | K9: 8 | L9: 8
A10: 条例第２条第５号イ | B10: はじめに | C10: S10 | D10: はじめに | E10: S10 | K10: 9 | L10: 9 | X10: 9 | Y10: 9
A11: 条例第２条第５号ロ | B11: はじめに | C11: S11 | D11: はじめに | E11: S11 | K11: 10 | L11: 10 | X11: 10 | Y11: 10
A12: 条例第２条第５号ハ | B12: はじめに | C12: S12 | D12: はじめに | E12: S12 | K12: 11 | L12: 11 | X12: 11 | Y12: 11
A13: 一般事業者 | B13: はじめに | C13: S13 | D13: はじめに | E13: S13 | K13: 12 | L13: 12 | X13: 12 | Y13: 12
A14: 事業所の名称 | B14: はじめに | C14: E14 | D14: はじめに | E14: E14 | K14: 13 | L14: 13
A15: 郵便番号1 | B15: はじめに | C15: F15 | D15: はじめに | E15: F15 | K15: 14 | L15: 14
A16: 郵便番号2 | B16: はじめに | C16: H15 | D16: はじめに | E16: H15 | K16: 15 | L16: 15
A17: 事業所の所在地 | B17: はじめに | C17: E16 | D17: はじめに | E17: E16 | K17: 16 | L17: 16
A18: 産業分類番号1 | B18: はじめに | C18: E17 | D18: はじめに | E18: E17 | K18: 17 | L18: 17
A19: 産業分類番号2 | B19: はじめに | C19: F17 | D19: はじめに | E19: F17 | K19: 18 | L19: 18
A20: 産業分類番号3 | B20: はじめに | C20: G17 | D20: はじめに | E20: G17 | K20: 19 | L20: 19
A21: 産業分類番号4 | B21: はじめに | C21: H17 | D21: はじめに | E21: H17 | K21: 20 | L21: 20
A22: 従業員数 | B22: はじめに | C22: E19 | D22: はじめに | E22: S2 | K22: 21 | L22: 21
A23: 延べ床面積 | B23: はじめに | C23: E20 | D23: はじめに | E23: S2 | K23: 22 | L23: 22
A24: 所属部署 | B24: はじめに | C24: E21 | D24: はじめに | E24: E21 | K24: 23 | L24: 23
A25: 郵便番号3 | B25: はじめに | C25: F22 | D25: はじめに | E25: F22 | K25: 24 | L25: 24
A26: 郵便番号4 | B26: はじめに | C26: H22 | D26: はじめに | E26: H22 | K26: 25 | L26: 25
A27: 住所 | B27: はじめに | C27: E23 | D27: はじめに | E27: E23 | K27: 26 | L27: 26
A28: 氏名 | B28: はじめに | C28: E24 | D28: はじめに | E28: E24 | K28: 27 | L28: 27
A29: 電話番号 | B29: はじめに | C29: E25 | D29: はじめに | E29: E25 | K29: 28 | L29: 28
A30: FAX番号 | B30: はじめに | C30: E26 | D30: はじめに | E30: E26 | K30: 29 | L30: 29
A31: Eメールアドレス | B31: はじめに | C31: E27 | D31: はじめに | E31: E27 | K31: 30 | L31: 30
A32: ２．基本方針 | B32: 計画書①（事業者概要・目標） | C32: A13 | D32: 計画書①（事業者概要・目標） | E32: A13 | K32: 1 | L32: 27
A33: ３．組織体制 | B33: 計画書①（事業者概要・目標） | C33: A16 | D33: 計画書①（事業者概要・目標） | E33: A16 | K33: 2 | L33: 28
A34: ４．目標排出量 | B34: 計画書①（事業者概要・目標） | C34: H25 | D34: 計画書①（事業者概要・目標） | E34: H25 | K34: 3 | L34: 29
A35: ４．目標原単位 | B35: 計画書①（事業者概要・目標） | C35: M25 | D35: 計画書①（事業者概要・目標） | E35: M25 | K35: 4 | L35: 30
A36: ４．非化石エネルギー自動車割合 | B36: 計画書①（事業者概要・目標） | C36: M27 | D36: 計画書①（事業者概要・目標） | E36: M27 | K36: 5 | L36: 31
A37: ４．目標設置の考え方 | B37: 計画書①（事業者概要・目標） | C37: C28 | D37: 計画書①（事業者概要・目標） | E37: C28 | K37: 6 | L37: 32
A38: ５の１（基本対策）状況1 | B38: 計画書② (取組） | C38: E5 | D38: 計画書② (取組） | E38: E5 | K38: 1 | L38: 33
A39: ５の１（基本対策）状況2 | B39: 計画書② (取組） | C39: E6 | D39: 計画書② (取組） | E39: E6 | K39: 2 | L39: 34
A40: ５の１（基本対策）状況3 | B40: 計画書② (取組） | C40: E7 | D40: 計画書② (取組） | E40: E7 | K40: 3 | L40: 35
A41: ５の１（基本対策）状況4 | B41: 計画書② (取組） | C41: E8 | D41: 計画書② (取組） | E41: E8 | K41: 4 | L41: 36
A42: ５の１（基本対策）状況5 | B42: 計画書② (取組） | C42: E9 | D42: 計画書② (取組） | E42: E9 | K42: 5 | L42: 37
A43: ５の１（基本対策）状況6 | B43: 計画書② (取組） | C43: E10 | D43: 計画書② (取組） | E43: E10 | K43: 6 | L43: 38
A44: ５の１（基本対策）状況7 | B44: 計画書② (取組） | C44: E11 | D44: 計画書② (取組） | E44: E11 | K44: 7 | L44: 39
A45: ５の１（基本対策）状況8 | B45: 計画書② (取組） | C45: E12 | D45: 計画書② (取組） | E45: E12 | K45: 8 | L45: 40
A46: ５の１（基本対策）状況9 | B46: 計画書② (取組） | C46: E13 | D46: 計画書② (取組） | E46: E13 | K46: 9 | L46: 41
A47: ５の１（基本対策）状況10 | B47: 計画書② (取組） | C47: E14 | D47: 計画書② (取組） | E47: E14 | K47: 10 | L47: 42
A48: ５の１（基本対策）状況11 | B48: 計画書② (取組） | C48: E15 | D48: 計画書② (取組） | E48: E15 | K48: 11 | L48: 43
A49: ５の１（基本対策）状況12 | B49: 計画書② (取組） | C49: E16 | D49: 計画書② (取組） | E49: E16 | K49: 12 | L49: 44
A50: ５の１（基本対策）予定1 | B50: 計画書② (取組） | C50: F5 | D50: 計画書② (取組） | E50: F5 | K50: 13 | L50: 45
A51: ５の１（基本対策）予定2 | B51: 計画書② (取組） | C51: F6 | D51: 計画書② (取組） | E51: F6 | K51: 14 | L51: 46
A52: ５の１（基本対策）予定3 | B52: 計画書② (取組） | C52: F7 | D52: 計画書② (取組） | E52: F7 | K52: 15 | L52: 47
A53: ５の１（基本対策）予定4 | B53: 計画書② (取組） | C53: F8 | D53: 計画書② (取組） | E53: F8 | K53: 16 | L53: 48
A54: ５の１（基本対策）予定5 | B54: 計画書② (取組） | C54: F9 | D54: 計画書② (取組） | E54: F9 | K54: 17 | L54: 49
A55: ５の１（基本対策）予定6 | B55: 計画書② (取組） | C55: F10 | D55: 計画書② (取組） | E55: F10 | K55: 18 | L55: 50
A56: ５の１（基本対策）予定7 | B56: 計画書② (取組） | C56: F11 | D56: 計画書② (取組） | E56: F11 | K56: 19 | L56: 51
A57: ５の１（基本対策）予定8 | B57: 計画書② (取組） | C57: F12 | D57: 計画書② (取組） | E57: F12 | K57: 20 | L57: 52
A58: ５の１（基本対策）予定9 | B58: 計画書② (取組） | C58: F13 | D58: 計画書② (取組） | E58: F13 | K58: 21 | L58: 53
A59: ５の１（基本対策）予定10 | B59: 計画書② (取組） | C59: F14 | D59: 計画書② (取組） | E59: F14 | K59: 22 | L59: 54
A60: ５の１（基本対策）予定11 | B60: 計画書② (取組） | C60: F15 | D60: 計画書② (取組） | E60: F15 | K60: 23 | L60: 55
A61: ５の１（基本対策）予定12 | B61: 計画書② (取組） | C61: F16 | D61: 計画書② (取組） | E61: F16 | K61: 24 | L61: 56
A62: ５の２（選択対策）項目1 | B62: 計画書② (取組） | C62: C21 | D62: 計画書② (取組） | E62: C21 | K62: 25 | L62: 57
A63: ５の２（選択対策）項目2 | B63: 計画書② (取組） | C63: C22 | D63: 計画書② (取組） | E63: C22 | K63: 26 | L63: 58
A64: ５の２（選択対策）項目3 | B64: 計画書② (取組） | C64: C23 | D64: 計画書② (取組） | E64: C23 | K64: 27 | L64: 59
A65: ５の２（選択対策）項目4 | B65: 計画書② (取組） | C65: C24 | D65: 計画書② (取組） | E65: C24 | K65: 28 | L65: 60
A66: ５の２（選択対策）項目5 | B66: 計画書② (取組） | C66: C25 | D66: 計画書② (取組） | E66: C25 | K66: 29 | L66: 61
A67: ５の２（選択対策）項目6 | B67: 計画書② (取組） | C67: C26 | D67: 計画書② (取組） | E67: C26 | K67: 30 | L67: 62
A68: ５の２（選択対策）項目7 | B68: 計画書② (取組） | C68: C27 | D68: 計画書② (取組） | E68: C27 | K68: 31 | L68: 63
A69: ５の２（選択対策）項目8 | B69: 計画書② (取組） | C69: C28 | D69: 計画書② (取組） | E69: C28 | K69: 32 | L69: 64
A70: ５の２（選択対策）項目9 | B70: 計画書② (取組） | C70: C29 | D70: 計画書② (取組） | E70: C29 | K70: 33 | L70: 65
A71: ５の２（選択対策）項目10 | B71: 計画書② (取組） | C71: C30 | D71: 計画書② (取組） | E71: C30 | K71: 34 | L71: 66
A72: ５の２（選択対策）項目11 | B72: 計画書② (取組） | C72: C31 | D72: 計画書② (取組） | E72: C31 | K72: 35 | L72: 67
A73: ５の２（選択対策）項目12 | B73: 計画書② (取組） | C73: C32 | D73: 計画書② (取組） | E73: C32 | K73: 36 | L73: 68
A74: ５の２（選択対策）項目13 | B74: 計画書② (取組） | C74: C33 | D74: 計画書② (取組） | E74: C33 | K74: 37 | L74: 69
A75: ５の２（選択対策）項目14 | B75: 計画書② (取組） | C75: C34 | D75: 計画書② (取組） | E75: C34 | K75: 38 | L75: 70
A76: ５の２（選択対策）項目15 | B76: 計画書② (取組） | C76: C35 | D76: 計画書② (取組） | E76: C35 | K76: 39 | L76: 71
A77: ５の２（選択対策）状況1 | B77: 計画書② (取組） | C77: E21 | D77: 計画書② (取組） | E77: E21 | K77: 40 | L77: 72
A78: ５の２（選択対策）状況2 | B78: 計画書② (取組） | C78: E22 | D78: 計画書② (取組） | E78: E22 | K78: 41 | L78: 73
A79: ５の２（選択対策）状況3 | B79: 計画書② (取組） | C79: E23 | D79: 計画書② (取組） | E79: E23 | K79: 42 | L79: 74
A80: ５の２（選択対策）状況4 | B80: 計画書② (取組） | C80: E24 | D80: 計画書② (取組） | E80: E24 | K80: 43 | L80: 75
A81: ５の２（選択対策）状況5 | B81: 計画書② (取組） | C81: E25 | D81: 計画書② (取組） | E81: E25 | K81: 44 | L81: 76
A82: ５の２（選択対策）状況6 | B82: 計画書② (取組） | C82: E26 | D82: 計画書② (取組） | E82: E26 | K82: 45 | L82: 77
A83: ５の２（選択対策）状況7 | B83: 計画書② (取組） | C83: E27 | D83: 計画書② (取組） | E83: E27 | K83: 46 | L83: 78
A84: ５の２（選択対策）状況8 | B84: 計画書② (取組） | C84: E28 | D84: 計画書② (取組） | E84: E28 | K84: 47 | L84: 79
A85: ５の２（選択対策）状況9 | B85: 計画書② (取組） | C85: E29 | D85: 計画書② (取組） | E85: E29 | K85: 48 | L85: 80
A86: ５の２（選択対策）状況10 | B86: 計画書② (取組） | C86: E30 | D86: 計画書② (取組） | E86: E30 | K86: 49 | L86: 81
A87: ５の２（選択対策）状況11 | B87: 計画書② (取組） | C87: E31 | D87: 計画書② (取組） | E87: E31 | K87: 50 | L87: 82
A88: ５の２（選択対策）状況12 | B88: 計画書② (取組） | C88: E32 | D88: 計画書② (取組） | E88: E32 | K88: 51 | L88: 83
A89: ５の２（選択対策）状況13 | B89: 計画書② (取組） | C89: E33 | D89: 計画書② (取組） | E89: E33 | K89: 52 | L89: 84
A90: ５の２（選択対策）状況14 | B90: 計画書② (取組） | C90: E34 | D90: 計画書② (取組） | E90: E34 | K90: 53 | L90: 85
A91: ５の２（選択対策）状況15 | B91: 計画書② (取組） | C91: E35 | D91: 計画書② (取組） | E91: E35 | K91: 54 | L91: 86
A92: ５の２（選択対策）予定1 | B92: 計画書② (取組） | C92: F21 | D92: 計画書② (取組） | E92: F21 | K92: 55 | L92: 87
A93: ５の２（選択対策）予定2 | B93: 計画書② (取組） | C93: F22 | D93: 計画書② (取組） | E93: F22 | K93: 56 | L93: 88
A94: ５の２（選択対策）予定3 | B94: 計画書② (取組） | C94: F23 | D94: 計画書② (取組） | E94: F23 | K94: 57 | L94: 89
A95: ５の２（選択対策）予定4 | B95: 計画書② (取組） | C95: F24 | D95: 計画書② (取組） | E95: F24 | K95: 58 | L95: 90
A96: ５の２（選択対策）予定5 | B96: 計画書② (取組） | C96: F25 | D96: 計画書② (取組） | E96: F25 | K96: 59 | L96: 91
A97: ５の２（選択対策）予定6 | B97: 計画書② (取組） | C97: F26 | D97: 計画書② (取組） | E97: F26 | K97: 60 | L97: 92
A98: ５の２（選択対策）予定7 | B98: 計画書② (取組） | C98: F27 | D98: 計画書② (取組） | E98: F27 | K98: 61 | L98: 93
A99: ５の２（選択対策）予定8 | B99: 計画書② (取組） | C99: F28 | D99: 計画書② (取組） | E99: F28 | K99: 62 | L99: 94
A100: ５の２（選択対策）予定9 | B100: 計画書② (取組） | C100: F29 | D100: 計画書② (取組） | E100: F29 | K100: 63 | L100: 95
A101: ５の２（選択対策）予定10 | B101: 計画書② (取組） | C101: F30 | D101: 計画書② (取組） | E101: F30 | K101: 64 | L101: 96
A102: ５の２（選択対策）予定11 | B102: 計画書② (取組） | C102: F31 | D102: 計画書② (取組） | E102: F31 | K102: 65 | L102: 97
A103: ５の２（選択対策）予定12 | B103: 計画書② (取組） | C103: F32 | D103: 計画書② (取組） | E103: F32 | K103: 66 | L103: 98
A104: ５の２（選択対策）予定13 | B104: 計画書② (取組） | C104: F33 | D104: 計画書② (取組） | E104: F33 | K104: 67 | L104: 99
A105: ５の２（選択対策）予定14 | B105: 計画書② (取組） | C105: F34 | D105: 計画書② (取組） | E105: F34 | K105: 68 | L105: 100
A106: ５の２（選択対策）予定15 | B106: 計画書② (取組） | C106: F35 | D106: 計画書② (取組） | E106: F35 | K106: 69 | L106: 101
A107: ５の３（その他の対策）項目1 | B107: 計画書② (取組） | C107: C40 | D107: 計画書② (取組） | E107: C40 | K107: 70 | L107: 102
A108: ５の３（その他の対策）項目2 | B108: 計画書② (取組） | C108: C41 | D108: 計画書② (取組） | E108: C41 | K108: 71 | L108: 103
A109: ５の３（その他の対策）項目3 | B109: 計画書② (取組） | C109: C42 | D109: 計画書② (取組） | E109: C42 | K109: 72 | L109: 104
A110: ５の３（その他の対策）項目4 | B110: 計画書② (取組） | C110: C43 | D110: 計画書② (取組） | E110: C43 | K110: 73 | L110: 105
A111: ５の３（その他の対策）項目5 | B111: 計画書② (取組） | C111: C44 | D111: 計画書② (取組） | E111: C44 | K111: 74 | L111: 106
A112: ５の３（その他の対策）項目6 | B112: 計画書② (取組） | C112: C45 | D112: 計画書② (取組） | E112: C45 | K112: 75 | L112: 107
A113: ５の３（その他の対策）項目7 | B113: 計画書② (取組） | C113: C46 | D113: 計画書② (取組） | E113: C46 | K113: 76 | L113: 108
A114: ５の３（その他の対策）項目8 | B114: 計画書② (取組） | C114: C47 | D114: 計画書② (取組） | E114: C47 | K114: 77 | L114: 109
A115: ５の３（その他の対策）項目9 | B115: 計画書② (取組） | C115: C48 | D115: 計画書② (取組） | E115: C48 | K115: 78 | L115: 110
A116: ５の３（その他の対策）項目10 | B116: 計画書② (取組） | C116: C49 | D116: 計画書② (取組） | E116: C49 | K116: 79 | L116: 111
A117: ５の３（その他の対策）取組1 | B117: 計画書② (取組） | C117: D40 | D117: 計画書② (取組） | E117: D40 | K117: 80 | L117: 112
A118: ５の３（その他の対策）取組2 | B118: 計画書② (取組） | C118: D41 | D118: 計画書② (取組） | E118: D41 | K118: 81 | L118: 113
A119: ５の３（その他の対策）取組3 | B119: 計画書② (取組） | C119: D42 | D119: 計画書② (取組） | E119: D42 | K119: 82 | L119: 114
A120: ５の３（その他の対策）取組4 | B120: 計画書② (取組） | C120: D43 | D120: 計画書② (取組） | E120: D43 | K120: 83 | L120: 115
A121: ５の３（その他の対策）取組5 | B121: 計画書② (取組） | C121: D44 | D121: 計画書② (取組） | E121: D44 | K121: 84 | L121: 116
A122: ５の３（その他の対策）取組6 | B122: 計画書② (取組） | C122: D45 | D122: 計画書② (取組） | E122: D45 | K122: 85 | L122: 117
A123: ５の３（その他の対策）取組7 | B123: 計画書② (取組） | C123: D46 | D123: 計画書② (取組） | E123: D46 | K123: 86 | L123: 118
A124: ５の３（その他の対策）取組8 | B124: 計画書② (取組） | C124: D47 | D124: 計画書② (取組） | E124: D47 | K124: 87 | L124: 119
A125: ５の３（その他の対策）取組9 | B125: 計画書② (取組） | C125: D48 | D125: 計画書② (取組） | E125: D48 | K125: 88 | L125: 120
A126: ５の３（その他の対策）取組10 | B126: 計画書② (取組） | C126: D49 | D126: 計画書② (取組） | E126: D49 | K126: 89 | L126: 121
A127: ５の３（その他の対策）状況1 | B127: 計画書② (取組） | C127: E40 | D127: 計画書② (取組） | E127: E40 | K127: 90 | L127: 122
A128: ５の３（その他の対策）状況2 | B128: 計画書② (取組） | C128: E41 | D128: 計画書② (取組） | E128: E41 | K128: 91 | L128: 123
A129: ５の３（その他の対策）状況3 | B129: 計画書② (取組） | C129: E42 | D129: 計画書② (取組） | E129: E42 | K129: 92 | L129: 124
A130: ５の３（その他の対策）状況4 | B130: 計画書② (取組） | C130: E43 | D130: 計画書② (取組） | E130: E43 | K130: 93 | L130: 125
A131: ５の３（その他の対策）状況5 | B131: 計画書② (取組） | C131: E44 | D131: 計画書② (取組） | E131: E44 | K131: 94 | L131: 126
A132: ５の３（その他の対策）状況6 | B132: 計画書② (取組） | C132: E45 | D132: 計画書② (取組） | E132: E45 | K132: 95 | L132: 127
A133: ５の３（その他の対策）状況7 | B133: 計画書② (取組） | C133: E46 | D133: 計画書② (取組） | E133: E46 | K133: 96 | L133: 128
A134: ５の３（その他の対策）状況8 | B134: 計画書② (取組） | C134: E47 | D134: 計画書② (取組） | E134: E47 | K134: 97 | L134: 129
A135: ５の３（その他の対策）状況9 | B135: 計画書② (取組） | C135: E48 | D135: 計画書② (取組） | E135: E48 | K135: 98 | L135: 130
A136: ５の３（その他の対策）状況10 | B136: 計画書② (取組） | C136: E49 | D136: 計画書② (取組） | E136: E49 | K136: 99 | L136: 131
A137: ５の３（その他の対策）予定1 | B137: 計画書② (取組） | C137: F40 | D137: 計画書② (取組） | E137: F40 | K137: 100 | L137: 132
A138: ５の３（その他の対策）予定2 | B138: 計画書② (取組） | C138: F41 | D138: 計画書② (取組） | E138: F41 | K138: 101 | L138: 133
A139: ５の３（その他の対策）予定3 | B139: 計画書② (取組） | C139: F42 | D139: 計画書② (取組） | E139: F42 | K139: 102 | L139: 134
A140: ５の３（その他の対策）予定4 | B140: 計画書② (取組） | C140: F43 | D140: 計画書② (取組） | E140: F43 | K140: 103 | L140: 135
A141: ５の３（その他の対策）予定5 | B141: 計画書② (取組） | C141: F44 | D141: 計画書② (取組） | E141: F44 | K141: 104 | L141: 136
A142: ５の３（その他の対策）予定6 | B142: 計画書② (取組） | C142: F45 | D142: 計画書② (取組） | E142: F45 | K142: 105 | L142: 137
A143: ５の３（その他の対策）予定7 | B143: 計画書② (取組） | C143: F46 | D143: 計画書② (取組） | E143: F46 | K143: 106 | L143: 138
A144: ５の３（その他の対策）予定8 | B144: 計画書② (取組） | C144: F47 | D144: 計画書② (取組） | E144: F47 | K144: 107 | L144: 139
A145: ５の３（その他の対策）予定9 | B145: 計画書② (取組） | C145: F48 | D145: 計画書② (取組） | E145: F48 | K145: 108 | L145: 140
A146: ５の３（その他の対策）予定10 | B146: 計画書② (取組） | C146: F49 | D146: 計画書② (取組） | E146: F49 | K146: 109 | L146: 141
A147: 参考１（詳細）対策1 | B147: 計画書③（任意記載） | C147: B4 | D147: 計画書③（任意記載） | E147: B4 | K147: 1 | L147: 142
A148: 参考１（詳細）対策2 | B148: 計画書③（任意記載） | C148: B5 | D148: 計画書③（任意記載） | E148: B5 | K148: 2 | L148: 143
A149: 参考１（詳細）対策3 | B149: 計画書③（任意記載） | C149: B6 | D149: 計画書③（任意記載） | E149: B6 | K149: 3 | L149: 144
A150: 参考１（詳細）対策4 | B150: 計画書③（任意記載） | C150: B7 | D150: 計画書③（任意記載） | E150: B7 | K150: 4 | L150: 145
A151: 参考１（詳細）対策5 | B151: 計画書③（任意記載） | C151: B8 | D151: 計画書③（任意記載） | E151: B8 | K151: 5 | L151: 146
A152: 参考１（詳細）対策6 | B152: 計画書③（任意記載） | C152: B9 | D152: 計画書③（任意記載） | E152: B9 | K152: 6 | L152: 147
A153: 参考１（詳細）対策7 | B153: 計画書③（任意記載） | C153: B10 | D153: 計画書③（任意記載） | E153: B10 | K153: 7 | L153: 148
A154: 参考１（詳細）対策8 | B154: 計画書③（任意記載） | C154: B11 | D154: 計画書③（任意記載） | E154: B11 | K154: 8 | L154: 149
A155: 参考１（詳細）対策9 | B155: 計画書③（任意記載） | C155: B12 | D155: 計画書③（任意記載） | E155: B12 | K155: 9 | L155: 150
A156: 参考１（詳細）対策10 | B156: 計画書③（任意記載） | C156: B13 | D156: 計画書③（任意記載） | E156: B13 | K156: 10 | L156: 151
A157: 参考１（詳細）実施年度1 | B157: 計画書③（任意記載） | C157: C4 | D157: 計画書③（任意記載） | E157: C4 | K157: 11 | L157: 152
A158: 参考１（詳細）実施年度2 | B158: 計画書③（任意記載） | C158: C5 | D158: 計画書③（任意記載） | E158: C5 | K158: 12 | L158: 153
A159: 参考１（詳細）実施年度3 | B159: 計画書③（任意記載） | C159: C6 | D159: 計画書③（任意記載） | E159: C6 | K159: 13 | L159: 154
A160: 参考１（詳細）実施年度4 | B160: 計画書③（任意記載） | C160: C7 | D160: 計画書③（任意記載） | E160: C7 | K160: 14 | L160: 155
A161: 参考１（詳細）実施年度5 | B161: 計画書③（任意記載） | C161: C8 | D161: 計画書③（任意記載） | E161: C8 | K161: 15 | L161: 156
A162: 参考１（詳細）実施年度6 | B162: 計画書③（任意記載） | C162: C9 | D162: 計画書③（任意記載） | E162: C9 | K162: 16 | L162: 157
A163: 参考１（詳細）実施年度7 | B163: 計画書③（任意記載） | C163: C10 | D163: 計画書③（任意記載） | E163: C10 | K163: 17 | L163: 158
A164: 参考１（詳細）実施年度8 | B164: 計画書③（任意記載） | C164: C11 | D164: 計画書③（任意記載） | E164: C11 | K164: 18 | L164: 159
A165: 参考１（詳細）実施年度9 | B165: 計画書③（任意記載） | C165: C12 | D165: 計画書③（任意記載） | E165: C12 | K165: 19 | L165: 160
A166: 参考１（詳細）実施年度10 | B166: 計画書③（任意記載） | C166: C13 | D166: 計画書③（任意記載） | E166: C13 | K166: 20 | L166: 161
A167: 参考１（詳細）推計削減量1 | B167: 計画書③（任意記載） | C167: D4 | D167: 計画書③（任意記載） | E167: D4 | K167: 21 | L167: 162
A168: 参考１（詳細）推計削減量2 | B168: 計画書③（任意記載） | C168: D5 | D168: 計画書③（任意記載） | E168: D5 | K168: 22 | L168: 163
A169: 参考１（詳細）推計削減量3 | B169: 計画書③（任意記載） | C169: D6 | D169: 計画書③（任意記載） | E169: D6 | K169: 23 | L169: 164
A170: 参考１（詳細）推計削減量4 | B170: 計画書③（任意記載） | C170: D7 | D170: 計画書③（任意記載） | E170: D7 | K170: 24 | L170: 165
A171: 参考１（詳細）推計削減量5 | B171: 計画書③（任意記載） | C171: D8 | D171: 計画書③（任意記載） | E171: D8 | K171: 25 | L171: 166
A172: 参考１（詳細）推計削減量6 | B172: 計画書③（任意記載） | C172: D9 | D172: 計画書③（任意記載） | E172: D9 | K172: 26 | L172: 167
A173: 参考１（詳細）推計削減量7 | B173: 計画書③（任意記載） | C173: D10 | D173: 計画書③（任意記載） | E173: D10 | K173: 27 | L173: 168
A174: 参考１（詳細）推計削減量8 | B174: 計画書③（任意記載） | C174: D11 | D174: 計画書③（任意記載） | E174: D11 | K174: 28 | L174: 169
A175: 参考１（詳細）推計削減量9 | B175: 計画書③（任意記載） | C175: D12 | D175: 計画書③（任意記載） | E175: D12 | K175: 29 | L175: 170
A176: 参考１（詳細）推計削減量10 | B176: 計画書③（任意記載） | C176: D13 | D176: 計画書③（任意記載） | E176: D13 | K176: 30 | L176: 171
A177: 参考２（詳細）対策1 | B177: 計画書③（任意記載） | C177: B17 | D177: 計画書③（任意記載） | E177: B17 | K177: 31 | L177: 172
A178: 参考２（詳細）対策2 | B178: 計画書③（任意記載） | C178: B18 | D178: 計画書③（任意記載） | E178: B18 | K178: 32 | L178: 173
A179: 参考２（詳細）対策3 | B179: 計画書③（任意記載） | C179: B19 | D179: 計画書③（任意記載） | E179: B19 | K179: 33 | L179: 174
A180: 参考２（詳細）対策4 | B180: 計画書③（任意記載） | C180: B20 | D180: 計画書③（任意記載） | E180: B20 | K180: 34 | L180: 175
A181: 参考２（詳細）対策5 | B181: 計画書③（任意記載） | C181: B21 | D181: 計画書③（任意記載） | E181: B21 | K181: 35 | L181: 176
A182: 参考２（詳細）対策6 | B182: 計画書③（任意記載） | C182: B22 | D182: 計画書③（任意記載） | E182: B22 | K182: 36 | L182: 177
A183: 参考２（詳細）対策7 | B183: 計画書③（任意記載） | C183: B23 | D183: 計画書③（任意記載） | E183: B23 | K183: 37 | L183: 178
A184: 参考２（詳細）対策8 | B184: 計画書③（任意記載） | C184: B24 | D184: 計画書③（任意記載） | E184: B24 | K184: 38 | L184: 179
A185: 参考２（詳細）対策9 | B185: 計画書③（任意記載） | C185: B25 | D185: 計画書③（任意記載） | E185: B25 | K185: 39 | L185: 180
A186: 参考２（詳細）対策10 | B186: 計画書③（任意記載） | C186: B26 | D186: 計画書③（任意記載） | E186: B26 | K186: 40 | L186: 181
A187: 参考２（詳細）実施年度1 | B187: 計画書③（任意記載） | C187: C17 | D187: 計画書③（任意記載） | E187: C17 | K187: 41 | L187: 182
A188: 参考２（詳細）実施年度2 | B188: 計画書③（任意記載） | C188: C18 | D188: 計画書③（任意記載） | E188: C18 | K188: 42 | L188: 183
A189: 参考２（詳細）実施年度3 | B189: 計画書③（任意記載） | C189: C19 | D189: 計画書③（任意記載） | E189: C19 | K189: 43 | L189: 184
A190: 参考２（詳細）実施年度4 | B190: 計画書③（任意記載） | C190: C20 | D190: 計画書③（任意記載） | E190: C20 | K190: 44 | L190: 185
A191: 参考２（詳細）実施年度5 | B191: 計画書③（任意記載） | C191: C21 | D191: 計画書③（任意記載） | E191: C21 | K191: 45 | L191: 186
A192: 参考２（詳細）実施年度6 | B192: 計画書③（任意記載） | C192: C22 | D192: 計画書③（任意記載） | E192: C22 | K192: 46 | L192: 187
A193: 参考２（詳細）実施年度7 | B193: 計画書③（任意記載） | C193: C23 | D193: 計画書③（任意記載） | E193: C23 | K193: 47 | L193: 188
A194: 参考２（詳細）実施年度8 | B194: 計画書③（任意記載） | C194: C24 | D194: 計画書③（任意記載） | E194: C24 | K194: 48 | L194: 189
A195: 参考２（詳細）実施年度9 | B195: 計画書③（任意記載） | C195: C25 | D195: 計画書③（任意記載） | E195: C25 | K195: 49 | L195: 190
A196: 参考２（詳細）実施年度10 | B196: 計画書③（任意記載） | C196: C26 | D196: 計画書③（任意記載） | E196: C26 | K196: 50 | L196: 191
A197: 参考２（詳細）推計削減量1 | B197: 計画書③（任意記載） | C197: D17 | D197: 計画書③（任意記載） | E197: D17 | K197: 51 | L197: 192
A198: 参考２（詳細）推計削減量2 | B198: 計画書③（任意記載） | C198: D18 | D198: 計画書③（任意記載） | E198: D18 | K198: 52 | L198: 193
A199: 参考２（詳細）推計削減量3 | B199: 計画書③（任意記載） | C199: D19 | D199: 計画書③（任意記載） | E199: D19 | K199: 53 | L199: 194
A200: 参考２（詳細）推計削減量4 | B200: 計画書③（任意記載） | C200: D20 | D200: 計画書③（任意記載） | E200: D20 | K200: 54 | L200: 195
... 89 more rows
